Workbook

Sheet Deckblatt
B3: Berliner Beratungsdienst e.V.
B4: Wirtschaftssenioren für Berlin - Brandenburg
C6: Businessplan
C8: Der Berliner Beratungsdienst e.V. übernimmt keine Gewähr für die Ergebnisse und schließt jede Haftung aus.
C9: ACHTUNG: Die Anwendung der Datei setzt Grundkenntnisse in EXCEL voraus.
C11: Für Fehler bei Veränderungen oder Ergänzungen ist der Anwender selbst verantwortlich.
C12: Die hellgrau unterlegten Felder in allen Tabellen sind Eingabefelder. In den weißen Feldern sind z.T. Formeln hinterlegt.
C14: Geben Sie hier bitte Ihren Firmennamen ein: | H14: =IF(LEN(E15)>45,"Name zu lang !!!","") -> 
C15: Name / Firma: | E15: .
C18: Mehrwert- / Umsatz-Steuerpflichtig
C19: Zutreffendes ankreuzen (ja = 1; nein = 2) | G19: 2 | H19: =E79 ->  | I19: =B79 ->  | J19: =C79 -> 
C21: Gewerbesteuerpflichtig
C22: Zutreffendes ankreuzen (ja = 1; nein = 2) | G22: 2 | H22: =E80 ->  | I22: =C80 -> 
C24: Kapitalgesellschaft (z.B. GmbH oder UG)
C25: Zutreffendes ankreuzen (ja = 1; nein = 2) | G25: 2 | H25: =B81 ->  | I25: =E81 -> 
H26: =B82 ->  | I26: =E82 -> 
E28: Tabelle nur zur Information !
B44: Hinweis: Die berechneten Angaben für Gewerbe- und Körperschaftssteuer sind Näherungswerte.
C46: Bei Rückfragen erreichen Sie uns über unsere Webseite www.bbdev.de und unter info@bbdev.de oder +49 (30) 425 20 30
I48: Ausgabe 09/24
B79: =IF(G19=1,"19 %","") ->  | C79: =IF(G19=1,"7 %","") ->  | E79: =IF(G19=1,"Mehrwertsteuersätze","") -> 
C80: =IF(G22=1,"410 %","") ->  | E80: =IF(G22=1,"Hebesatz Berlin","") -> 
B81: =IF(G25=1,"Körperschaftssteuer","") ->  | E81: =IF(G25=1,"15 %","") -> 
B82: =IF(G25=1,"Soli-Zuschlag","") ->  | E82: =IF(G25=1,"5,5 %","") -> 
C83: =IF(G22=1,(IF(G25=1,1,0))) -> FALSE
B85: =IF(G19="x",D85,C85) -> x | C85: x
B86: =IF(G22="x",D86,C86) -> x | C86: x
B87: =IF(G25="x",D87,C87) -> x | C87: x

Sheet Beschreibung B-Plan
B2: =Deckblatt!E15 -> .
B3: Businessplan (Beschreibung des Gründungsvorhabens wird in einer separaten WORD - Datei erstellt)
B4: 1. Zusammenfassung | C4: Produkt / Dienstleistung
C5: Kundennutzen
C6: Gründer (-Team)
C7: Marktpotenzial und Wettbewerber
C8: Kapitalbedarf und Rentabilitätsvorschau
B10: 2. Produkt / Dienstleistung | C10: Dienstleistungs- / Produktbeschreibung
C11: Kundennutzen
C12: Zielgruppen
C13: Entwicklungsstand
B15: 3. Gründer (-Team) | C15: Kompetenz des Gründers / der Gründer
C16: Schlüsselpersonen
B18: 4. Marktanalyse | C18: Beschreibung des Gesamtmarktes
C19: Marktpotenzial
C20: Wettbewerber
B22: 5 .Marketing | C22: Produktpolitik
C23: Preispolitik
C24: Werbung und Kommunikation
C25: Vertrieb
B27: 6. Unternehmen u.Organisation | C27: Rechtsform
C28: Eigentumsverhältnisse
C29: Gesellschafter
C30: Organisation
C31: Personal
C32: Standort
B34: 7. Finanzplanung und Finanzierung | C34: Kapitalbedarf
C35: Finanzierungskonzept
C36: Rentabilität / Liquidität

Sheet Unternehmerlohn
B2: =Deckblatt!E15 -> .
B3: Private Ausgaben / Unternehmerlohn
C4: monatlich | D4: im Jahr
B5: Miete inkl. Nebenkosten (oder vergleichbare Kosten) | D5: =C5*12 -> 0
B6: Gas, Heizung, Strom, Wasser | D6: =C6*12 -> 0
B7: Lebensunterhalt (Lebensmittel, Putzartikel, Hygiene, Körperpflege ….) | D7: 0
B8: Bekleidung, Schuhe, Accessoires | D8: 0
B9: Restaurantbesuche, Kino, Theater | D9: 0
B10: Hobby, Bücher, Zeitschriften | D10: 0
B11: Ausflüge, Reisen | D11: 0
B12: Geschenke (Geburtstage, Weihnachten …) | D12: 0
B13: Haushalt (Einrichtung, Geräte und Zubehör) | D13: 0
B14: geplante Reparaturen | D14: 0
B15: Telefon, Internet und Mobiltelefon | D15: 0
B16: Rundfunk ARD, ZDF, DRadio (4 x 55,08 Jährlich = 18,36 / Monat) | D16: 0
B17: Autokosten (nur privater Anteil) | D17: 0
B18: ----- Steuer, Versicherung, Reparaturen | D18: 0
B19: ----- Benzin, Diesel, Gas, Strom | D19: 0
B20: ----- Leasingkosten | D20: 0
B21: Fahrgeld / Monatskarte | D21: 0
B22: Weiterbildung | D22: 0
B23: Kinderbetreuung (Kita, Schule…..) | D23: 0
B24: Schülermonatskarte | D24: 0
B25: Taschengeld | D25: 0
B26: Haftpflichtversicherung (privat) | D26: 0
B27: Hausratversicherung | D27: 0
B28: Krankenversicherung | D28: 0
B29: Lebensversicherung | D29: 0
B30: Rechtsschutzversicherung | D30: 0
B31: Rentenversicherung / Vorsorge | D31: 0
B32: Unfallversicherung, Berufsunfähigkeitsversicherung | D32: 0
B33: sonstige Versicherungen | D33: 0
B34: Ratenverpflichtungen | D34: 0
B35: Unterhaltsverpflichtungen | D35: 0
B36: Private Steuern | D36: 0
B37: Zinsen, Tilgung für Privatkredit | D37: 0
B38: Beratungskosten (Recht, Steuer…) | D38: 0
B39: Spez. Arzneikosten, Privatrezepte, ärztl. Sonderkosten, Physiotherapie … | D39: 0
B40: Vereinsbeiträge - Spenden | D40: 0
B41: sonstige private Ausgaben (z.B.Grundsteuer) | D41: 0
D42: 0
B43: Summe Ausgaben | D43: =SUM(D5:D42) -> 0
B44: Private Einnahmen
B45: Zinsen / (Betriebs-) Renten etc. | D45: =C45*12 -> 0
B46: Kindergeld | D46: 0
B47: Einkommen aus Vermietung und Verpachtung | D47: 0
B48: Unterhalt | D48: 0
B49: Sonstige Einnahmen | D49: 0
B50: Summe Einnahmen | D50: =SUM(D45:D49) -> 0
B51: Privatbedarf im Jahr - aus dem Unternehmen zu decken | C51: =D51/12 -> 0 | D51: =D43-D50 -> 0
B53: Wenn im "GuV-Detailplan" der Unternehmerlohn in den übrigen Personalkosten
B54: bereits enthalten ist, dann Zutreffendes eintragen: ja = x nein = y | D54: y

Sheet Kapitalbedarf
B2: =Deckblatt!E15 -> .
B3: Kapitalbedarf
B4: A - Investitionen | C4: GWG´s bis € 1.000 | D4: Investitionen über € 1.000
B5: PC - Laptop - Tablet - Drucker (Multifunktion) - Beamer - ext.Festplatte *)
B6: Software *)
B7: Immobilien
B8: Umbau incl. Architektenleistung
B9: Einrichtung (Maschinen, Tische, Stühle und Theke usw.)
B10: Kasse, Kopierer
B11: Telefon, Mobiltelefon
B12: Webseite erstellen (gegen Rechnung)
B13: Fahrzeuge
B14: Sonstiges
B15: N.N.
B16: N.N.
B17: Summe | C17: =SUM(C5:C16) -> 0 | D17: =SUM(D5:D16) -> 0
B18: B - Gründungskosten
B19: Markteinführungskosten
B20: Patente, Lizenzen, Franchisegebühr
B21: Beratungen (Gründungs-,Rechts-, Steuer-, Unternehmensberatung)
B22: Gebühren, Handelsregistereintrag, Notar
B23: Gewerbeanmeldung
B24: Flyer
B25: Visitenkarten
B26: Sonstiges
B29: Summe | C29: =SUM(C19:C28) -> 0
B30: C - Betriebsmittelbedarf
B31: 1. Warenlager incl. Vorfinanzierung von Aufträgen
B32: Mietkaution
B34: Sonstiges
B36: Summe | C36: =SUM(C31:C35) -> 0
B37: Kapitalbedarf (Summen A + B + C) | C37: =SUM(C36,C29,C17,D17) -> 0
B39: Bemerkung zu *) : die Abschreibung dazu gilt nur für das 1.Jahr

Sheet Finanzierung
B2: =Deckblatt!E15 -> .
B3: Finanzierung
B4: Kapitalbedarf | C4: =Kapitalbedarf!$C$37 -> 0
B6: Eigenmittel
B7: Barmittel
B8: Bankguthaben
B9: Sacheinlagen und Eigenleistungen
B10: Verwandtendarlehen
B11: Schenkungen
B12: Beteiligungskapital
B13: Bausparverträge
B14: Investitionszuschüsse
B15: Öffentliche Mittel (eigenkapitalähnlich)
B17: Summe Eigenmittel | C17: =SUM(C7:C16) -> 0
B18: Fremdmittel
B19: Öffentliche Mittel
B20: Öffentliche Mittel: (Förderdarlehen z.B. KfW)
B21: Hausbankdarlehen
B22: Kontokorrentkredit
B23: Sonstige Finanzierungsmittel (z. B. Lieferantendarlehen)
B25: Summe Fremdmittel | C25: =SUM(C19:C24) -> 0
B27: Finanzierungsmittel - gesamt | C27: =C17+C25 -> 0
B28: Unter- / Überdeckung | C28: =-(C4-C27) -> 0
B29: Es wird ein Zuschuss / Darlehen benötigt von | C29: =IF(C28<0,C28*-1,"0") -> 0
B31: Vorhandene Sicherheiten
B32: Haus- und Grundbesitz
B33: Lebensversicherungen / Kapitalanlagen
B34: Bürgschaftsbanken / Bürgschaften Dritter
B35: Summe Sicherheiten | C35: =SUM(C32:C34) -> 0

Sheet Invest- u. AfA-Plan
B2: =Deckblatt!$E$15 -> . | D2: Hinweis: Bemerkungen in Spalte "Übertrag aus Kapitalbedarf" zwingend beachten ! | I2: Investitions- und Abschreibungsplan (AfA)
B3: Alle Beträge ohne MwSt. | D3: 1. Jahr | Q3: 2. Jahr | V3: 3. Jahr
C4: Übertrag aus "Kapitalbedarf" | D4: Monat 1 | E4: Monat 2 | F4: Monat 3 | G4: Monat 4 | H4: Monat 5 | I4: Monat 6 | J4: Monat 7 | K4: Monat 8 | L4: Monat 9 | M4: Monat 10 | N4: Monat 11 | O4: Monat 12 | P4: Summe | Q4: I | R4: II | S4: III | T4: IV | U4: Summe | V4: I | W4: II | X4: III | Y4: IV | Z4: Summe
B5: =Kapitalbedarf!$B$5 -> PC - Laptop - Tablet - Drucker (Multifunktion) - Beamer - ext.Festplatte *) | C5: =Kapitalbedarf!$C$5 -> 0 | D5: =C5 -> 0 | P5: =SUM(D5:O5) -> 0 | U5: =SUM(Q5:T5) -> 0 | Z5: =SUM(V5:Y5) -> 0
B6: Verteilung auf …. Monate | D6: 12 | E6: 1 | F6: 1 | G6: 1 | H6: 1 | I6: 1 | J6: 1 | K6: 1 | L6: 1 | M6: 1 | N6: 1 | O6: 1 | Q6: 4 | R6: 1 | S6: 1 | T6: 1 | V6: 4 | W6: 1 | X6: 1 | Y6: 1
B7: Abschreibung | D7: =D5/D6 -> 0 | E7: =D7+(E5/E6) -> 0 | F7: =E7+(F5/F6) -> 0 | G7: 0 | H7: 0 | I7: 0 | J7: 0 | K7: 0 | L7: 0 | M7: 0 | N7: 0 | O7: 0 | P7: =SUM(D7:O7) -> 0 | Q7: =Q5/Q6 -> 0 | R7: =R5+Q7 -> 0 | S7: =S5+Q7 -> 0 | T7: =T5+Q7 -> 0 | U7: =SUM(Q7:T7) -> 0 | V7: =V5/V6 -> 0 | W7: =V7+W5/W6 -> 0 | X7: =V7+X5/X6 -> 0 | Y7: =V7+Y5/Y6 -> 0 | Z7: =SUM(V7:Y7) -> 0 | AH7: =IF(D5>0,1,(IF(E5>0,2,(IF(F5>0,3,(IF(G5>0,4,(IF(H5>0,5,(IF(I5>0,6,(IF(J5>0,7,(IF(K5>0,8,(IF(L5>0,9,(IF(M5>0,10,(IF(N5>0,11,(IF(O5>0,12))))))))))))))))))))))) -> FALSE | AI7: =13-AH7 -> 13 | AJ7: =(P7/AI7*3) -> 0
B8: =Kapitalbedarf!$B$6 -> Software *) | C8: =Kapitalbedarf!$C$6 -> 0 | D8: =C8 -> 0 | P8: =SUM(D8:O8) -> 0 | U8: =SUM(Q8:T8) -> 0 | Z8: =SUM(V8:Y8) -> 0
B9: Verteilung auf …. Monate | D9: 12 | E9: 1 | F9: 1 | G9: 1 | H9: 1 | I9: 1 | J9: 1 | K9: 1 | L9: 1 | M9: 1 | N9: 1 | O9: 1 | Q9: 4 | R9: 1 | S9: 1 | T9: 1 | V9: 4 | W9: 1 | X9: 1 | Y9: 1
B10: Abschreibung | D10: =D8/D9 -> 0 | E10: =D10+(E8/E9) -> 0 | F10: =E10+(F8/F9) -> 0 | G10: =F10+(G8/G9) -> 0 | H10: =G10+(H8/H9) -> 0 | I10: =H10+(I8/I9) -> 0 | J10: =I10+(J8/J9) -> 0 | K10: =J10+(K8/K9) -> 0 | L10: =K10+(L8/L9) -> 0 | M10: =L10+(M8/M9) -> 0 | N10: =M10+(N8/N9) -> 0 | O10: =N10+(O8/O9) -> 0 | P10: =SUM(D10:O10) -> 0 | Q10: =Q8/Q9 -> 0 | R10: =R8+Q10 -> 0 | S10: =S8+Q10 -> 0 | T10: =T8+Q10 -> 0 | U10: =SUM(Q10:T10) -> 0 | V10: =V8/V9 -> 0 | W10: =V10+W8/W9 -> 0 | X10: =V10+X8/X9 -> 0 | Y10: =V10+Y8/Y9 -> 0 | Z10: =SUM(V10:Y10) -> 0 | AH10: =IF(D8>0,1,(IF(E8>0,2,(IF(F8>0,3,(IF(G8>0,4,(IF(H8>0,5,(IF(I8>0,6,(IF(J8>0,7,(IF(K8>0,8,(IF(L8>0,9,(IF(M8>0,10,(IF(N8>0,11,(IF(O8>0,12))))))))))))))))))))))) -> FALSE | AI10: =13-AH10 -> 13 | AJ10: =(P10/AI10*3) -> 0
B11: =Kapitalbedarf!$B$7 -> Immobilien | C11: =Kapitalbedarf!$D$7 -> 0 | P11: =SUM(D11:O11) -> 0 | U11: =SUM(Q11:T11) -> 0 | Z11: =SUM(V11:Y11) -> 0
B12: Abschreibungsdauer entspr. AfA-Tabelle (Monate) | D12: 0.1 | E12: 0.1 | F12: 0.1 | G12: 0.1 | H12: 0.1 | I12: 0.1 | J12: 0.1 | K12: 0.1 | L12: 0.1 | M12: 0.1 | N12: 0.1 | O12: 0.1 | Q12: 0.1 | R12: 0.1 | S12: 0.1 | T12: 0.1 | V12: 0.1 | W12: 0.1 | X12: 0.1 | Y12: 0.1
B13: Abschreibung | D13: =D11/D12 -> 0 | E13: =D13+(E11/E12) -> 0 | F13: =E13+(F11/F12) -> 0 | G13: =F13+(G11/G12) -> 0 | H13: =G13+(H11/H12) -> 0 | I13: =H13+(I11/I12) -> 0 | J13: =I13+(J11/J12) -> 0 | K13: =J13+(K11/K12) -> 0 | L13: =K13+(L11/L12) -> 0 | M13: =L13+(M11/M12) -> 0 | N13: =M13+(N11/N12) -> 0 | O13: =N13+(O11/O12) -> 0 | P13: =SUM(D13:O13) -> 0 | Q13: =(O13*3)+(Q11/Q12) -> 0 | R13: =Q13+(R11/R12) -> 0 | S13: =R13+(S11/S12) -> 0 | T13: =S13+(T11/T12) -> 0 | U13: =SUM(Q13:T13) -> 0 | V13: =T13+(V11/V12) -> 0 | W13: =V13+(W11/W12) -> 0 | X13: =W13+(X11/X12) -> 0 | Y13: =X13+(Y11/Y12) -> 0 | Z13: =SUM(V13:Y13) -> 0 | AH13: =IF(D11>0,1,(IF(E11>0,2,(IF(F11>0,3,(IF(G11>0,4,(IF(H11>0,5,(IF(I11>0,6,(IF(J11>0,7,(IF(K11>0,8,(IF(L11>0,9,(IF(M11>0,10,(IF(N11>0,11,(IF(O11>0,12))))))))))))))))))))))) -> FALSE | AI13: =13-AH13 -> 13 | AJ13: =(P13/AI13*3) -> 0
B14: =Kapitalbedarf!$B$8 -> Umbau incl. Architektenleistung | C14: =Kapitalbedarf!$D$8 -> 0 | P14: =SUM(D14:O14) -> 0 | U14: =SUM(Q14:T14) -> 0 | Z14: =SUM(V14:Y14) -> 0
B15: Abschreibungsdauer entspr. AfA-Tabelle (Monate) | D15: 0.1 | E15: 0.1 | F15: 0.1 | G15: 0.1 | H15: 0.1 | I15: 0.1 | J15: 0.1 | K15: 0.1 | L15: 0.1 | M15: 0.1 | N15: 0.1 | O15: 0.1 | Q15: 0.1 | R15: 0.1 | S15: 0.1 | T15: 0.1 | V15: 0.1 | W15: 0.1 | X15: 0.1 | Y15: 0.1
B16: Abschreibung | D16: =D14/D15 -> 0 | E16: =D16+(E14/E15) -> 0 | F16: =E16+(F14/F15) -> 0 | G16: =F16+(G14/G15) -> 0 | H16: =G16+(H14/H15) -> 0 | I16: =H16+(I14/I15) -> 0 | J16: =I16+(J14/J15) -> 0 | K16: =J16+(K14/K15) -> 0 | L16: =K16+(L14/L15) -> 0 | M16: =L16+(M14/M15) -> 0 | N16: =M16+(N14/N15) -> 0 | O16: =N16+(O14/O15) -> 0 | P16: =SUM(D16:O16) -> 0 | Q16: =(O16*3)+(Q14/Q15) -> 0 | R16: =Q16+(R14/R15) -> 0 | S16: =R16+(S14/S15) -> 0 | T16: =S16+(T14/T15) -> 0 | U16: =SUM(Q16:T16) -> 0 | V16: =T16+(V14/V15) -> 0 | W16: =V16+(W14/W15) -> 0 | X16: =W16+(X14/X15) -> 0 | Y16: =X16+(Y14/Y15) -> 0 | Z16: =SUM(V16:Y16) -> 0 | AH16: =IF(D14>0,1,(IF(E14>0,2,(IF(F14>0,3,(IF(G14>0,4,(IF(H14>0,5,(IF(I14>0,6,(IF(J14>0,7,(IF(K14>0,8,(IF(L14>0,9,(IF(M14>0,10,(IF(N14>0,11,(IF(O14>0,12))))))))))))))))))))))) -> FALSE | AI16: =13-AH16 -> 13 | AJ16: =(P16/AI16*3) -> 0
B17: =Kapitalbedarf!$B$9 -> Einrichtung (Maschinen, Tische, Stühle und Theke usw.) | C17: =Kapitalbedarf!$D$9 -> 0 | P17: =SUM(D17:O17) -> 0 | U17: =SUM(Q17:T17) -> 0 | Z17: =SUM(V17:Y17) -> 0
B18: Abschreibungsdauer entspr. AfA-Tabelle (Monate) | D18: 0.1 | E18: 0.1 | F18: 0.1 | G18: 0.1 | H18: 0.1 | I18: 0.1 | J18: 0.1 | K18: 0.1 | L18: 0.1 | M18: 0.1 | N18: 0.1 | O18: 0.1 | Q18: 0.1 | R18: 0.1 | S18: 0.1 | T18: 0.1 | V18: 0.1 | W18: 0.1 | X18: 0.1 | Y18: 0.1
B19: Abschreibung | D19: =D17/D18 -> 0 | E19: =D19+(E17/E18) -> 0 | F19: =E19+(F17/F18) -> 0 | G19: =F19+(G17/G18) -> 0 | H19: =G19+(H17/H18) -> 0 | I19: =H19+(I17/I18) -> 0 | J19: =I19+(J17/J18) -> 0 | K19: =J19+(K17/K18) -> 0 | L19: =K19+(L17/L18) -> 0 | M19: =L19+(M17/M18) -> 0 | N19: =M19+(N17/N18) -> 0 | O19: =N19+(O17/O18) -> 0 | P19: =SUM(D19:O19) -> 0 | Q19: =(O19*3)+(Q17/Q18) -> 0 | R19: =Q19+(R17/R18) -> 0 | S19: =R19+(S17/S18) -> 0 | T19: =S19+(T17/T18) -> 0 | U19: =SUM(Q19:T19) -> 0 | V19: =T19+(V17/V18) -> 0 | W19: =V19+(W17/W18) -> 0 | X19: =W19+(X17/X18) -> 0 | Y19: =X19+(Y17/Y18) -> 0 | Z19: =SUM(V19:Y19) -> 0 | AH19: =IF(D17>0,1,(IF(E17>0,2,(IF(F17>0,3,(IF(G17>0,4,(IF(H17>0,5,(IF(I17>0,6,(IF(J17>0,7,(IF(K17>0,8,(IF(L17>0,9,(IF(M17>0,10,(IF(N17>0,11,(IF(O17>0,12))))))))))))))))))))))) -> FALSE | AI19: =13-AH19 -> 13 | AJ19: =(P19/AI19*3) -> 0
B20: =Kapitalbedarf!$B$10 -> Kasse, Kopierer | C20: =Kapitalbedarf!$D$10 -> 0 | P20: =SUM(D20:O20) -> 0 | U20: =SUM(Q20:T20) -> 0 | Z20: =SUM(V20:Y20) -> 0
B21: Abschreibungsdauer entspr. AfA-Tabelle (Monate) | D21: 0.1 | E21: 0.1 | F21: 0.1 | G21: 0.1 | H21: 0.1 | I21: 0.1 | J21: 0.1 | K21: 0.1 | L21: 0.1 | M21: 0.1 | N21: 0.1 | O21: 0.1 | Q21: 0.1 | R21: 0.1 | S21: 0.1 | T21: 0.1 | V21: 0.1 | W21: 0.1 | X21: 0.1 | Y21: 0.1
B22: Abschreibung | D22: =D20/D21 -> 0 | E22: =D22+(E20/E21) -> 0 | F22: =E22+(F20/F21) -> 0 | G22: =F22+(G20/G21) -> 0 | H22: =G22+(H20/H21) -> 0 | I22: =H22+(I20/I21) -> 0 | J22: =I22+(J20/J21) -> 0 | K22: =J22+(K20/K21) -> 0 | L22: =K22+(L20/L21) -> 0 | M22: =L22+(M20/M21) -> 0 | N22: =M22+(N20/N21) -> 0 | O22: =N22+(O20/O21) -> 0 | P22: =SUM(D22:O22) -> 0 | Q22: =(O22*3)+(Q20/Q21) -> 0 | R22: =Q22+(R20/R21) -> 0 | S22: =R22+(S20/S21) -> 0 | T22: =S22+(T20/T21) -> 0 | U22: =SUM(Q22:T22) -> 0 | V22: =T22+(V20/V21) -> 0 | W22: =V22+(W20/W21) -> 0 | X22: =W22+(X20/X21) -> 0 | Y22: =X22+(Y20/Y21) -> 0 | Z22: =SUM(V22:Y22) -> 0 | AH22: =IF(D20>0,1,(IF(E20>0,2,(IF(F20>0,3,(IF(G20>0,4,(IF(H20>0,5,(IF(I20>0,6,(IF(J20>0,7,(IF(K20>0,8,(IF(L20>0,9,(IF(M20>0,10,(IF(N20>0,11,(IF(O20>0,12))))))))))))))))))))))) -> FALSE | AI22: =13-AH22 -> 13 | AJ22: =(P22/AI22*3) -> 0
B23: =Kapitalbedarf!$B$11 -> Telefon, Mobiltelefon | C23: =Kapitalbedarf!$D$11 -> 0 | P23: =SUM(C23:O23) -> 0 | U23: =SUM(Q23:T23) -> 0 | Z23: =SUM(V23:Y23) -> 0
B24: Abschreibungsdauer entspr. AfA-Tabelle (Monate) | D24: 0.1 | E24: 0.1 | F24: 0.1 | G24: 0.1 | H24: 0.1 | I24: 0.1 | J24: 0.1 | K24: 0.1 | L24: 0.1 | M24: 0.1 | N24: 0.1 | O24: 0.1 | Q24: 0.1 | R24: 0.1 | S24: 0.1 | T24: 0.1 | V24: 0.1 | W24: 0.1 | X24: 0.1 | Y24: 0.1
B25: Abschreibung | D25: =D23/D24 -> 0 | E25: =D25+(E23/E24) -> 0 | F25: =E25+(F23/F24) -> 0 | G25: =F25+(G23/G24) -> 0 | H25: =G25+(H23/H24) -> 0 | I25: =H25+(I23/I24) -> 0 | J25: =I25+(J23/J24) -> 0 | K25: =J25+(K23/K24) -> 0 | L25: =K25+(L23/L24) -> 0 | M25: =L25+(M23/M24) -> 0 | N25: =M25+(N23/N24) -> 0 | O25: =N25+(O23/O24) -> 0 | P25: =SUM(D25:O25) -> 0 | Q25: =(O25*3)+(Q23/Q24) -> 0 | R25: =Q25+(R23/R24) -> 0 | S25: =R25+(S23/S24) -> 0 | T25: =S25+(T23/T24) -> 0 | U25: =SUM(Q25:T25) -> 0 | V25: =T25+(V23/V24) -> 0 | W25: =V25+(W23/W24) -> 0 | X25: =W25+(X23/X24) -> 0 | Y25: =X25+(Y23/Y24) -> 0 | Z25: =SUM(V25:Y25) -> 0 | AH25: =IF(D23>0,1,(IF(E23>0,2,(IF(F23>0,3,(IF(G23>0,4,(IF(H23>0,5,(IF(I23>0,6,(IF(J23>0,7,(IF(K23>0,8,(IF(L23>0,9,(IF(M23>0,10,(IF(N23>0,11,(IF(O23>0,12))))))))))))))))))))))) -> FALSE | AI25: =13-AH25 -> 13 | AJ25: =(P25/AI25*3) -> 0
B26: =Kapitalbedarf!$B$12 -> Webseite erstellen (gegen Rechnung) | C26: =Kapitalbedarf!$D$12 -> 0 | P26: =SUM(D26:O26) -> 0 | U26: =SUM(Q26:T26) -> 0 | Z26: =SUM(V26:Y26) -> 0
B27: Abschreibungsdauer entspr. AfA-Tabelle (Monate) | D27: 0.1 | E27: 0.1 | F27: 0.1 | G27: 0.1 | H27: 0.1 | I27: 0.1 | J27: 0.1 | K27: 0.1 | L27: 0.1 | M27: 0.1 | N27: 0.1 | O27: 0.1 | Q27: 0.1 | R27: 0.1 | S27: 0.1 | T27: 0.1 | V27: 0.1 | W27: 0.1 | X27: 0.1 | Y27: 0.1
B28: Abschreibung | D28: =D26/D27 -> 0 | E28: =D28+(E26/E27) -> 0 | F28: =E28+(F26/F27) -> 0 | G28: =F28+(G26/G27) -> 0 | H28: =G28+(H26/H27) -> 0 | I28: =H28+(I26/I27) -> 0 | J28: =I28+(J26/J27) -> 0 | K28: =J28+(K26/K27) -> 0 | L28: =K28+(L26/L27) -> 0 | M28: =L28+(M26/M27) -> 0 | N28: =M28+(N26/N27) -> 0 | O28: =N28+(O26/O27) -> 0 | P28: =SUM(D28:O28) -> 0 | Q28: =(O28*3)+(Q26/Q27) -> 0 | R28: =Q28+(R26/R27) -> 0 | S28: =R28+(S26/S27) -> 0 | T28: =S28+(T26/T27) -> 0 | U28: =SUM(Q28:T28) -> 0 | V28: =T28+(V26/V27) -> 0 | W28: =V28+(W26/W27) -> 0 | X28: =W28+(X26/X27) -> 0 | Y28: =X28+(Y26/Y27) -> 0 | Z28: =SUM(V28:Y28) -> 0 | AH28: =IF(D26>0,1,(IF(E26>0,2,(IF(F26>0,3,(IF(G26>0,4,(IF(H26>0,5,(IF(I26>0,6,(IF(J26>0,7,(IF(K26>0,8,(IF(L26>0,9,(IF(M26>0,10,(IF(N26>0,11,(IF(O26>0,12))))))))))))))))))))))) -> FALSE | AI28: =13-AH28 -> 13 | AJ28: =(P28/AI28*3) -> 0
B29: =Kapitalbedarf!$B$13 -> Fahrzeuge | C29: =Kapitalbedarf!$D$13 -> 0 | P29: =SUM(D29:O29) -> 0 | U29: =SUM(Q29:T29) -> 0 | Z29: =SUM(V29:Y29) -> 0
B30: Abschreibungsdauer entspr. AfA-Tabelle (Monate) | D30: 0.1 | E30: 0.1 | F30: 0.1 | G30: 0.1 | H30: 0.1 | I30: 0.1 | J30: 0.1 | K30: 0.1 | L30: 0.1 | M30: 0.1 | N30: 0.1 | O30: 0.1 | Q30: 0.1 | R30: 0.1 | S30: 0.1 | T30: 0.1 | V30: 0.1 | W30: 0.1 | X30: 0.1 | Y30: 0.1
B31: Abschreibung | D31: =D29/D30 -> 0 | E31: =D31+(E29/E30) -> 0 | F31: =E31+(F29/F30) -> 0 | G31: =F31+(G29/G30) -> 0 | H31: =G31+(H29/H30) -> 0 | I31: =H31+(I29/I30) -> 0 | J31: =I31+(J29/J30) -> 0 | K31: =J31+(K29/K30) -> 0 | L31: =K31+(L29/L30) -> 0 | M31: =L31+(M29/M30) -> 0 | N31: =M31+(N29/N30) -> 0 | O31: =N31+(O29/O30) -> 0 | P31: =SUM(D31:O31) -> 0 | Q31: =(O31*3)+(Q29/Q30) -> 0 | R31: =Q31+(R29/R30) -> 0 | S31: =R31+(S29/S30) -> 0 | T31: =S31+(T29/T30) -> 0 | U31: =SUM(Q31:T31) -> 0 | V31: =T31+(V29/V30) -> 0 | W31: =V31+(W29/W30) -> 0 | X31: =W31+(X29/X30) -> 0 | Y31: =X31+(Y29/Y30) -> 0 | Z31: =SUM(V31:Y31) -> 0 | AH31: =IF(D29>0,1,(IF(E29>0,2,(IF(F29>0,3,(IF(G29>0,4,(IF(H29>0,5,(IF(I29>0,6,(IF(J29>0,7,(IF(K29>0,8,(IF(L29>0,9,(IF(M29>0,10,(IF(N29>0,11,(IF(O29>0,12))))))))))))))))))))))) -> FALSE | AI31: =13-AH31 -> 13 | AJ31: =(P31/AI31*3) -> 0
B32: =Kapitalbedarf!$B$14 -> Sonstiges | C32: =Kapitalbedarf!$D$14 -> 0 | P32: =SUM(D32:O32) -> 0 | U32: =SUM(Q32:T32) -> 0 | Z32: =SUM(V32:Y32) -> 0
B33: Abschreibungsdauer entspr. AfA-Tabelle (Monate) | D33: 0.1 | E33: 0.1 | F33: 0.1 | G33: 0.1 | H33: 0.1 | I33: 0.1 | J33: 0.1 | K33: 0.1 | L33: 0.1 | M33: 0.1 | N33: 0.1 | O33: 0.1 | Q33: 0.1 | R33: 0.1 | S33: 0.1 | T33: 0.1 | V33: 0.1 | W33: 0.1 | X33: 0.1 | Y33: 0.1
B34: Abschreibung | D34: =D32/D33 -> 0 | E34: =D34+(E32/E33) -> 0 | F34: =E34+(F32/F33) -> 0 | G34: =F34+(G32/G33) -> 0 | H34: =G34+(H32/H33) -> 0 | I34: =H34+(I32/I33) -> 0 | J34: =I34+(J32/J33) -> 0 | K34: =J34+(K32/K33) -> 0 | L34: =K34+(L32/L33) -> 0 | M34: =L34+(M32/M33) -> 0 | N34: =M34+(N32/N33) -> 0 | O34: =N34+(O32/O33) -> 0 | P34: =SUM(D34:O34) -> 0 | Q34: =(O34*3)+(Q32/Q33) -> 0 | R34: =Q34+(R32/R33) -> 0 | S34: =R34+(S32/S33) -> 0 | T34: =S34+(T32/T33) -> 0 | U34: =SUM(Q34:T34) -> 0 | V34: =T34+(V32/V33) -> 0 | W34: =V34+(W32/W33) -> 0 | X34: =W34+(X32/X33) -> 0 | Y34: =X34+(Y32/Y33) -> 0 | Z34: =SUM(V34:Y34) -> 0 | AH34: =IF(D32>0,1,(IF(E32>0,2,(IF(F32>0,3,(IF(G32>0,4,(IF(H32>0,5,(IF(I32>0,6,(IF(J32>0,7,(IF(K32>0,8,(IF(L32>0,9,(IF(M32>0,10,(IF(N32>0,11,(IF(O32>0,12))))))))))))))))))))))) -> FALSE | AI34: =13-AH34 -> 13 | AJ34: =(P34/AI34*3) -> 0
B35: =Kapitalbedarf!$B$15 -> N.N. | C35: =Kapitalbedarf!$D$15 -> 0 | P35: =SUM(D35:O35) -> 0 | U35: =SUM(Q35:T35) -> 0 | Z35: =SUM(V35:Y35) -> 0
B36: Abschreibungsdauer entspr. AfA-Tabelle (Monate) | D36: 0.1 | E36: 0.1 | F36: 0.1 | G36: 0.1 | H36: 0.1 | I36: 0.1 | J36: 0.1 | K36: 0.1 | L36: 0.1 | M36: 0.1 | N36: 0.1 | O36: 0.1 | Q36: 0.1 | R36: 0.1 | S36: 0.1 | T36: 0.1 | V36: 0.1 | W36: 0.1 | X36: 0.1 | Y36: 0.1
B37: Abschreibung | D37: =D35/D36 -> 0 | E37: =D37+(E35/E36) -> 0 | F37: =E37+(F35/F36) -> 0 | G37: =F37+(G35/G36) -> 0 | H37: =G37+(H35/H36) -> 0 | I37: =H37+(I35/I36) -> 0 | J37: =I37+(J35/J36) -> 0 | K37: =J37+(K35/K36) -> 0 | L37: =K37+(L35/L36) -> 0 | M37: =L37+(M35/M36) -> 0 | N37: =M37+(N35/N36) -> 0 | O37: =N37+(O35/O36) -> 0 | P37: =SUM(D37:O37) -> 0 | Q37: =(O37*3)+(Q35/Q36) -> 0 | R37: =Q37+(R35/R36) -> 0 | S37: =R37+(S35/S36) -> 0 | T37: =S37+(T35/T36) -> 0 | U37: =SUM(Q37:T37) -> 0 | V37: =T37+(V35/V36) -> 0 | W37: =V37+(W35/W36) -> 0 | X37: =W37+(X35/X36) -> 0 | Y37: =X37+(Y35/Y36) -> 0 | Z37: =SUM(V37:Y37) -> 0 | AH37: =IF(D35>0,1,(IF(E35>0,2,(IF(F35>0,3,(IF(G35>0,4,(IF(H35>0,5,(IF(I35>0,6,(IF(J35>0,7,(IF(K35>0,8,(IF(L35>0,9,(IF(M35>0,10,(IF(N35>0,11,(IF(O35>0,12))))))))))))))))))))))) -> FALSE | AI37: =13-AH37 -> 13 | AJ37: =(P37/AI37*3) -> 0
B38: =Kapitalbedarf!$B$16 -> N.N. | C38: =Kapitalbedarf!$D$16 -> 0 | P38: =SUM(D38:O38) -> 0 | U38: =SUM(Q38:T38) -> 0 | Z38: =SUM(V38:Y38) -> 0
B39: Abschreibungsdauer entspr. AfA-Tabelle (Monate) | D39: 0.1 | E39: 0.1 | F39: 0.1 | G39: 0.1 | H39: 0.1 | I39: 0.1 | J39: 0.1 | K39: 0.1 | L39: 0.1 | M39: 0.1 | N39: 0.1 | O39: 0.1 | Q39: 0.1 | R39: 0.1 | S39: 0.1 | T39: 0.1 | V39: 0.1 | W39: 0.1 | X39: 0.1 | Y39: 0.1
B40: Abschreibung | D40: =D38/D39 -> 0 | E40: =D40+(E38/E39) -> 0 | F40: =E40+(F38/F39) -> 0 | G40: =F40+(G38/G39) -> 0 | H40: =G40+(H38/H39) -> 0 | I40: =H40+(I38/I39) -> 0 | J40: =I40+(J38/J39) -> 0 | K40: =J40+(K38/K39) -> 0 | L40: =K40+(L38/L39) -> 0 | M40: =L40+(M38/M39) -> 0 | N40: =M40+(N38/N39) -> 0 | O40: =N40+(O38/O39) -> 0 | P40: =SUM(D40:O40) -> 0 | Q40: =(O40*3)+(Q38/Q39) -> 0 | R40: =Q40+(R38/R39) -> 0 | S40: =R40+(S38/S39) -> 0 | T40: =S40+(T38/T39) -> 0 | U40: =SUM(Q40:T40) -> 0 | V40: =T40+(V38/V39) -> 0 | W40: =V40+(W38/W39) -> 0 | X40: =W40+(X38/X39) -> 0 | Y40: =X40+(Y38/Y39) -> 0 | Z40: =SUM(V40:Y40) -> 0 | AH40: =IF(D38>0,1,(IF(E38>0,2,(IF(F38>0,3,(IF(G38>0,4,(IF(H38>0,5,(IF(I38>0,6,(IF(J38>0,7,(IF(K38>0,8,(IF(L38>0,9,(IF(M38>0,10,(IF(N38>0,11,(IF(O38>0,12))))))))))))))))))))))) -> FALSE | AI40: =13-AH40 -> 13 | AJ40: =(P40/AI40*3) -> 0
B41: GWG´s (max. € 1.000 pro Einzelinvestition) | C41: =Kapitalbedarf!$C$17-Kapitalbedarf!$C$5-Kapitalbedarf!$C$6 -> 0 | D41: =C41 -> 0 | P41: =SUM(D41:O41) -> 0 | U41: =SUM(Q41:T41) -> 0 | Z41: =SUM(V41:Y41) -> 0
B42: Verteilung auf …. Monate | D42: 12 | E42: 1 | F42: 1 | G42: 1 | H42: 1 | I42: 1 | J42: 1 | K42: 1 | L42: 1 | M42: 1 | N42: 1 | O42: 1 | Q42: 4 | R42: 1 | S42: 1 | T42: 1 | V42: 4 | W42: 1 | X42: 1 | Y42: 1
B43: Abschreibung | D43: =D41/D42 -> 0 | E43: =D43+(E41/E42) -> 0 | F43: =E43+(F41/F42) -> 0 | G43: 0 | H43: 0 | I43: 0 | J43: 0 | K43: 0 | L43: 0 | M43: 0 | N43: 0 | O43: 0 | P43: =SUM(D43:O43) -> 0 | Q43: =Q41/Q42 -> 0 | R43: =R41+Q43 -> 0 | S43: =S41+Q43 -> 0 | T43: =T41+Q43 -> 0 | U43: =SUM(Q43:T43) -> 0 | V43: =V41/V42 -> 0 | W43: =W41+V43 -> 0 | X43: =X41+V43 -> 0 | Y43: =Y41+V43 -> 0 | Z43: =SUM(V43:Y43) -> 0
B45: Summe Investitionen | D45: =D5+D8+D11+D14+D17+D20+D23+D26+D29+D41+D32+D35+D38 -> 0 | E45: =E5+E8+E11+E14+E17+E20+E23+E26+E29+E41+E32+E35+E38 -> 0 | F45: 0 | G45: 0 | H45: 0 | I45: 0 | J45: 0 | K45: 0 | L45: 0 | M45: 0 | N45: 0 | O45: 0 | P45: =SUM(D45:O45) -> 0 | Q45: 0 | R45: 0 | S45: 0 | T45: 0 | U45: =SUM(Q45:T45) -> 0 | V45: 0 | W45: 0 | X45: 0 | Y45: 0 | Z45: =SUM(V45:Y45) -> 0
B47: Summe Abschreibungen | D47: =D7+D10+D13+D16+D19+D22+D25+D28+D31+D34+D37+D40+D43 -> 0 | E47: =E7+E10+E13+E16+E19+E22+E25+E28+E31+E34+E37+E40+E43 -> 0 | F47: 0 | G47: 0 | H47: 0 | I47: 0 | J47: 0 | K47: 0 | L47: 0 | M47: 0 | N47: 0 | O47: 0 | P47: =SUM(D47:O47) -> 0 | Q47: 0 | R47: 0 | S47: 0 | T47: 0 | U47: =SUM(Q47:T47) -> 0 | V47: 0 | W47: 0 | X47: 0 | Y47: 0 | Z47: =SUM(V47:Y47) -> 0
B49: Hinweis: bitte die "0" in den Zeilen "Abschreibungsdauer entspr. AfA-Tabelle (Monate)" nicht löschen - nur (bei Bedarf) überschreiben !

Sheet Zins-und Tilg.-Plan
B2: =Deckblatt!$E$15 -> . | F2: Zins- und Tilgungsplan
B3: Alle Beträge ohne MwSt. | C3: 1. Jahr | O3: 2. Jahr | S3: 3. Jahr
C4: Monat 1 | D4: Monat 2 | E4: Monat 3 | F4: Monat 4 | G4: Monat 5 | H4: Monat 6 | I4: Monat 7 | J4: Monat 8 | K4: Monat 9 | L4: Monat 10 | M4: Monat 11 | N4: Monat 12 | O4: I | P4: II | Q4: III | R4: IV | S4: I | T4: II | U4: III | V4: IV
B5: 1. Kontokorrentkredit
B6: Anfangsbest. Planperiode | D6: =C9 -> 0 | E6: 0 | F6: 0 | G6: 0 | H6: 0 | I6: 0 | J6: 0 | K6: 0 | L6: =K9 -> 0 | M6: =L9 -> 0 | N6: =M9 -> 0 | O6: 0 | P6: 0 | Q6: 0 | R6: 0 | S6: 0 | T6: 0 | U6: 0 | V6: 0
B7: Erhöhung
B8: Tilgung
B9: Endbestand Planperiode | C9: =C6+C7-C8 -> 0 | D9: =D6+D7-D8 -> 0 | E9: 0 | F9: 0 | G9: 0 | H9: =H6+H7-H8 -> 0 | I9: 0 | J9: 0 | K9: 0 | L9: 0 | M9: 0 | N9: 0 | O9: 0 | P9: 0 | Q9: 0 | R9: 0 | S9: 0 | T9: 0 | U9: 0 | V9: 0
B10: Durchschnittl. Valuta | C10: =(C6+C9)/2 -> 0 | D10: =(D6+D9)/2 -> 0 | E10: 0 | F10: 0 | G10: 0 | H10: 0 | I10: 0 | J10: 0 | K10: 0 | L10: 0 | M10: 0 | N10: 0 | O10: 0 | P10: 0 | Q10: 0 | R10: 0 | S10: 0 | T10: =(T6+T9)/2 -> 0 | U10: =(U6+U9)/2 -> 0 | V10: =(V6+V9)/2 -> 0
B11: Zinssatz | C11: 0 | D11: =C11 -> 0 | E11: =D11 -> 0 | F11: =E11 -> 0 | G11: 0 | H11: 0 | I11: 0 | J11: 0 | K11: 0 | L11: 0 | M11: 0 | N11: 0 | O11: 0 | P11: 0 | Q11: 0 | R11: 0 | S11: 0 | T11: 0 | U11: 0 | V11: 0
B12: Zinsen (pro Periode !) | C12: =C10*C11/12 -> 0 | D12: =D10*D11/12 -> 0 | E12: =E10*E11/12 -> 0 | F12: 0 | G12: 0 | H12: 0 | I12: 0 | J12: =J10*J11/12 -> 0 | K12: 0 | L12: =L10*L11/12 -> 0 | M12: 0 | N12: 0 | O12: =O10*O11/4 -> 0 | P12: 0 | Q12: 0 | R12: 0 | S12: 0 | T12: 0 | U12: 0 | V12: 0
B13: 2. Gesellschafterdarlehen
B14: Anfangsbest. Planperiode | D14: =C17 -> 0 | E14: 0 | F14: 0 | G14: 0 | H14: 0 | I14: 0 | J14: 0 | K14: 0 | L14: 0 | M14: 0 | N14: 0 | O14: 0 | P14: 0 | Q14: 0 | R14: 0 | S14: 0 | T14: 0 | U14: 0 | V14: 0
B15: Erhöhung
B16: Tilgung
B17: Endbestand Planperiode | C17: =C14+C15-C16 -> 0 | D17: =D14+D15-D16 -> 0 | E17: 0 | F17: 0 | G17: 0 | H17: 0 | I17: 0 | J17: 0 | K17: 0 | L17: 0 | M17: 0 | N17: 0 | O17: 0 | P17: 0 | Q17: 0 | R17: 0 | S17: 0 | T17: 0 | U17: 0 | V17: 0
B18: Durchschnittl. Valuta | C18: =(C14+C17)/2 -> 0 | D18: 0 | E18: 0 | F18: 0 | G18: 0 | H18: 0 | I18: 0 | J18: 0 | K18: 0 | L18: 0 | M18: 0 | N18: 0 | O18: 0 | P18: 0 | Q18: 0 | R18: 0 | S18: 0 | T18: 0 | U18: 0 | V18: 0
B19: Zinssatz | C19: 0 | D19: =C19 -> 0 | E19: =D19 -> 0 | F19: =E19 -> 0 | G19: 0 | H19: 0 | I19: 0 | J19: 0 | K19: 0 | L19: 0 | M19: 0 | N19: 0 | O19: 0 | P19: 0 | Q19: 0 | R19: 0 | S19: 0 | T19: 0 | U19: 0 | V19: 0
B20: Zinsen (pro Periode !) | C20: =C18*C19/12 -> 0 | D20: 0 | E20: 0 | F20: 0 | G20: =G18*G19/12 -> 0 | H20: 0 | I20: 0 | J20: 0 | K20: 0 | L20: 0 | M20: 0 | N20: 0 | O20: =O18*O19/4 -> 0 | P20: 0 | Q20: 0 | R20: 0 | S20: 0 | T20: 0 | U20: 0 | V20: 0
B21: 3. Stille Beteiligung
B22: Anfangsbest. Planperiode | D22: =C25 -> 0 | E22: 0 | F22: 0 | G22: 0 | H22: 0 | I22: 0 | J22: 0 | K22: 0 | L22: 0 | M22: 0 | N22: 0 | O22: 0 | P22: 0 | Q22: 0 | R22: 0 | S22: 0 | T22: 0 | U22: 0 | V22: 0
B23: Erhöhung
B24: Tilgung
B25: Endbestand Planperiode | C25: =C22+C23-C24 -> 0 | D25: =D22+D23-D24 -> 0 | E25: 0 | F25: 0 | G25: 0 | H25: 0 | I25: 0 | J25: 0 | K25: 0 | L25: 0 | M25: 0 | N25: 0 | O25: 0 | P25: 0 | Q25: 0 | R25: 0 | S25: 0 | T25: 0 | U25: 0 | V25: 0
B26: Durchschnittl. Valuta | C26: =(C22+C25)/2 -> 0 | D26: 0 | E26: 0 | F26: 0 | G26: 0 | H26: 0 | I26: 0 | J26: 0 | K26: 0 | L26: 0 | M26: 0 | N26: 0 | O26: 0 | P26: 0 | Q26: 0 | R26: 0 | S26: 0 | T26: 0 | U26: 0 | V26: 0
B27: Zinssatz | C27: 0 | D27: =C27 -> 0 | E27: =D27 -> 0 | F27: =E27 -> 0 | G27: 0 | H27: 0 | I27: 0 | J27: 0 | K27: 0 | L27: 0 | M27: 0 | N27: 0 | O27: 0 | P27: 0 | Q27: 0 | R27: 0 | S27: 0 | T27: 0 | U27: 0 | V27: 0
B28: Zinsen (pro Periode !) | C28: =C26*C27/12 -> 0 | D28: 0 | E28: 0 | F28: 0 | G28: 0 | H28: 0 | I28: 0 | J28: 0 | K28: 0 | L28: 0 | M28: 0 | N28: 0 | O28: =O26*O27/4 -> 0 | P28: 0 | Q28: 0 | R28: 0 | S28: 0 | T28: 0 | U28: 0 | V28: 0
B29: 4. Investitionskredit
B30: Anfangsbest. Planperiode | D30: =C33 -> 0 | E30: 0 | F30: 0 | G30: 0 | H30: 0 | I30: 0 | J30: 0 | K30: 0 | L30: =K33 -> 0 | M30: =L33 -> 0 | N30: =M33 -> 0 | O30: 0 | P30: 0 | Q30: 0 | R30: 0 | S30: 0 | T30: 0 | U30: 0 | V30: 0
B31: Erhöhung
B32: Tilgung
B33: Endbestand Planperiode | C33: =C30+C31-C32 -> 0 | D33: =D30+D31-D32 -> 0 | E33: 0 | F33: 0 | G33: 0 | H33: 0 | I33: 0 | J33: 0 | K33: 0 | L33: 0 | M33: 0 | N33: 0 | O33: 0 | P33: 0 | Q33: 0 | R33: 0 | S33: 0 | T33: 0 | U33: 0 | V33: 0
B34: Durchschnittl. Valuta | C34: =(C30+C33)/2 -> 0 | D34: 0 | E34: 0 | F34: 0 | G34: 0 | H34: 0 | I34: 0 | J34: 0 | K34: 0 | L34: 0 | M34: 0 | N34: 0 | O34: 0 | P34: 0 | Q34: 0 | R34: 0 | S34: 0 | T34: 0 | U34: 0 | V34: 0
B35: Zinssatz | C35: 0 | D35: =C35 -> 0 | E35: =D35 -> 0 | F35: =E35 -> 0 | G35: 0 | H35: 0 | I35: 0 | J35: 0 | K35: 0 | L35: 0 | M35: 0 | N35: 0 | O35: 0 | P35: 0 | Q35: 0 | R35: 0 | S35: 0 | T35: 0 | U35: 0 | V35: 0
B36: Zinsen (pro Periode !) | C36: =C34*C35/12 -> 0 | D36: 0 | E36: 0 | F36: 0 | G36: 0 | H36: 0 | I36: 0 | J36: 0 | K36: 0 | L36: =L34*L35/12 -> 0 | M36: =M34*M35/12 -> 0 | N36: =N34*N35/12 -> 0 | O36: =O34*O35/4 -> 0 | P36: =P34*P35/4 -> 0 | Q36: 0 | R36: 0 | S36: 0 | T36: 0 | U36: 0 | V36: 0
B38: Zinsen insgesamt | C38: =C12+C20+C28+C36 -> 0 | D38: 0 | E38: 0 | F38: 0 | G38: 0 | H38: 0 | I38: 0 | J38: 0 | K38: 0 | L38: 0 | M38: 0 | N38: 0 | O38: 0 | P38: 0 | Q38: 0 | R38: 0 | S38: 0 | T38: 0 | U38: 0 | V38: 0
B40: Tilgungen insgesamt | C40: =C8+C16+C24+C32 -> 0 | D40: =D8+D16+D24+D32 -> 0 | E40: 0 | F40: 0 | G40: 0 | H40: =H8+H16+H24+H32 -> 0 | I40: 0 | J40: 0 | K40: 0 | L40: 0 | M40: 0 | N40: 0 | O40: 0 | P40: 0 | Q40: 0 | R40: 0 | S40: 0 | T40: 0 | U40: 0 | V40: 0

Sheet Umsatz-Kalkulation-1
B2: =[1]Deckblatt!E15 -> .
B4: Alle Beträge ohne MwSt eingeben
B6: Produkt / Beschreibung | C6: Einzel preis | D6: Lager kosten | E6: Ver packung | F6: Versand | G6: Sonstiges | H6: Zwischen- summe | I6: Skonto | K6: Gesamt- summe | L6: Monat 1 | N6: Monat 2 | P6: Monat 3 | R6: Monat 4 | T6: Monat 5 | V6: Monat 6 | X6: Monat 7 | Z6: Monat 8 | AB6: Monat 9 | AD6: Monat 10 | AF6: Monat 11 | AH6: Monat 12 | AJ6: Gesamt summe
I7: % | J7: Betrag | L7: Stück | M7: Wert | N7: Stück | O7: Wert | P7: Stück | Q7: Wert | R7: Stück | S7: Wert | T7: Stück | U7: Wert | V7: Stück | W7: Wert | X7: Stück | Y7: Wert | Z7: Stück | AA7: Wert | AB7: Stück | AC7: Wert | AD7: Stück | AE7: Wert | AF7: Stück | AG7: Wert | AH7: Stück | AI7: Wert
H8: =SUM(C8:G8) -> 0 | I8: 0 | J8: =H8*I8/100 -> 0 | K8: =H8+J8 -> 0 | M8: =K8*L8 -> 0 | O8: =K8*N8 -> 0 | Q8: =K8*P8 -> 0 | S8: =K8*R8 -> 0 | U8: =K8*T8 -> 0 | W8: =K8*V8 -> 0 | Y8: =K8*X8 -> 0 | AA8: =K8*Z8 -> 0 | AC8: =K8*AB8 -> 0 | AE8: =K8*AD8 -> 0 | AG8: =K8*AF8 -> 0 | AI8: =K8*AH8 -> 0 | AJ8: =M8+O8+Q8+S8+U8+W8+Y8+AA8+AC8+AE8+AG8+AI8 -> 0
H10: =SUM(C10:G10) -> 0 | I10: 0 | J10: =H10*I10/100 -> 0 | K10: =H10+J10 -> 0 | M10: =K10*L10 -> 0 | O10: =K10*N10 -> 0 | Q10: =K10*P10 -> 0 | S10: =K10*R10 -> 0 | U10: =K10*T10 -> 0 | W10: =K10*V10 -> 0 | Y10: =K10*X10 -> 0 | AA10: =K10*Z10 -> 0 | AC10: =K10*AB10 -> 0 | AE10: =K10*AD10 -> 0 | AG10: =K10*AF10 -> 0 | AI10: =K10*AH10 -> 0 | AJ10: =M10+O10+Q10+S10+U10+W10+Y10+AA10+AC10+AE10+AG10+AI10 -> 0
H12: 0 | J12: =H12*I12/100 -> 0 | K12: =H12+J12 -> 0 | M12: 0 | O12: 0 | Q12: 0 | S12: 0 | U12: 0 | W12: 0 | Y12: 0 | AA12: 0 | AC12: 0 | AE12: 0 | AG12: 0 | AI12: 0 | AJ12: =M12+O12+Q12+S12+U12+W12+Y12+AA12+AC12+AE12+AG12+AI12 -> 0
H14: 0 | J14: =H14*I14/100 -> 0 | K14: =H14+J14 -> 0 | M14: 0 | O14: 0 | Q14: 0 | S14: 0 | U14: 0 | W14: 0 | Y14: 0 | AA14: 0 | AC14: 0 | AE14: 0 | AG14: 0 | AI14: 0 | AJ14: =M14+O14+Q14+S14+U14+W14+Y14+AA14+AC14+AE14+AG14+AI14 -> 0
H16: 0 | J16: =H16*I16/100 -> 0 | K16: =H16+J16 -> 0 | M16: 0 | O16: 0 | Q16: 0 | S16: 0 | U16: 0 | W16: 0 | Y16: 0 | AA16: 0 | AC16: 0 | AE16: 0 | AG16: 0 | AI16: 0 | AJ16: =M16+O16+Q16+S16+U16+W16+Y16+AA16+AC16+AE16+AG16+AI16 -> 0
H18: 0 | J18: =H18*I18/100 -> 0 | K18: =H18+J18 -> 0 | M18: 0 | O18: 0 | Q18: 0 | S18: 0 | U18: 0 | W18: 0 | Y18: 0 | AA18: 0 | AC18: 0 | AE18: 0 | AG18: 0 | AI18: 0 | AJ18: =M18+O18+Q18+S18+U18+W18+Y18+AA18+AC18+AE18+AG18+AI18 -> 0
H20: 0 | J20: =H20*I20/100 -> 0 | K20: =H20+J20 -> 0 | M20: 0 | O20: 0 | Q20: 0 | S20: 0 | U20: 0 | W20: 0 | Y20: 0 | AA20: 0 | AC20: 0 | AE20: 0 | AG20: 0 | AI20: 0 | AJ20: =M20+O20+Q20+S20+U20+W20+Y20+AA20+AC20+AE20+AG20+AI20 -> 0
H22: 0 | J22: =H22*I22/100 -> 0 | K22: =H22+J22 -> 0 | M22: 0 | O22: 0 | Q22: 0 | S22: 0 | U22: 0 | W22: 0 | Y22: 0 | AA22: 0 | AC22: 0 | AE22: 0 | AG22: 0 | AI22: 0 | AJ22: =M22+O22+Q22+S22+U22+W22+Y22+AA22+AC22+AE22+AG22+AI22 -> 0
H24: 0 | J24: =H24*I24/100 -> 0 | K24: =H24+J24 -> 0 | M24: 0 | O24: 0 | Q24: 0 | S24: 0 | U24: 0 | W24: 0 | Y24: 0 | AA24: 0 | AC24: 0 | AE24: 0 | AG24: 0 | AI24: 0 | AJ24: =M24+O24+Q24+S24+U24+W24+Y24+AA24+AC24+AE24+AG24+AI24 -> 0
B25: Summe Umsatz pro Monat | H25: =SUM(C25:G25) -> 0 | J25: =H25*I25/100 -> 0 | K25: =H25+J25 -> 0 | M25: =SUM(M8:M24) -> 0 | O25: =SUM(O8:O24) -> 0 | Q25: =SUM(Q8:Q24) -> 0 | S25: =SUM(S8:S24) -> 0 | U25: =SUM(U8:U24) -> 0 | W25: =SUM(W8:W24) -> 0 | Y25: =SUM(Y8:Y24) -> 0 | AA25: =SUM(AA8:AA24) -> 0 | AC25: =SUM(AC8:AC24) -> 0 | AE25: =SUM(AE8:AE24) -> 0 | AG25: =SUM(AG8:AG24) -> 0 | AI25: =SUM(AI8:AI24) -> 0 | AJ25: =SUM(AJ8:AJ24) -> 0
B27: Produkt / Beschreibung 2. Geschäftsjahr | C27: Einzel preis € | D27: Lager kosten | E27: Ver packung | F27: Versand | G27: Sonstiges | H27: Zwischen- summe | I27: Skonto | K27: Gesamt- summe | L27: I | N27: II | P27: III | R27: IV | T27: Gesamt summe
I28: % | J28: Betrag | L28: Stück | M28: Wert | N28: Stück | O28: Wert | P28: Stück | Q28: Wert | R28: Stück | S28: Wert
H29: =SUM(C29:G29) -> 0 | K29: =H29+J29 -> 0 | M29: =K29*L29 -> 0 | O29: =K29*N29 -> 0 | Q29: =K29*P29 -> 0 | S29: =K29*R29 -> 0 | T29: =M29+O29+Q29+S29 -> 0
H31: =SUM(C31:G31) -> 0 | K31: =H31+J31 -> 0 | M31: =K31*L31 -> 0 | O31: =K31*N31 -> 0 | Q31: =K31*P31 -> 0 | S31: =K31*R31 -> 0 | T31: =M31+O31+Q31+S31 -> 0
H33: 0 | K33: =H33+J33 -> 0 | M33: 0 | O33: 0 | Q33: 0 | S33: 0 | T33: =M33+O33+Q33+S33 -> 0
H35: 0 | K35: =H35+J35 -> 0 | M35: 0 | O35: 0 | Q35: 0 | S35: 0 | T35: =M35+O35+Q35+S35 -> 0
H37: 0 | K37: =H37+J37 -> 0 | M37: 0 | O37: 0 | Q37: 0 | S37: 0 | T37: =M37+O37+Q37+S37 -> 0
H39: 0 | K39: =H39+J39 -> 0 | M39: 0 | O39: 0 | Q39: 0 | S39: 0 | T39: =M39+O39+Q39+S39 -> 0
H41: 0 | K41: =H41+J41 -> 0 | M41: 0 | O41: 0 | Q41: 0 | S41: 0 | T41: =M41+O41+Q41+S41 -> 0
H43: 0 | K43: =H43+J43 -> 0 | M43: 0 | O43: 0 | Q43: 0 | S43: 0 | T43: =M43+O43+Q43+S43 -> 0
H45: 0 | K45: =H45+J45 -> 0 | M45: 0 | O45: 0 | Q45: 0 | S45: 0 | T45: =M45+O45+Q45+S45 -> 0
B46: Summe Umsatz pro Monat | M46: =SUM(M29:M45) -> 0 | O46: =SUM(O29:O45) -> 0 | Q46: =SUM(Q29:Q45) -> 0 | S46: =SUM(S29:S45) -> 0 | T46: =SUM(T29:U45) -> 0
B48: Produkt / Beschreibung 3. Geschäftsjahr | C48: Einzel preis € | D48: Lager kosten | E48: Ver packung | F48: Versand | G48: Sonstiges | H48: Zwischen- summe | I48: Skonto | K48: Gesamt- summe | L48: I | N48: II | P48: III | R48: IV | T48: Gesamt summe
I49: % | J49: Betrag | L49: Stück | M49: Wert | N49: Stück | O49: Wert | P49: Stück | Q49: Wert | R49: Stück | S49: Wert
H50: =SUM(C50:G50) -> 0 | K50: =H50+J50 -> 0 | M50: =K50*L50 -> 0 | O50: =K50*N50 -> 0 | Q50: =K50*P50 -> 0 | S50: =K50*R50 -> 0 | T50: =M50+O50+Q50+S50 -> 0
H52: =SUM(C52:G52) -> 0 | K52: =H52+J52 -> 0 | M52: =K52*L52 -> 0 | O52: =K52*N52 -> 0 | Q52: =K52*P52 -> 0 | S52: =K52*R52 -> 0 | T52: =M52+O52+Q52+S52 -> 0
H54: 0 | K54: =H54+J54 -> 0 | M54: 0 | O54: 0 | Q54: 0 | S54: 0 | T54: =M54+O54+Q54+S54 -> 0
H56: 0 | K56: =H56+J56 -> 0 | M56: 0 | O56: 0 | Q56: 0 | S56: 0 | T56: =M56+O56+Q56+S56 -> 0
H58: 0 | K58: =H58+J58 -> 0 | M58: 0 | O58: 0 | Q58: 0 | S58: 0 | T58: =M58+O58+Q58+S58 -> 0
H60: 0 | K60: =H60+J60 -> 0 | M60: 0 | O60: 0 | Q60: 0 | S60: 0 | T60: =M60+O60+Q60+S60 -> 0
H62: 0 | K62: =H62+J62 -> 0 | M62: 0 | O62: 0 | Q62: 0 | S62: 0 | T62: =M62+O62+Q62+S62 -> 0
H64: 0 | K64: =H64+J64 -> 0 | M64: 0 | Q64: 0 | S64: 0 | T64: =M64+O64+Q64+S64 -> 0
H66: 0 | K66: =H66+J66 -> 0 | M66: 0 | O66: 0 | Q66: 0 | S66: 0 | T66: =M66+O66+Q66+S66 -> 0
B67: Summe Umsatz pro Monat | M67: =SUM(M50:M66) -> 0 | O67: =SUM(O50:O66) -> 0 | Q67: =SUM(Q50:Q66) -> 0 | S67: =SUM(S50:S66) -> 0 | T67: =SUM(T50:U66) -> 0

Sheet Umsatz-Kalkulation-2
B2: Umsatz - Kalkulation
B5: HINWEIS: | C5: Die errechneten Umsatzwerte der Tabellen
C6: Dienstleistung
C7: Handel
C8: Produktion
C9: sind mit der Tabelle "GuV-Übersicht" verknüpft.
C11: Die Werte werden auch automatisch in die Tabelle "Liquiditätsplan" kopiert.
C13: Änderungen (auch nachträglich) werden ebenso automatisch weitergegeben.
B17: A | C17: Personalkosten
C18: die Tabelle führt zur Ermittlung von Stundenlöhnen
C19: 1. Unternehmer
C20: 2. € 520 - Kraft
C21: 3. Personal
B23: B | C23: Material
B26: C | C26: Dienstleistung
B29: D | C29: Handel
B32: E | C32: Produktion

Sheet GuV-Detailplan
B2: =Deckblatt!E15 -> . | F2: Gewinn- und Verlustplan (Rentabilitätsvorschau)
B3: Alle Beträge ohne MwSt eingeben | C3: 1. Jahr | Q3: 2. Jahr | V3: 3. Jahr
C4: Monat 1 | D4: Monat 2 | E4: Monat 3 | F4: Monat 4 | G4: Monat 5 | H4: Monat 6 | I4: Monat 7 | J4: Monat 8 | K4: Monat 9 | L4: Monat 10 | M4: Monat 11 | N4: Monat 12 | O4: Summe | P4: % | Q4: I | R4: II | S4: III | T4: IV | U4: Summe | V4: I | W4: II | X4: III | Y4: IV | Z4: Summe
B5: Umsatz netto (Σ) | C5: =SUM(C6:C11) -> 0 | D5: 0 | E5: 0 | F5: 0 | G5: 0 | H5: 0 | I5: 0 | J5: 0 | K5: 0 | L5: 0 | M5: 0 | N5: 0 | O5: =SUM(C5:N5) -> 0 | P5: =O5/O16*100 ->  | Q5: =SUM(Q6:Q11) -> 0 | R5: =SUM(R6:R11) -> 0 | S5: =SUM(S6:S11) -> 0 | T5: =SUM(T6:T11) -> 0 | U5: =SUM(Q5:T5) -> 0 | V5: =SUM(V6:V11) -> 0 | W5: =SUM(W6:W11) -> 0 | X5: =SUM(X6:X11) -> 0 | Y5: =SUM(Y6:Y11) -> 0 | Z5: =SUM(V5:Y5) -> 0
B6: (19 %) Umsatz (netto) | C6: ='Umsatz-Kalkulation-1'!$M$25 -> 0 | D6: ='Umsatz-Kalkulation-1'!$O$25 -> 0 | E6: ='Umsatz-Kalkulation-1'!$Q$25 -> 0 | F6: ='Umsatz-Kalkulation-1'!$S$25 -> 0 | G6: ='Umsatz-Kalkulation-1'!$U$25 -> 0 | H6: ='Umsatz-Kalkulation-1'!$W$25 -> 0 | I6: ='Umsatz-Kalkulation-1'!$Y$25 -> 0 | J6: ='Umsatz-Kalkulation-1'!$AA$25 -> 0 | K6: ='Umsatz-Kalkulation-1'!$AC$25 -> 0 | L6: ='Umsatz-Kalkulation-1'!$AE$25 -> 0 | M6: ='Umsatz-Kalkulation-1'!$AG$25 -> 0 | N6: ='Umsatz-Kalkulation-1'!$AI$25 -> 0 | O6: =SUM(C6:N6) -> 0 | P6: =O6/O5*100 ->  | Q6: ='Umsatz-Kalkulation-1'!$M$46 -> 0 | R6: ='Umsatz-Kalkulation-1'!$O$46 -> 0 | S6: ='Umsatz-Kalkulation-1'!$Q$46 -> 0 | T6: ='Umsatz-Kalkulation-1'!$S$46 -> 0 | U6: 0 | V6: ='Umsatz-Kalkulation-1'!$M$67 -> 0 | W6: ='Umsatz-Kalkulation-1'!$O$67 -> 0 | X6: ='Umsatz-Kalkulation-1'!$Q$67 -> 0 | Y6: ='Umsatz-Kalkulation-1'!$S$67 -> 0 | Z6: 0
B7: (19%) Umsatz Dienstleistung (netto) | C7: =Dienstleistung!$F$27 -> 0 | D7: =Dienstleistung!$H$27 -> 0 | E7: =Dienstleistung!$J$27 -> 0 | F7: =Dienstleistung!$L$27 -> 0 | G7: =Dienstleistung!$N$27 -> 0 | H7: =Dienstleistung!$P$27 -> 0 | I7: =Dienstleistung!$R$27 -> 0 | J7: =Dienstleistung!$T$27 -> 0 | K7: =Dienstleistung!$V$27 -> 0 | L7: =Dienstleistung!$X$27 -> 0 | M7: =Dienstleistung!$Z$27 -> 0 | N7: =Dienstleistung!$AB$27 -> 0 | O7: =SUM(C7:N7) -> 0 | P7: =O7/O5*100 ->  | Q7: =Dienstleistung!$F$52 -> 0 | R7: =Dienstleistung!$H$52 -> 0 | S7: =Dienstleistung!$J$52 -> 0 | T7: =Dienstleistung!$L$52 -> 0 | U7: 0 | V7: =Dienstleistung!$R$52 -> 0 | W7: =Dienstleistung!$T$52 -> 0 | X7: =Dienstleistung!$V$52 -> 0 | Y7: =Dienstleistung!$X$52 -> 0 | Z7: 0
B8: (19%) Umsatz Handel (netto) | C8: =Handel!$P$17 -> 0 | D8: =Handel!$R$17 -> 0 | E8: =Handel!$T$17 -> 0 | F8: =Handel!$V$17 -> 0 | G8: =Handel!$X$17 -> 0 | H8: =Handel!$Z$17 -> 0 | I8: =Handel!$AB$17 -> 0 | J8: =Handel!$AD$17 -> 0 | K8: =Handel!$AF$17 -> 0 | L8: =Handel!$AH$17 -> 0 | M8: =Handel!$AJ$17 -> 0 | N8: =Handel!$AL$17 -> 0 | O8: =SUM(C8:N8) -> 0 | P8: =O8/O5*100 ->  | Q8: =Handel!$P$36 -> 0 | R8: =Handel!$R$36 -> 0 | S8: =Handel!$T$36 -> 0 | T8: =Handel!$V$36 -> 0 | U8: 0 | V8: =Handel!$P$55 -> 0 | W8: =Handel!$R$55 -> 0 | X8: =Handel!$T$55 -> 0 | Y8: =Handel!$V$55 -> 0 | Z8: 0
B9: (19%) Umsatz Produktion (netto) | C9: =Produktion!$AC$17 -> 0 | D9: =Produktion!$AE$17 -> 0 | E9: =Produktion!$AG$17 -> 0 | F9: =Produktion!$AI$17 -> 0 | G9: =Produktion!$AK$17 -> 0 | H9: =Produktion!$AM$17 -> 0 | I9: =Produktion!$AO$17 -> 0 | J9: =Produktion!$AQ$17 -> 0 | K9: =Produktion!$AS$17 -> 0 | L9: =Produktion!$AU$17 -> 0 | M9: =Produktion!$AW$17 -> 0 | N9: =Produktion!$AY$17 -> 0 | O9: =SUM(C9:N9) -> 0 | P9: =O9/O5*100 ->  | Q9: =Produktion!$AG$32 -> 0 | R9: =Produktion!$AI$32 -> 0 | S9: =Produktion!$AK$32 -> 0 | T9: =Produktion!$AM$32 -> 0 | U9: 0 | V9: =Produktion!$AG$46 -> 0 | W9: =Produktion!$AI$46 -> 0 | X9: =Produktion!$AK$46 -> 0 | Y9: =Produktion!$AM$46 -> 0 | Z9: 0
B10: (19 %) NN | O10: =SUM(C10:N10) -> 0 | P10: =O10/O5*100 ->  | U10: 0 | Z10: 0
B11: ( 7 %) Umsatz Außer Haus (netto) | O11: 0 | P11: =O11/O5*100 ->  | U11: =SUM(Q11:T11) -> 0 | Z11: =SUM(V11:Y11) -> 0
B12: Sonstige betriebl. Erträge (Σ) | C12: =SUM(C13:C15) -> 0 | D12: =SUM(D13:D15) -> 0 | E12: =SUM(E13:E15) -> 0 | F12: 0 | G12: 0 | H12: 0 | I12: 0 | J12: 0 | K12: 0 | L12: 0 | M12: 0 | N12: 0 | O12: 0 | P12: =O12/O16*100 ->  | Q12: =SUM(Q13:Q15) -> 0 | R12: 0 | S12: 0 | T12: 0 | U12: =SUM(Q12:T12) -> 0 | V12: 0 | W12: =SUM(W13:W15) -> 0 | X12: =SUM(X13:X15) -> 0 | Y12: =SUM(Y13:Y15) -> 0 | Z12: =SUM(V12:Y12) -> 0
B13: Mieteinnahmen | O13: 0 | P13: =O13/O12*100 ->  | U13: =SUM(Q13:T13) -> 0 | Z13: =SUM(V13:Y13) -> 0
B14: Lizenzgebühren | O14: 0 | P14: =O14/O12*100 ->  | U14: =SUM(Q14:T14) -> 0 | Z14: =SUM(V14:Y14) -> 0
B15: Zinserträge | O15: 0 | P15: =O15/O12*100 ->  | U15: 0 | Z15: 0
B16: Betriebsertrag netto o. MwSt | C16: =C5+C12 -> 0 | D16: 0 | E16: 0 | F16: 0 | G16: 0 | H16: 0 | I16: 0 | J16: 0 | K16: 0 | L16: =L5+L12 -> 0 | M16: 0 | N16: 0 | O16: =SUM(C16:N16) -> 0 | P16: =P5+P12 ->  | Q16: 0 | R16: 0 | S16: 0 | T16: 0 | U16: 0 | V16: 0 | W16: 0 | X16: 0 | Y16: 0 | Z16: 0
B18: - Materialaufwand (Σ) | C18: =SUM(C19:C21) -> 0 | D18: 0 | E18: 0 | F18: 0 | G18: 0 | H18: 0 | I18: 0 | J18: 0 | K18: 0 | L18: 0 | M18: 0 | N18: 0 | O18: 0 | P18: =O18/O5*100 ->  | Q18: =SUM(Q19:Q21) -> 0 | R18: =SUM(R19:R21) -> 0 | S18: =SUM(S19:S21) -> 0 | T18: =SUM(T19:T21) -> 0 | U18: =SUM(Q18:T18) -> 0 | V18: =SUM(V19:V21) -> 0 | W18: =SUM(W19:W21) -> 0 | X18: =SUM(X19:X21) -> 0 | Y18: =SUM(Y19:Y21) -> 0 | Z18: =SUM(V18:Y18) -> 0
B19: (19 %) Materialkosten (netto) | O19: 0 | P19: =O19/O18*100 ->  | U19: =SUM(Q19:T19) -> 0 | Z19: =SUM(V19:Y19) -> 0
B20: ( 7 %) Materialkosten (netto) | O20: 0 | P20: =O20/O18*100 ->  | U20: =SUM(Q20:T20) -> 0 | Z20: =SUM(V20:Y20) -> 0
B21: (19 %) Fremdleistung (netto) | O21: 0 | P21: =O21/O18*100 ->  | U21: 0 | Z21: 0
B22: - Personalaufwand (Σ) | C22: =SUM(C23:C26) -> 0 | D22: =SUM(D23:D26) -> 0 | E22: 0 | F22: 0 | G22: 0 | H22: 0 | I22: 0 | J22: 0 | K22: 0 | L22: 0 | M22: 0 | N22: 0 | O22: 0 | P22: =O22/O5*100 ->  | Q22: 0 | R22: 0 | S22: 0 | T22: 0 | U22: =SUM(Q22:T22) -> 0 | V22: 0 | W22: 0 | X22: 0 | Y22: 0 | Z22: =SUM(V22:Y22) -> 0
B23: Unternehmerlohn (Geschäftsführergehalt) | C23: =IF(C113=1,C114,"x") -> x | D23: x | E23: x | F23: x | G23: x | H23: x | I23: x | J23: x | K23: x | L23: x | M23: x | N23: x | O23: 0 | P23: =O23/O22*100 ->  | Q23: =IF(Q113=1,Q114,"x") -> x | R23: x | S23: x | T23: x | U23: =SUM(Q23:T23) -> 0 | V23: x | W23: x | X23: x | Y23: x | Z23: =SUM(V23:Y23) -> 0
B24: Personalkosten | O24: 0 | P24: =O24/O22*100 ->  | U24: =SUM(Q24:T24) -> 0 | Z24: =SUM(V24:Y24) -> 0
B25: Soziale Abgaben (Arbeitgeberanteil) | C25: =C24*C106+C115 -> 0 | D25: =D24*C106+D115 -> 0 | E25: =E24*C106+E115 -> 0 | F25: =F24*C106+F115 -> 0 | G25: =G24*C106+G115 -> 0 | H25: =H24*C106+H115 -> 0 | I25: =I24*C106+I115 -> 0 | J25: =J24*C106+J115 -> 0 | K25: =K24*C106+K115 -> 0 | L25: =L24*C106+L115 -> 0 | M25: =M24*C106+M115 -> 0 | N25: =N24*C106+N115 -> 0 | O25: 0 | P25: =O25/O22*100 ->  | Q25: =Q24*C106+Q115 -> 0 | R25: =R24*C106+R115 -> 0 | S25: =S24*C106+S115 -> 0 | T25: =T24*C106+T115 -> 0 | U25: =SUM(Q25:T25) -> 0 | V25: =V24*C106+V115 -> 0 | W25: =W24*C106+W115 -> 0 | X25: =X24*C106+X115 -> 0 | Y25: =Y24*C106+Y115 -> 0 | Z25: =SUM(V25:Y25) -> 0
B26: freiwillige Leistungen | O26: 0 | P26: =O26/O22*100 ->  | U26: 0 | Z26: 0
B27: - Abschreibungen | C27: ='Invest- u. AfA-Plan'!D47 -> 0 | D27: ='Invest- u. AfA-Plan'!E47 -> 0 | E27: ='Invest- u. AfA-Plan'!F47 -> 0 | F27: ='Invest- u. AfA-Plan'!G47 -> 0 | G27: ='Invest- u. AfA-Plan'!H47 -> 0 | H27: ='Invest- u. AfA-Plan'!I47 -> 0 | I27: ='Invest- u. AfA-Plan'!J47 -> 0 | J27: ='Invest- u. AfA-Plan'!K47 -> 0 | K27: ='Invest- u. AfA-Plan'!L47 -> 0 | L27: ='Invest- u. AfA-Plan'!M47 -> 0 | M27: ='Invest- u. AfA-Plan'!N47 -> 0 | N27: ='Invest- u. AfA-Plan'!O47 -> 0 | O27: 0 | P27: =O27/O5*100 ->  | Q27: ='Invest- u. AfA-Plan'!Q47 -> 0 | R27: ='Invest- u. AfA-Plan'!R47 -> 0 | S27: ='Invest- u. AfA-Plan'!S47 -> 0 | T27: ='Invest- u. AfA-Plan'!T47 -> 0 | U27: ='Invest- u. AfA-Plan'!U47 -> 0 | V27: ='Invest- u. AfA-Plan'!V47 -> 0 | W27: ='Invest- u. AfA-Plan'!W47 -> 0 | X27: ='Invest- u. AfA-Plan'!X47 -> 0 | Y27: ='Invest- u. AfA-Plan'!Y47 -> 0 | Z27: ='Invest- u. AfA-Plan'!Z47 -> 0
B28: - Zinsaufwand | C28: ='Zins-und Tilg.-Plan'!C38 -> 0 | D28: ='Zins-und Tilg.-Plan'!D38 -> 0 | E28: ='Zins-und Tilg.-Plan'!E38 -> 0 | F28: ='Zins-und Tilg.-Plan'!F38 -> 0 | G28: ='Zins-und Tilg.-Plan'!G38 -> 0 | H28: ='Zins-und Tilg.-Plan'!H38 -> 0 | I28: ='Zins-und Tilg.-Plan'!I38 -> 0 | J28: ='Zins-und Tilg.-Plan'!J38 -> 0 | K28: ='Zins-und Tilg.-Plan'!K38 -> 0 | L28: ='Zins-und Tilg.-Plan'!L38 -> 0 | M28: ='Zins-und Tilg.-Plan'!M38 -> 0 | N28: ='Zins-und Tilg.-Plan'!N38 -> 0 | O28: 0 | P28: =O28/O5*100 ->  | Q28: ='Zins-und Tilg.-Plan'!O38 -> 0 | R28: ='Zins-und Tilg.-Plan'!P38 -> 0 | S28: ='Zins-und Tilg.-Plan'!Q38 -> 0 | T28: ='Zins-und Tilg.-Plan'!R38 -> 0 | U28: =SUM(Q28:T28) -> 0 | V28: ='Zins-und Tilg.-Plan'!S38 -> 0 | W28: ='Zins-und Tilg.-Plan'!T38 -> 0 | X28: ='Zins-und Tilg.-Plan'!U38 -> 0 | Y28: ='Zins-und Tilg.-Plan'!V38 -> 0 | Z28: =SUM(V28:Y28) -> 0
B29: - Sonst.betriebl.Aufwand (Σ) | C29: =SUM(C30:C48) -> 0 | D29: 0 | E29: 0 | F29: 0 | G29: 0 | H29: 0 | I29: 0 | J29: 0 | K29: 0 | L29: 0 | M29: 0 | N29: 0 | O29: 0 | P29: =O29/O5*100 ->  | Q29: =SUM(Q30:Q48) -> 0 | R29: =SUM(R30:R48) -> 0 | S29: =SUM(S30:S48) -> 0 | T29: =SUM(T30:T48) -> 0 | U29: =SUM(Q29:T29) -> 0 | V29: =SUM(V30:V48) -> 0 | W29: =SUM(W30:W48) -> 0 | X29: =SUM(X30:X48) -> 0 | Y29: =SUM(Y30:Y48) -> 0 | Z29: =SUM(V29:Y29) -> 0
B30: Gründungskosten | C30: =Kapitalbedarf!$C$29 -> 0 | O30: 0 | U30: =SUM(Q30:T30) -> 0 | Z30: =SUM(V30:Y30) -> 0
B31: Mieten | O31: 0 | P31: =O31/O5*100 ->  | U31: =SUM(Q31:T31) -> 0 | Z31: =SUM(V31:Y31) -> 0
B32: Strom, Gas, Wasser Heizung | O32: 0 | P32: =O32/O5*100 ->  | U32: =SUM(Q32:T32) -> 0 | Z32: =SUM(V32:Y32) -> 0
B33: Versicherungen | O33: 0 | P33: =O33/O5*100 ->  | U33: 0 | Z33: 0
B34: Bürobedarf | O34: 0 | P34: =O34/O5*100 ->  | U34: 0 | Z34: 0
B35: Telefon, Fax, Internet | O35: 0 | P35: =O35/O5*100 ->  | U35: 0 | Z35: 0
B36: Internetdomain und Homepagepflege | O36: 0 | P36: =O36/O5*100 ->  | U36: 0 | Z36: 0
B37: Reparatur u. Instandhaltung | O37: 0 | P37: =O37/O5*100 ->  | U37: 0 | Z37: 0
B38: Rundfunk ARD, ZDF, DRadio (4 x 55,08) | O38: 0 | P38: =O38/O5*100 ->  | U38: 0 | Z38: 0
B39: Porto | O39: 0 | P39: =O39/O5*100 ->  | U39: 0 | Z39: 0
B40: Gebühren / Beiträge | O40: 0 | P40: =O40/O5*100 ->  | U40: 0 | Z40: 0
B41: Kraftfahrzeugkosten | O41: 0 | P41: =O41/O5*100 ->  | U41: 0 | Z41: 0
B42: Kfz. Versicherung | O42: 0 | P42: =O42/O5*100 ->  | U42: 0 | Z42: 0
B43: Kfz. Steuern | O43: 0 | P43: =O43/O5*100 ->  | U43: 0 | Z43: 0
B44: Reisekosten / Öffentliche Verkehrsmittel | O44: 0 | P44: =O44/O5*100 ->  | U44: 0 | Z44: 0
B45: Werbung, Repräsentation | O45: 0 | P45: =O45/O5*100 ->  | U45: 0 | Z45: 0
B46: Fortbildung / Literatur | O46: 0 | P46: =O46/O5*100 ->  | U46: 0 | Z46: 0
B47: Rechts- und Beratungskosten | O47: 0 | P47: =O47/O5*100 ->  | U47: 0 | Z47: 0
B48: Sonstiges | O48: 0 | P48: =O48/O5*100 ->  | U48: 0 | Z48: 0
B49: Betriebsaufwand | C49: =C18+C22+C27+C28+C29 -> 0 | D49: 0 | E49: 0 | F49: 0 | G49: 0 | H49: 0 | I49: 0 | J49: 0 | K49: 0 | L49: 0 | M49: 0 | N49: 0 | O49: =SUM(C49:N49) -> 0 | P49: =O49/O5*100 ->  | Q49: =Q18+Q22+Q27+Q28+Q29 -> 0 | R49: =R18+R22+R27+R28+R29 -> 0 | S49: =S18+S22+S27+S28+S29 -> 0 | T49: =T18+T22+T27+T28+T29 -> 0 | U49: =SUM(Q49:T49) -> 0 | V49: =V18+V22+V27+V28+V29 -> 0 | W49: =W18+W22+W27+W28+W29 -> 0 | X49: =X18+X22+X27+X28+X29 -> 0 | Y49: =Y18+Y22+Y27+Y28+Y29 -> 0 | Z49: =SUM(V49:Y49) -> 0
B51: Betriebsergebnis | C51: =C16-C49 -> 0 | D51: 0 | E51: 0 | F51: 0 | G51: 0 | H51: 0 | I51: 0 | J51: 0 | K51: 0 | L51: 0 | M51: 0 | N51: 0 | O51: =SUM(C51:N51) -> 0 | P51: =O51/O5*100 ->  | Q51: =Q16-Q49 -> 0 | R51: =R16-R49 -> 0 | S51: =S16-S49 -> 0 | T51: =T16-T49 -> 0 | U51: =SUM(Q51:T51) -> 0 | V51: =V16-V49 -> 0 | W51: =W16-W49 -> 0 | X51: =X16-X49 -> 0 | Y51: =Y16-Y49 -> 0 | Z51: =SUM(V51:Y51) -> 0
B53: Öffentl. Zuschüsse (Σ) | C53: =SUM(C54:C55) -> 0 | D53: =SUM(D54:D55) -> 0 | E53: 0 | F53: 0 | G53: 0 | H53: 0 | I53: 0 | J53: 0 | K53: 0 | L53: 0 | M53: 0 | N53: 0 | O53: =SUM(O54:O55) -> 0 | P53: =O53/O5*100 ->  | Q53: 0 | R53: 0 | S53: 0 | T53: 0 | U53: =SUM(Q53:T53) -> 0 | V53: 0 | W53: =SUM(W54:W55) -> 0 | X53: =SUM(X54:X55) -> 0 | Y53: =SUM(Y54:Y55) -> 0 | Z53: =SUM(V53:Y53) -> 0
B54: Investitionszulagen | O54: =SUM(C54:N54) -> 0 | P54: =O54/O5*100 ->  | U54: =SUM(Q54:T54) -> 0 | Z54: =SUM(V54:Y54) -> 0
B55: Zuschüsse | O55: =SUM(C55:N55) -> 0 | P55: =O55/O5*100 ->  | U55: =SUM(Q55:T55) -> 0 | Z55: =SUM(V55:Y55) -> 0
B57: Gewerbesteuer | C57: =O57/12 -> 0 | D57: =O57/12 -> 0 | E57: =O57/12 -> 0 | F57: =O57/12 -> 0 | G57: =O57/12 -> 0 | H57: =O57/12 -> 0 | I57: =O57/12 -> 0 | J57: =O57/12 -> 0 | K57: =O57/12 -> 0 | L57: =O57/12 -> 0 | M57: =O57/12 -> 0 | N57: =O57/12 -> 0 | O57: =O99 -> 0 | P57: =O57/O5*100 ->  | Q57: =U57/4 -> 0 | R57: =U57/4 -> 0 | S57: =U57/4 -> 0 | T57: =U57/4 -> 0 | U57: =U99 -> 0 | V57: =Z57/4 -> 0 | W57: =Z57/4 -> 0 | X57: =Z57/4 -> 0 | Y57: =Z57/4 -> 0 | Z57: =Z99 -> 0
B58: Körperschaftssteuer (15 % + 5,5 %) | C58: =C102 -> 0 | D58: =D102 -> 0 | E58: 0 | F58: 0 | G58: 0 | H58: 0 | I58: 0 | J58: 0 | K58: 0 | L58: 0 | M58: 0 | N58: 0 | O58: =O102 -> 0 | P58: =O58/O5*100 ->  | Q58: =Q102 -> 0 | R58: =R102 -> 0 | S58: =S102 -> 0 | T58: =T102 -> 0 | U58: =SUM(Q58:T58) -> 0 | V58: =V102 -> 0 | W58: =W102 -> 0 | X58: =X102 -> 0 | Y58: =Y102 -> 0 | Z58: =SUM(V58:Y58) -> 0
B60: Ausgewiesenes Ergebnis | C60: =C51+C53-C57-C58 -> 0 | D60: =D51+D53-D57-D58 -> 0 | E60: 0 | F60: 0 | G60: 0 | H60: 0 | I60: 0 | J60: 0 | K60: 0 | L60: 0 | M60: 0 | N60: 0 | O60: =SUM(C60:N60) -> 0 | P60: =O60/O5*100 ->  | Q60: =Q51+Q53-Q57-Q58 -> 0 | R60: =R51+R53-R57-R58 -> 0 | S60: =S51+S53-S57-S58 -> 0 | T60: =T51+T53-T57-T58 -> 0 | U60: =SUM(Q60:T60) -> 0 | V60: =V51+V53-V57-V58 -> 0 | W60: =W51+W53-W57-W58 -> 0 | X60: =X51+X53-X57-X58 -> 0 | Y60: =Y51+Y53-Y57-Y58 -> 0 | Z60: =SUM(V60:Y60) -> 0
B62: =IF(C121="x",C127,"Unternehmerlohn") -> Unternehmerlohn | C62: =IF(C113=1,"x",C114) -> 0 | D62: =IF(D113=1,"x",D114) -> 0 | E62: =IF(E113=1,"x",E114) -> 0 | F62: 0 | G62: 0 | H62: 0 | I62: 0 | J62: 0 | K62: 0 | L62: 0 | M62: 0 | N62: 0 | O62: =SUM(C62:N62) -> 0 | Q62: =IF(Q113=1,"x",Q114) -> 0 | R62: 0 | S62: 0 | T62: 0 | U62: =SUM(Q62:T62) -> 0 | V62: 0 | W62: 0 | X62: 0 | Y62: 0 | Z62: =SUM(V62:Y62) -> 0
B63: Überschuss / Fehlbetrag | C63: =IF(B121="x","x",C88) -> 0 | D63: =IF(C121="x","x",D88) -> 0 | E63: =IF(C121="x","x",E88) -> 0 | F63: =IF(C121="x","x",F88) -> 0 | G63: =IF(C121="x","x",G88) -> 0 | H63: =IF(C121="x","x",H88) -> 0 | I63: =IF(C121="x","x",I88) -> 0 | J63: =IF(C121="x","x",J88) -> 0 | K63: =IF(C121="x","x",K88) -> 0 | L63: =IF(C121="x","x",L88) -> 0 | M63: =IF(C121="x","x",M88) -> 0 | N63: =IF(C121="x","x",N88) -> 0 | O63: =IF(C121="x","x",O88) -> 0 | Q63: =IF(C121="x","x",Q88) -> 0 | R63: =IF(C121="x","x",R88) -> 0 | S63: =IF(C121="x","x",S88) -> 0 | T63: =IF(C121="x","x",T88) -> 0 | U63: =IF(C121="x","x",U88) -> 0 | V63: =IF(C121="x","x",V88) -> 0 | W63: =IF(C121="x","x",W88) -> 0 | X63: =IF(C121="x","x",X88) -> 0 | Y63: =IF(C121="x","x",Y88) -> 0 | Z63: =IF(C121="x","x",Z88) -> 0
B65: Soziale Abgaben - Aufschlag | E65: =IF(C101=1,C118,"") -> 
B66: Normal Beschäftigte (Pauschale) | C66: 25% | E66: =IF(C101=1,C119,"") -> 
E67: =IF(C121="x",C125,"") -> 
E68: =IF(C121="x",C126,"") -> 
C88: =IF(C62="x","x",C60-C62) -> 0 | D88: 0 | E88: 0 | F88: 0 | G88: 0 | H88: 0 | I88: 0 | J88: 0 | K88: 0 | L88: 0 | M88: 0 | N88: 0 | O88: =O60-O62 -> 0 | Q88: =IF(Q62="x","x",Q60-Q62) -> 0 | R88: =IF(R62="x","x",R60-R62) -> 0 | S88: =IF(S62="x","x",S60-S62) -> 0 | T88: =IF(T62="x","x",T60-T62) -> 0 | U88: =U60-U62 -> 0 | V88: =IF(V62="x","x",V60-V62) -> 0 | W88: =IF(W62="x","x",W60-W62) -> 0 | X88: =IF(X62="x","x",X60-X62) -> 0 | Y88: =IF(Y62="x","x",Y60-Y62) -> 0 | Z88: =Z60-Z62 -> 0
B91: Gewerbesteuer (Einzelunternehmen) | C91: =Deckblatt!$G$22 -> 2 | D91: =Deckblatt!$G$22 -> 2 | E91: =Deckblatt!$G$22 -> 2 | F91: =Deckblatt!$G$22 -> 2 | G91: =Deckblatt!$G$22 -> 2 | H91: =Deckblatt!$G$22 -> 2 | I91: =Deckblatt!$G$22 -> 2 | J91: =Deckblatt!$G$22 -> 2 | K91: =Deckblatt!$G$22 -> 2 | L91: =Deckblatt!$G$22 -> 2 | M91: =Deckblatt!$G$22 -> 2 | N91: =Deckblatt!$G$22 -> 2 | O91: =Deckblatt!$G$22 -> 2 | Q91: =Deckblatt!$G$22 -> 2 | R91: =Deckblatt!$G$22 -> 2 | S91: =Deckblatt!$G$22 -> 2 | T91: =Deckblatt!$G$22 -> 2 | U91: =Deckblatt!$G$22 -> 2 | V91: =Deckblatt!$G$22 -> 2 | W91: =Deckblatt!$G$22 -> 2 | X91: =Deckblatt!$G$22 -> 2 | Y91: =Deckblatt!$G$22 -> 2 | Z91: =Deckblatt!$G$22 -> 2
C92: =IF(C91=1,C93,0) -> 0 | D92: 0 | E92: 0 | F92: 0 | G92: 0 | H92: 0 | I92: 0 | J92: 0 | K92: 0 | L92: 0 | M92: 0 | N92: 0 | O92: 0 | Q92: =IF(Q91=1,Q93,0) -> 0 | R92: =IF(R91=1,R93,0) -> 0 | S92: 0 | T92: 0 | U92: 0 | V92: =IF(V91=1,V93,0) -> 0 | W92: =IF(W91=1,W93,0) -> 0 | X92: 0 | Y92: 0 | Z92: 0
C93: =IF(C51>=50000,C51-24500,0) -> 0 | D93: =IF(D51>=50000,D51-24500,0) -> 0 | E93: =IF(E51>=50000,E51-24500,0) -> 0 | F93: 0 | G93: 0 | H93: 0 | I93: 0 | J93: 0 | K93: 0 | L93: 0 | M93: 0 | N93: 0 | O93: 0 | Q93: =IF(Q51>=50000,Q51-24500,0) -> 0 | R93: =IF(R51>=50000,R51-24500,0) -> 0 | S93: 0 | T93: 0 | U93: 0 | V93: 0 | W93: 0 | X93: 0 | Y93: 0 | Z93: 0
B94: Messbetrag | C94: =IF(C92>0,C93*0.035,0) -> 0 | D94: =IF(D92>0,D93*0.035,0) -> 0 | E94: =IF(E92>0,E93*0.035,0) -> 0 | F94: 0 | G94: 0 | H94: 0 | I94: 0 | J94: 0 | K94: 0 | L94: 0 | M94: 0 | N94: 0 | O94: 0 | Q94: =IF(Q92>0,Q93*0.035,0) -> 0 | R94: 0 | S94: 0 | T94: 0 | U94: 0 | V94: =IF(V92>0,V93*0.035,0) -> 0 | W94: 0 | X94: 0 | Y94: 0 | Z94: 0
B95: Steuer | C95: =C94*4.1 -> 0 | D95: =D94*4.1 -> 0 | E95: =E94*4.1 -> 0 | F95: 0 | G95: 0 | H95: 0 | I95: 0 | J95: 0 | K95: 0 | L95: 0 | M95: 0 | N95: 0 | O95: 0 | Q95: =Q94*4.1 -> 0 | R95: 0 | S95: 0 | T95: 0 | U95: 0 | V95: =V94*4.1 -> 0 | W95: 0 | X95: 0 | Y95: 0 | Z95: 0
B96: Steuer- eff. | C96: =C95 -> 0 | D96: =D95 -> 0 | E96: 0 | F96: 0 | G96: 0 | H96: 0 | I96: 0 | J96: 0 | K96: 0 | L96: 0 | M96: 0 | N96: 0 | O96: 0 | Q96: =Q95 -> 0 | R96: =R95 -> 0 | S96: 0 | T96: 0 | U96: 0 | V96: 0 | W96: 0 | X96: 0 | Y96: 0 | Z96: 0
B97: Gewerbesteuer (Kapitalges.) | C97: =C51*0.035*4.1 -> 0 | D97: =D51*0.035*4.1 -> 0 | E97: =E51*0.035*4.1 -> 0 | F97: 0 | G97: 0 | H97: 0 | I97: 0 | J97: 0 | K97: 0 | L97: 0 | M97: 0 | N97: 0 | O97: 0 | Q97: =Q51*0.035*4.1 -> 0 | R97: =R51*0.035*4.1 -> 0 | S97: 0 | T97: 0 | U97: 0 | V97: 0 | W97: 0 | X97: 0 | Y97: 0 | Z97: 0
B98: (Hinweis: bei Kapitalges. entfällt Minderung von 24.500)
C99: =IF(C110<0,0,C110) -> 0 | D99: 0 | E99: 0 | F99: 0 | G99: 0 | H99: 0 | I99: 0 | J99: 0 | K99: 0 | L99: 0 | M99: 0 | N99: 0 | O99: =IF(O110<0,0,O110) -> 0 | Q99: =IF(Q110<0,0,Q110) -> 0 | R99: =IF(R110<0,0,R110) -> 0 | S99: 0 | T99: 0 | U99: 0 | V99: 0 | W99: 0 | X99: 0 | Y99: 0 | Z99: 0
B101: Körperschaftssteuer | C101: =IF(C121="x",0,Deckblatt!$C$83) -> FALSE | D101: =IF(C121="x",0,Deckblatt!$C$83) -> FALSE | E101: =IF(C121="x",0,Deckblatt!$C$83) -> FALSE | F101: =IF(C121="x",0,Deckblatt!$C$83) -> FALSE | G101: =IF(C121="x",0,Deckblatt!$C$83) -> FALSE | H101: =IF(C121="x",0,Deckblatt!$C$83) -> FALSE | I101: =IF(C121="x",0,Deckblatt!$C$83) -> FALSE | J101: =IF(C121="x",0,Deckblatt!$C$83) -> FALSE | K101: =IF(C121="x",0,Deckblatt!$C$83) -> FALSE | L101: =IF(C121="x",0,Deckblatt!$C$83) -> FALSE | M101: =IF(C121="x",0,Deckblatt!$C$83) -> FALSE | N101: =IF(C121="x",0,Deckblatt!$C$83) -> FALSE | O101: =IF(C121="x",0,Deckblatt!$C$83) -> FALSE | Q101: =IF(C121="x",0,Deckblatt!$C$83) -> FALSE | R101: =IF(C121="x",0,Deckblatt!$C$83) -> FALSE | S101: =IF(C121="x",0,Deckblatt!$C$83) -> FALSE | T101: =IF(C121="x",0,Deckblatt!$C$83) -> FALSE | U101: =IF(C121="x",0,Deckblatt!$C$83) -> FALSE | V101: =IF(C121="x",0,Deckblatt!$C$83) -> FALSE | W101: =IF(C121="x",0,Deckblatt!$C$83) -> FALSE | X101: =IF(C121="x",0,Deckblatt!$C$83) -> FALSE | Y101: =IF(C121="x",0,Deckblatt!$C$83) -> FALSE | Z101: =IF(C121="x",0,Deckblatt!$C$83) -> FALSE
C102: =IF(C103<0,0,C103) -> 0 | D102: =IF(D103<0,0,D103) -> 0 | E102: =IF(E103<0,0,E103) -> 0 | F102: 0 | G102: 0 | H102: 0 | I102: 0 | J102: 0 | K102: 0 | L102: 0 | M102: 0 | N102: 0 | O102: 0 | Q102: =IF(Q103<0,0,Q103) -> 0 | R102: =IF(R103<0,0,R103) -> 0 | S102: =IF(S103<0,0,S103) -> 0 | T102: =IF(T103<0,0,T103) -> 0 | U102: =IF(U103<0,0,U103) -> 0 | V102: =IF(V103<0,0,V103) -> 0 | W102: =IF(W103<0,0,W103) -> 0 | X102: =IF(X103<0,0,X103) -> 0 | Y102: =IF(Y103<0,0,Y103) -> 0 | Z102: =IF(Z103<0,0,Z103) -> 0
C103: =IF(C101=1,C51*0.15825,0) -> 0 | D103: 0 | E103: 0 | F103: 0 | G103: 0 | H103: 0 | I103: 0 | J103: 0 | K103: 0 | L103: 0 | M103: 0 | N103: 0 | O103: 0 | Q103: =IF(Q101=1,Q51*0.15825,0) -> 0 | R103: 0 | S103: 0 | T103: 0 | U103: 0 | V103: 0 | W103: 0 | X103: 0 | Y103: 0 | Z103: 0
B104: Steuern | C104: =C57+C58 -> 0 | D104: =D57+D58 -> 0 | E104: =E57+E58 -> 0 | F104: 0 | G104: 0 | H104: 0 | I104: 0 | J104: 0 | K104: 0 | L104: 0 | M104: 0 | N104: 0 | O104: 0 | Q104: =Q57+Q58 -> 0 | R104: =R57+R58 -> 0 | S104: 0 | T104: 0 | U104: 0 | V104: 0 | W104: 0 | X104: 0 | Y104: 0 | Z104: 0
B106: Soziale Abgaben - Aufschlag | C106: =IF(C66>1%,C66) -> 25%
C110: =IF(C101=1,C97,C96) -> 0 | D110: 0 | E110: 0 | F110: 0 | G110: 0 | H110: 0 | I110: 0 | J110: 0 | K110: 0 | L110: 0 | M110: 0 | N110: 0 | O110: 0 | Q110: =IF(Q101=1,Q97,Q96) -> 0 | R110: 0 | S110: 0 | T110: 0 | U110: 0 | V110: 0 | W110: 0 | X110: 0 | Y110: 0 | Z110: 0
B113: Kapitalgesellschaft | C113: =C101 -> FALSE | D113: FALSE | E113: FALSE | F113: FALSE | G113: FALSE | H113: FALSE | I113: FALSE | J113: FALSE | K113: FALSE | L113: FALSE | M113: FALSE | N113: FALSE | O113: FALSE | Q113: FALSE | R113: FALSE | S113: FALSE | T113: FALSE | U113: FALSE | V113: FALSE | W113: FALSE | X113: FALSE | Y113: FALSE | Z113: FALSE
B114: Unternehmerlohn | C114: =Unternehmerlohn!$C$51 -> 0 | D114: =Unternehmerlohn!$C$51 -> 0 | E114: =Unternehmerlohn!$C$51 -> 0 | F114: =Unternehmerlohn!$C$51 -> 0 | G114: =Unternehmerlohn!$C$51 -> 0 | H114: =Unternehmerlohn!$C$51 -> 0 | I114: =Unternehmerlohn!$C$51 -> 0 | J114: =Unternehmerlohn!$C$51 -> 0 | K114: =Unternehmerlohn!$C$51 -> 0 | L114: =Unternehmerlohn!$C$51 -> 0 | M114: =Unternehmerlohn!$C$51 -> 0 | N114: =Unternehmerlohn!$C$51 -> 0 | O114: =Unternehmerlohn!$C$51 -> 0 | Q114: =Unternehmerlohn!$C$51*3 -> 0 | R114: =Unternehmerlohn!$C$51*3 -> 0 | S114: =Unternehmerlohn!$C$51*3 -> 0 | T114: =Unternehmerlohn!$C$51*3 -> 0 | V114: =Unternehmerlohn!$C$51*3 -> 0 | W114: =Unternehmerlohn!$C$51*3 -> 0 | X114: =Unternehmerlohn!$C$51*3 -> 0 | Y114: =Unternehmerlohn!$C$51*3 -> 0
C115: =IF(C113=1,C114*C106,0) -> 0 | D115: =IF(D113=1,D114*C106,0) -> 0 | E115: =IF(E113=1,E114*C106,0) -> 0 | F115: =IF(F113=1,F114*C106,0) -> 0 | G115: =IF(G113=1,G114*C106,0) -> 0 | H115: =IF(H113=1,H114*C106,0) -> 0 | I115: =IF(I113=1,I114*C106,0) -> 0 | J115: =IF(J113=1,J114*C106,0) -> 0 | K115: =IF(K113=1,K114*C106,0) -> 0 | L115: =IF(L113=1,L114*C106,0) -> 0 | M115: =IF(M113=1,M114*C106,0) -> 0 | N115: =IF(N113=1,N114*C106,0) -> 0 | O115: =IF(O113=1,O114*C106,0) -> 0 | Q115: =IF(Q113=1,Q114*C106,0) -> 0 | R115: =IF(R113=1,R114*C106,0) -> 0 | S115: =IF(S113=1,S114*C106,0) -> 0 | T115: =IF(T113=1,T114*C106,0) -> 0 | V115: =IF(V113=1,V114*C106,0) -> 0 | W115: =IF(W113=1,W114*C106,0) -> 0 | X115: =IF(X113=1,X114*C106,0) -> 0 | Y115: =IF(Y113=1,Y114*C106,0) -> 0
C116: =SUM(C114:C115) -> 0
C118: Bei Kapitalgesellschaften ist der Unternehmerlohn als Bruttogehalt im Personalaufwand enthalten.
C119: Deshalb entfallen die Angaben in den Zeilen "Unternehmerlohn" und "Gewinn / Verlust"
B121: =IF(C121="x",0,Deckblatt!$C$83) -> FALSE | C121: =Unternehmerlohn!$D$54 -> y
C123: =IF(C121="x",0,Deckblatt!$C$83) -> FALSE
C125: Gültig nur für Kapitalgesellschaften wenn der Unternehmerlohn in den Personalkosten bereits enthalten ist !
C126: Deshalb "x" oben in der Zeile "Unternehmerlohn (Geschäftsführergehalt)
C127: Unternehmerlohn (nur zur Info !)

Sheet Liquiditätsplan
B2: =Deckblatt!E15 -> . | F2: Liquiditätsplan
B3: Alle Beträge ohne MwSt. | C3: 1. Jahr
C4: Monat 1 | D4: Monat 2 | E4: Monat 3 | F4: Monat 4 | G4: Monat 5 | H4: Monat 6 | I4: Monat 7 | J4: Monat 8 | K4: Monat 9 | L4: Monat 10 | M4: Monat 11 | N4: Monat 12 | O4: Summe
B5: Umsatzerlöse / Einzahlungen (Σ) | C5: =SUM(C6:C11) -> 0 | D5: 0 | E5: 0 | F5: 0 | G5: 0 | H5: 0 | I5: 0 | J5: 0 | K5: 0 | L5: 0 | M5: 0 | N5: 0 | O5: =SUM(C5:N5) -> 0
B6: ='GuV-Detailplan'!B6 -> (19 %) Umsatz (netto) | C6: ='GuV-Detailplan'!C6 -> 0 | D6: ='GuV-Detailplan'!D6 -> 0 | E6: ='GuV-Detailplan'!E6 -> 0 | F6: ='GuV-Detailplan'!F6 -> 0 | G6: ='GuV-Detailplan'!G6 -> 0 | H6: ='GuV-Detailplan'!H6 -> 0 | I6: ='GuV-Detailplan'!I6 -> 0 | J6: ='GuV-Detailplan'!J6 -> 0 | K6: ='GuV-Detailplan'!K6 -> 0 | L6: ='GuV-Detailplan'!L6 -> 0 | M6: ='GuV-Detailplan'!M6 -> 0 | N6: ='GuV-Detailplan'!N6 -> 0 | O6: 0
B7: (19%) Umsatz Dienstleistung netto | C7: ='GuV-Detailplan'!C7 -> 0 | D7: ='GuV-Detailplan'!D7 -> 0 | E7: ='GuV-Detailplan'!E7 -> 0 | F7: ='GuV-Detailplan'!F7 -> 0 | G7: ='GuV-Detailplan'!G7 -> 0 | H7: ='GuV-Detailplan'!H7 -> 0 | I7: ='GuV-Detailplan'!I7 -> 0 | J7: ='GuV-Detailplan'!J7 -> 0 | K7: ='GuV-Detailplan'!K7 -> 0 | L7: ='GuV-Detailplan'!L7 -> 0 | M7: ='GuV-Detailplan'!M7 -> 0 | N7: ='GuV-Detailplan'!N7 -> 0 | O7: 0
B8: (19%) Umsatz Handel netto | C8: ='GuV-Detailplan'!C8 -> 0 | D8: ='GuV-Detailplan'!D8 -> 0 | E8: ='GuV-Detailplan'!E8 -> 0 | F8: ='GuV-Detailplan'!F8 -> 0 | G8: ='GuV-Detailplan'!G8 -> 0 | H8: ='GuV-Detailplan'!H8 -> 0 | I8: ='GuV-Detailplan'!I8 -> 0 | J8: ='GuV-Detailplan'!J8 -> 0 | K8: ='GuV-Detailplan'!K8 -> 0 | L8: ='GuV-Detailplan'!L8 -> 0 | M8: ='GuV-Detailplan'!M8 -> 0 | N8: ='GuV-Detailplan'!N8 -> 0 | O8: 0
B9: (19%) Umsatz Produktion netto | C9: ='GuV-Detailplan'!C9 -> 0 | D9: ='GuV-Detailplan'!D9 -> 0 | E9: ='GuV-Detailplan'!E9 -> 0 | F9: ='GuV-Detailplan'!F9 -> 0 | G9: ='GuV-Detailplan'!G9 -> 0 | H9: ='GuV-Detailplan'!H9 -> 0 | I9: ='GuV-Detailplan'!I9 -> 0 | J9: ='GuV-Detailplan'!J9 -> 0 | K9: ='GuV-Detailplan'!K9 -> 0 | L9: ='GuV-Detailplan'!L9 -> 0 | M9: ='GuV-Detailplan'!M9 -> 0 | N9: ='GuV-Detailplan'!N9 -> 0 | O9: 0
B10: ='GuV-Detailplan'!B10 -> (19 %) NN | C10: ='GuV-Detailplan'!$C$10 -> 0 | D10: ='GuV-Detailplan'!D10 -> 0 | E10: ='GuV-Detailplan'!E10 -> 0 | F10: ='GuV-Detailplan'!F10 -> 0 | G10: ='GuV-Detailplan'!G10 -> 0 | H10: ='GuV-Detailplan'!H10 -> 0 | I10: ='GuV-Detailplan'!I10 -> 0 | J10: ='GuV-Detailplan'!J10 -> 0 | K10: ='GuV-Detailplan'!K10 -> 0 | L10: ='GuV-Detailplan'!L10 -> 0 | M10: ='GuV-Detailplan'!M10 -> 0 | N10: ='GuV-Detailplan'!N10 -> 0 | O10: 0
B11: ='GuV-Detailplan'!B11 -> ( 7 %) Umsatz Außer Haus (netto) | C11: ='GuV-Detailplan'!C11 -> 0 | D11: ='GuV-Detailplan'!D11 -> 0 | E11: ='GuV-Detailplan'!E11 -> 0 | F11: ='GuV-Detailplan'!F11 -> 0 | G11: ='GuV-Detailplan'!G11 -> 0 | H11: ='GuV-Detailplan'!H11 -> 0 | I11: ='GuV-Detailplan'!I11 -> 0 | J11: ='GuV-Detailplan'!J11 -> 0 | K11: ='GuV-Detailplan'!K11 -> 0 | L11: ='GuV-Detailplan'!L11 -> 0 | M11: ='GuV-Detailplan'!M11 -> 0 | N11: ='GuV-Detailplan'!N11 -> 0 | O11: 0
B12: ='GuV-Detailplan'!B12 -> Sonstige betriebl. Erträge (Σ) | C12: =SUM(C13:C15) -> 0 | D12: =SUM(D13:D15) -> 0 | E12: 0 | F12: 0 | G12: 0 | H12: 0 | I12: 0 | J12: 0 | K12: 0 | L12: 0 | M12: 0 | N12: 0 | O12: 0
B13: ='GuV-Detailplan'!B13 -> Mieteinnahmen | C13: ='GuV-Detailplan'!C13 -> 0 | D13: ='GuV-Detailplan'!D13 -> 0 | E13: ='GuV-Detailplan'!E13 -> 0 | F13: ='GuV-Detailplan'!F13 -> 0 | G13: ='GuV-Detailplan'!G13 -> 0 | H13: ='GuV-Detailplan'!H13 -> 0 | I13: ='GuV-Detailplan'!I13 -> 0 | J13: ='GuV-Detailplan'!J13 -> 0 | K13: ='GuV-Detailplan'!K13 -> 0 | L13: ='GuV-Detailplan'!L13 -> 0 | M13: ='GuV-Detailplan'!M13 -> 0 | N13: ='GuV-Detailplan'!N13 -> 0 | O13: 0
B14: ='GuV-Detailplan'!B14 -> Lizenzgebühren | C14: ='GuV-Detailplan'!C14 -> 0 | D14: ='GuV-Detailplan'!D14 -> 0 | E14: ='GuV-Detailplan'!E14 -> 0 | F14: ='GuV-Detailplan'!F14 -> 0 | G14: ='GuV-Detailplan'!G14 -> 0 | H14: ='GuV-Detailplan'!H14 -> 0 | I14: ='GuV-Detailplan'!I14 -> 0 | J14: ='GuV-Detailplan'!J14 -> 0 | K14: ='GuV-Detailplan'!K14 -> 0 | L14: ='GuV-Detailplan'!L14 -> 0 | M14: ='GuV-Detailplan'!M14 -> 0 | N14: ='GuV-Detailplan'!N14 -> 0 | O14: 0
B15: ='GuV-Detailplan'!B15 -> Zinserträge | C15: ='GuV-Detailplan'!C15 -> 0 | D15: ='GuV-Detailplan'!D15 -> 0 | E15: ='GuV-Detailplan'!E15 -> 0 | F15: ='GuV-Detailplan'!F15 -> 0 | G15: ='GuV-Detailplan'!G15 -> 0 | H15: ='GuV-Detailplan'!H15 -> 0 | I15: ='GuV-Detailplan'!I15 -> 0 | J15: ='GuV-Detailplan'!J15 -> 0 | K15: ='GuV-Detailplan'!K15 -> 0 | L15: ='GuV-Detailplan'!L15 -> 0 | M15: ='GuV-Detailplan'!M15 -> 0 | N15: ='GuV-Detailplan'!N15 -> 0 | O15: 0
B16: Öffentl. Zuschüsse / Zulagen (Σ) | C16: =SUM(C17:C18) -> 0 | D16: 0 | E16: 0 | F16: 0 | G16: 0 | H16: 0 | I16: 0 | J16: 0 | K16: 0 | L16: 0 | M16: 0 | N16: 0 | O16: 0
B17: Investitionszulagen | C17: ='GuV-Detailplan'!C52 -> 0 | D17: ='GuV-Detailplan'!D52 -> 0 | E17: ='GuV-Detailplan'!E52 -> 0 | F17: ='GuV-Detailplan'!F52 -> 0 | G17: ='GuV-Detailplan'!G52 -> 0 | H17: ='GuV-Detailplan'!H52 -> 0 | I17: ='GuV-Detailplan'!I52 -> 0 | J17: ='GuV-Detailplan'!J52 -> 0 | K17: ='GuV-Detailplan'!K52 -> 0 | L17: ='GuV-Detailplan'!L52 -> 0 | M17: ='GuV-Detailplan'!M52 -> 0 | N17: ='GuV-Detailplan'!N52 -> 0 | O17: 0
B18: Zuschüsse | C18: ='GuV-Detailplan'!C53 -> 0 | D18: ='GuV-Detailplan'!D53 -> 0 | E18: ='GuV-Detailplan'!E53 -> 0 | F18: ='GuV-Detailplan'!F53 -> 0 | G18: ='GuV-Detailplan'!G53 -> 0 | H18: ='GuV-Detailplan'!H53 -> 0 | I18: ='GuV-Detailplan'!I53 -> 0 | J18: ='GuV-Detailplan'!J53 -> 0 | K18: ='GuV-Detailplan'!K53 -> 0 | L18: ='GuV-Detailplan'!L53 -> 0 | M18: ='GuV-Detailplan'!M53 -> 0 | N18: ='GuV-Detailplan'!N53 -> 0 | O18: 0
B20: Materialaufwand (Σ) | C20: =SUM(C21:C23) -> 0 | D20: =SUM(D21:D22) -> 0 | E20: 0 | F20: 0 | G20: 0 | H20: 0 | I20: 0 | J20: 0 | K20: 0 | L20: 0 | M20: 0 | N20: 0 | O20: =SUM(C20:N20) -> 0
B21: ='GuV-Detailplan'!B19 -> (19 %) Materialkosten (netto) | C21: ='GuV-Detailplan'!C19 -> 0 | D21: ='GuV-Detailplan'!D19 -> 0 | E21: ='GuV-Detailplan'!E19 -> 0 | F21: ='GuV-Detailplan'!F19 -> 0 | G21: ='GuV-Detailplan'!G19 -> 0 | H21: ='GuV-Detailplan'!H19 -> 0 | I21: ='GuV-Detailplan'!I19 -> 0 | J21: ='GuV-Detailplan'!J19 -> 0 | K21: ='GuV-Detailplan'!K19 -> 0 | L21: ='GuV-Detailplan'!L19 -> 0 | M21: ='GuV-Detailplan'!M19 -> 0 | N21: ='GuV-Detailplan'!N19 -> 0 | O21: 0
B22: ='GuV-Detailplan'!B20 -> ( 7 %) Materialkosten (netto) | C22: ='GuV-Detailplan'!C20 -> 0 | D22: ='GuV-Detailplan'!D20 -> 0 | E22: ='GuV-Detailplan'!E20 -> 0 | F22: ='GuV-Detailplan'!F20 -> 0 | G22: ='GuV-Detailplan'!G20 -> 0 | H22: ='GuV-Detailplan'!H20 -> 0 | I22: ='GuV-Detailplan'!I20 -> 0 | J22: ='GuV-Detailplan'!J20 -> 0 | K22: ='GuV-Detailplan'!K20 -> 0 | L22: ='GuV-Detailplan'!L20 -> 0 | M22: ='GuV-Detailplan'!M20 -> 0 | N22: ='GuV-Detailplan'!N20 -> 0 | O22: 0
B23: ='GuV-Detailplan'!B21 -> (19 %) Fremdleistung (netto) | C23: ='GuV-Detailplan'!C21 -> 0 | D23: ='GuV-Detailplan'!D21 -> 0 | E23: ='GuV-Detailplan'!E21 -> 0 | F23: ='GuV-Detailplan'!F21 -> 0 | G23: ='GuV-Detailplan'!G21 -> 0 | H23: ='GuV-Detailplan'!H21 -> 0 | I23: ='GuV-Detailplan'!I21 -> 0 | J23: ='GuV-Detailplan'!J21 -> 0 | K23: ='GuV-Detailplan'!K21 -> 0 | L23: ='GuV-Detailplan'!L21 -> 0 | M23: ='GuV-Detailplan'!M21 -> 0 | N23: ='GuV-Detailplan'!N21 -> 0 | O23: 0
B24: Personalaufwand (Σ) | C24: =SUM(C25:C28) -> 0 | D24: =SUM(D25:D28) -> 0 | E24: 0 | F24: 0 | G24: 0 | H24: 0 | I24: 0 | J24: 0 | K24: 0 | L24: 0 | M24: 0 | N24: 0 | O24: 0
B25: ='GuV-Detailplan'!B23 -> Unternehmerlohn (Geschäftsführergehalt) | C25: ='GuV-Detailplan'!C23 -> x | D25: ='GuV-Detailplan'!D23 -> x | E25: ='GuV-Detailplan'!E23 -> x | F25: ='GuV-Detailplan'!F23 -> x | G25: ='GuV-Detailplan'!G23 -> x | H25: ='GuV-Detailplan'!H23 -> x | I25: ='GuV-Detailplan'!I23 -> x | J25: ='GuV-Detailplan'!J23 -> x | K25: ='GuV-Detailplan'!K23 -> x | L25: ='GuV-Detailplan'!L23 -> x | M25: ='GuV-Detailplan'!M23 -> x | N25: ='GuV-Detailplan'!N23 -> x | O25: 0
B26: ='GuV-Detailplan'!$B$24 -> Personalkosten | C26: ='GuV-Detailplan'!C24 -> 0 | D26: ='GuV-Detailplan'!D24 -> 0 | E26: ='GuV-Detailplan'!E24 -> 0 | F26: ='GuV-Detailplan'!F24 -> 0 | G26: ='GuV-Detailplan'!G24 -> 0 | H26: ='GuV-Detailplan'!H24 -> 0 | I26: ='GuV-Detailplan'!I24 -> 0 | J26: ='GuV-Detailplan'!J24 -> 0 | K26: ='GuV-Detailplan'!K24 -> 0 | L26: ='GuV-Detailplan'!L24 -> 0 | M26: ='GuV-Detailplan'!M24 -> 0 | N26: ='GuV-Detailplan'!N24 -> 0
B27: ='GuV-Detailplan'!B25 -> Soziale Abgaben (Arbeitgeberanteil) | C27: ='GuV-Detailplan'!C25 -> 0 | D27: ='GuV-Detailplan'!D25 -> 0 | E27: ='GuV-Detailplan'!E25 -> 0 | F27: ='GuV-Detailplan'!F25 -> 0 | G27: ='GuV-Detailplan'!G25 -> 0 | H27: ='GuV-Detailplan'!H25 -> 0 | I27: ='GuV-Detailplan'!I25 -> 0 | J27: ='GuV-Detailplan'!J25 -> 0 | K27: ='GuV-Detailplan'!K25 -> 0 | L27: ='GuV-Detailplan'!L25 -> 0 | M27: ='GuV-Detailplan'!M25 -> 0 | N27: ='GuV-Detailplan'!N25 -> 0 | O27: 0
B28: ='GuV-Detailplan'!B26 -> freiwillige Leistungen | C28: ='GuV-Detailplan'!C26 -> 0 | D28: ='GuV-Detailplan'!D26 -> 0 | E28: ='GuV-Detailplan'!E26 -> 0 | F28: ='GuV-Detailplan'!F26 -> 0 | G28: ='GuV-Detailplan'!G26 -> 0 | H28: ='GuV-Detailplan'!H26 -> 0 | I28: ='GuV-Detailplan'!I26 -> 0 | J28: ='GuV-Detailplan'!J26 -> 0 | K28: ='GuV-Detailplan'!K26 -> 0 | L28: ='GuV-Detailplan'!L26 -> 0 | M28: ='GuV-Detailplan'!M26 -> 0 | N28: ='GuV-Detailplan'!N26 -> 0 | O28: 0
B29: Zinsaufwand | C29: ='Zins-und Tilg.-Plan'!C38 -> 0 | D29: ='Zins-und Tilg.-Plan'!D38 -> 0 | E29: ='Zins-und Tilg.-Plan'!E38 -> 0 | F29: ='Zins-und Tilg.-Plan'!F38 -> 0 | G29: ='Zins-und Tilg.-Plan'!G38 -> 0 | H29: ='Zins-und Tilg.-Plan'!H38 -> 0 | I29: ='Zins-und Tilg.-Plan'!I38 -> 0 | J29: ='Zins-und Tilg.-Plan'!J38 -> 0 | K29: ='Zins-und Tilg.-Plan'!K38 -> 0 | L29: ='Zins-und Tilg.-Plan'!L38 -> 0 | M29: ='Zins-und Tilg.-Plan'!M38 -> 0 | N29: ='Zins-und Tilg.-Plan'!N38 -> 0 | O29: 0
B30: ='GuV-Detailplan'!B29 -> - Sonst.betriebl.Aufwand (Σ) | C30: =SUM(C31:C49) -> 0 | D30: 0 | E30: 0 | F30: 0 | G30: 0 | H30: 0 | I30: 0 | J30: 0 | K30: 0 | L30: 0 | M30: 0 | N30: 0 | O30: 0
B31: ='GuV-Detailplan'!B30 -> Gründungskosten | C31: ='GuV-Detailplan'!C30 -> 0 | D31: ='GuV-Detailplan'!D30 -> 0 | E31: ='GuV-Detailplan'!E30 -> 0 | F31: ='GuV-Detailplan'!F30 -> 0 | G31: ='GuV-Detailplan'!G30 -> 0 | H31: ='GuV-Detailplan'!H30 -> 0 | I31: ='GuV-Detailplan'!I30 -> 0 | J31: ='GuV-Detailplan'!J30 -> 0 | K31: ='GuV-Detailplan'!K30 -> 0 | L31: ='GuV-Detailplan'!L30 -> 0 | M31: ='GuV-Detailplan'!M30 -> 0 | N31: ='GuV-Detailplan'!N30 -> 0 | O31: 0
B32: ='GuV-Detailplan'!B31 -> Mieten | C32: ='GuV-Detailplan'!C31 -> 0 | D32: ='GuV-Detailplan'!D31 -> 0 | E32: ='GuV-Detailplan'!E31 -> 0 | F32: ='GuV-Detailplan'!F31 -> 0 | G32: ='GuV-Detailplan'!G31 -> 0 | H32: ='GuV-Detailplan'!H31 -> 0 | I32: ='GuV-Detailplan'!I31 -> 0 | J32: ='GuV-Detailplan'!J31 -> 0 | K32: ='GuV-Detailplan'!K31 -> 0 | L32: ='GuV-Detailplan'!L31 -> 0 | M32: ='GuV-Detailplan'!M31 -> 0 | N32: ='GuV-Detailplan'!N31 -> 0 | O32: 0
B33: ='GuV-Detailplan'!B32 -> Strom, Gas, Wasser Heizung | C33: ='GuV-Detailplan'!C32 -> 0 | D33: ='GuV-Detailplan'!D32 -> 0 | E33: ='GuV-Detailplan'!E32 -> 0 | F33: ='GuV-Detailplan'!F32 -> 0 | G33: ='GuV-Detailplan'!G32 -> 0 | H33: ='GuV-Detailplan'!H32 -> 0 | I33: ='GuV-Detailplan'!I32 -> 0 | J33: ='GuV-Detailplan'!J32 -> 0 | K33: ='GuV-Detailplan'!K32 -> 0 | L33: ='GuV-Detailplan'!L32 -> 0 | M33: ='GuV-Detailplan'!M32 -> 0 | N33: ='GuV-Detailplan'!N32 -> 0 | O33: 0
B34: ='GuV-Detailplan'!B33 -> Versicherungen | C34: ='GuV-Detailplan'!C33 -> 0 | D34: ='GuV-Detailplan'!D33 -> 0 | E34: ='GuV-Detailplan'!E33 -> 0 | F34: ='GuV-Detailplan'!F33 -> 0 | G34: ='GuV-Detailplan'!G33 -> 0 | H34: ='GuV-Detailplan'!H33 -> 0 | I34: ='GuV-Detailplan'!I33 -> 0 | J34: ='GuV-Detailplan'!J33 -> 0 | K34: ='GuV-Detailplan'!K33 -> 0 | L34: ='GuV-Detailplan'!L33 -> 0 | M34: ='GuV-Detailplan'!M33 -> 0 | N34: ='GuV-Detailplan'!N33 -> 0 | O34: 0
B35: ='GuV-Detailplan'!B34 -> Bürobedarf | C35: ='GuV-Detailplan'!C34 -> 0 | D35: ='GuV-Detailplan'!D34 -> 0 | E35: ='GuV-Detailplan'!E34 -> 0 | F35: ='GuV-Detailplan'!F34 -> 0 | G35: ='GuV-Detailplan'!G34 -> 0 | H35: ='GuV-Detailplan'!H34 -> 0 | I35: ='GuV-Detailplan'!I34 -> 0 | J35: ='GuV-Detailplan'!J34 -> 0 | K35: ='GuV-Detailplan'!K34 -> 0 | L35: ='GuV-Detailplan'!L34 -> 0 | M35: ='GuV-Detailplan'!M34 -> 0 | N35: ='GuV-Detailplan'!N34 -> 0 | O35: 0
B36: ='GuV-Detailplan'!B35 -> Telefon, Fax, Internet | C36: ='GuV-Detailplan'!C35 -> 0 | D36: ='GuV-Detailplan'!D35 -> 0 | E36: ='GuV-Detailplan'!E35 -> 0 | F36: ='GuV-Detailplan'!F35 -> 0 | G36: ='GuV-Detailplan'!G35 -> 0 | H36: ='GuV-Detailplan'!H35 -> 0 | I36: ='GuV-Detailplan'!I35 -> 0 | J36: ='GuV-Detailplan'!J35 -> 0 | K36: ='GuV-Detailplan'!K35 -> 0 | L36: ='GuV-Detailplan'!L35 -> 0 | M36: ='GuV-Detailplan'!M35 -> 0 | N36: ='GuV-Detailplan'!N35 -> 0 | O36: 0
B37: ='GuV-Detailplan'!B36 -> Internetdomain und Homepagepflege | C37: ='GuV-Detailplan'!C36 -> 0 | D37: ='GuV-Detailplan'!D36 -> 0 | E37: ='GuV-Detailplan'!E36 -> 0 | F37: ='GuV-Detailplan'!F36 -> 0 | G37: ='GuV-Detailplan'!G36 -> 0 | H37: ='GuV-Detailplan'!H36 -> 0 | I37: ='GuV-Detailplan'!I36 -> 0 | J37: ='GuV-Detailplan'!J36 -> 0 | K37: ='GuV-Detailplan'!K36 -> 0 | L37: ='GuV-Detailplan'!L36 -> 0 | M37: ='GuV-Detailplan'!M36 -> 0 | N37: ='GuV-Detailplan'!N36 -> 0 | O37: 0
B38: ='GuV-Detailplan'!B37 -> Reparatur u. Instandhaltung | C38: ='GuV-Detailplan'!C37 -> 0 | D38: ='GuV-Detailplan'!D37 -> 0 | E38: ='GuV-Detailplan'!E37 -> 0 | F38: ='GuV-Detailplan'!F37 -> 0 | G38: ='GuV-Detailplan'!G37 -> 0 | H38: ='GuV-Detailplan'!H37 -> 0 | I38: ='GuV-Detailplan'!I37 -> 0 | J38: ='GuV-Detailplan'!J37 -> 0 | K38: ='GuV-Detailplan'!K37 -> 0 | L38: ='GuV-Detailplan'!L37 -> 0 | M38: ='GuV-Detailplan'!M37 -> 0 | N38: ='GuV-Detailplan'!N37 -> 0 | O38: 0
B39: ='GuV-Detailplan'!B38 -> Rundfunk ARD, ZDF, DRadio (4 x 55,08) | C39: ='GuV-Detailplan'!C38 -> 0 | D39: ='GuV-Detailplan'!D38 -> 0 | E39: ='GuV-Detailplan'!E38 -> 0 | F39: ='GuV-Detailplan'!F38 -> 0 | G39: ='GuV-Detailplan'!G38 -> 0 | H39: ='GuV-Detailplan'!H38 -> 0 | I39: ='GuV-Detailplan'!I38 -> 0 | J39: ='GuV-Detailplan'!J38 -> 0 | K39: ='GuV-Detailplan'!K38 -> 0 | L39: ='GuV-Detailplan'!L38 -> 0 | M39: ='GuV-Detailplan'!M38 -> 0 | N39: ='GuV-Detailplan'!N38 -> 0 | O39: 0
B40: ='GuV-Detailplan'!B39 -> Porto | C40: ='GuV-Detailplan'!C39 -> 0 | D40: ='GuV-Detailplan'!D39 -> 0 | E40: ='GuV-Detailplan'!E39 -> 0 | F40: ='GuV-Detailplan'!F39 -> 0 | G40: ='GuV-Detailplan'!G39 -> 0 | H40: ='GuV-Detailplan'!H39 -> 0 | I40: ='GuV-Detailplan'!I39 -> 0 | J40: ='GuV-Detailplan'!J39 -> 0 | K40: ='GuV-Detailplan'!K39 -> 0 | L40: ='GuV-Detailplan'!L39 -> 0 | M40: ='GuV-Detailplan'!M39 -> 0 | N40: ='GuV-Detailplan'!N39 -> 0 | O40: 0
B41: ='GuV-Detailplan'!B40 -> Gebühren / Beiträge | C41: ='GuV-Detailplan'!C40 -> 0 | D41: ='GuV-Detailplan'!D40 -> 0 | E41: ='GuV-Detailplan'!E40 -> 0 | F41: ='GuV-Detailplan'!F40 -> 0 | G41: ='GuV-Detailplan'!G40 -> 0 | H41: ='GuV-Detailplan'!H40 -> 0 | I41: ='GuV-Detailplan'!I40 -> 0 | J41: ='GuV-Detailplan'!J40 -> 0 | K41: ='GuV-Detailplan'!K40 -> 0 | L41: ='GuV-Detailplan'!L40 -> 0 | M41: ='GuV-Detailplan'!M40 -> 0 | N41: ='GuV-Detailplan'!N40 -> 0 | O41: 0
B42: ='GuV-Detailplan'!B41 -> Kraftfahrzeugkosten | C42: ='GuV-Detailplan'!C41 -> 0 | D42: ='GuV-Detailplan'!D41 -> 0 | E42: ='GuV-Detailplan'!E41 -> 0 | F42: ='GuV-Detailplan'!F41 -> 0 | G42: ='GuV-Detailplan'!G41 -> 0 | H42: ='GuV-Detailplan'!H41 -> 0 | I42: ='GuV-Detailplan'!I41 -> 0 | J42: ='GuV-Detailplan'!J41 -> 0 | K42: ='GuV-Detailplan'!K41 -> 0 | L42: ='GuV-Detailplan'!L41 -> 0 | M42: ='GuV-Detailplan'!M41 -> 0 | N42: ='GuV-Detailplan'!N41 -> 0 | O42: 0
B43: ='GuV-Detailplan'!B42 -> Kfz. Versicherung | C43: ='GuV-Detailplan'!C42 -> 0 | D43: ='GuV-Detailplan'!D42 -> 0 | E43: ='GuV-Detailplan'!E42 -> 0 | F43: ='GuV-Detailplan'!F42 -> 0 | G43: ='GuV-Detailplan'!G42 -> 0 | H43: ='GuV-Detailplan'!H42 -> 0 | I43: ='GuV-Detailplan'!I42 -> 0 | J43: ='GuV-Detailplan'!J42 -> 0 | K43: ='GuV-Detailplan'!K42 -> 0 | L43: ='GuV-Detailplan'!L42 -> 0 | M43: ='GuV-Detailplan'!M42 -> 0 | N43: ='GuV-Detailplan'!N42 -> 0 | O43: 0
B44: ='GuV-Detailplan'!B43 -> Kfz. Steuern | C44: ='GuV-Detailplan'!C43 -> 0 | D44: ='GuV-Detailplan'!D43 -> 0 | E44: ='GuV-Detailplan'!E43 -> 0 | F44: ='GuV-Detailplan'!F43 -> 0 | G44: ='GuV-Detailplan'!G43 -> 0 | H44: ='GuV-Detailplan'!H43 -> 0 | I44: ='GuV-Detailplan'!I43 -> 0 | J44: ='GuV-Detailplan'!J43 -> 0 | K44: ='GuV-Detailplan'!K43 -> 0 | L44: ='GuV-Detailplan'!L43 -> 0 | M44: ='GuV-Detailplan'!M43 -> 0 | N44: ='GuV-Detailplan'!N43 -> 0 | O44: 0
B45: ='GuV-Detailplan'!B44 -> Reisekosten / Öffentliche Verkehrsmittel | C45: ='GuV-Detailplan'!C44 -> 0 | D45: ='GuV-Detailplan'!D44 -> 0 | E45: ='GuV-Detailplan'!E44 -> 0 | F45: ='GuV-Detailplan'!F44 -> 0 | G45: ='GuV-Detailplan'!G44 -> 0 | H45: ='GuV-Detailplan'!H44 -> 0 | I45: ='GuV-Detailplan'!I44 -> 0 | J45: ='GuV-Detailplan'!J44 -> 0 | K45: ='GuV-Detailplan'!K44 -> 0 | L45: ='GuV-Detailplan'!L44 -> 0 | M45: ='GuV-Detailplan'!M44 -> 0 | N45: ='GuV-Detailplan'!N44 -> 0 | O45: 0
B46: ='GuV-Detailplan'!B45 -> Werbung, Repräsentation | C46: ='GuV-Detailplan'!C45 -> 0 | D46: ='GuV-Detailplan'!D45 -> 0 | E46: ='GuV-Detailplan'!E45 -> 0 | F46: ='GuV-Detailplan'!F45 -> 0 | G46: ='GuV-Detailplan'!G45 -> 0 | H46: ='GuV-Detailplan'!H45 -> 0 | I46: ='GuV-Detailplan'!I45 -> 0 | J46: ='GuV-Detailplan'!J45 -> 0 | K46: ='GuV-Detailplan'!K45 -> 0 | L46: ='GuV-Detailplan'!L45 -> 0 | M46: ='GuV-Detailplan'!M45 -> 0 | N46: ='GuV-Detailplan'!N45 -> 0 | O46: 0
B47: ='GuV-Detailplan'!B46 -> Fortbildung / Literatur | C47: ='GuV-Detailplan'!C46 -> 0 | D47: ='GuV-Detailplan'!D46 -> 0 | E47: ='GuV-Detailplan'!E46 -> 0 | F47: ='GuV-Detailplan'!F46 -> 0 | G47: ='GuV-Detailplan'!G46 -> 0 | H47: ='GuV-Detailplan'!H46 -> 0 | I47: ='GuV-Detailplan'!I46 -> 0 | J47: ='GuV-Detailplan'!J46 -> 0 | K47: ='GuV-Detailplan'!K46 -> 0 | L47: ='GuV-Detailplan'!L46 -> 0 | M47: ='GuV-Detailplan'!M46 -> 0 | N47: ='GuV-Detailplan'!N46 -> 0 | O47: 0
B48: ='GuV-Detailplan'!B47 -> Rechts- und Beratungskosten | C48: ='GuV-Detailplan'!C47 -> 0 | D48: ='GuV-Detailplan'!D47 -> 0 | E48: ='GuV-Detailplan'!E47 -> 0 | F48: ='GuV-Detailplan'!F47 -> 0 | G48: ='GuV-Detailplan'!G47 -> 0 | H48: ='GuV-Detailplan'!H47 -> 0 | I48: ='GuV-Detailplan'!I47 -> 0 | J48: ='GuV-Detailplan'!J47 -> 0 | K48: ='GuV-Detailplan'!K47 -> 0 | L48: ='GuV-Detailplan'!L47 -> 0 | M48: ='GuV-Detailplan'!M47 -> 0 | N48: ='GuV-Detailplan'!N47 -> 0 | O48: 0
B49: ='GuV-Detailplan'!B48 -> Sonstiges | C49: ='GuV-Detailplan'!C48 -> 0 | D49: ='GuV-Detailplan'!D48 -> 0 | E49: ='GuV-Detailplan'!E48 -> 0 | F49: ='GuV-Detailplan'!F48 -> 0 | G49: ='GuV-Detailplan'!G48 -> 0 | H49: ='GuV-Detailplan'!H48 -> 0 | I49: ='GuV-Detailplan'!I48 -> 0 | J49: ='GuV-Detailplan'!J48 -> 0 | K49: ='GuV-Detailplan'!K48 -> 0 | L49: ='GuV-Detailplan'!L48 -> 0 | M49: ='GuV-Detailplan'!M48 -> 0 | N49: ='GuV-Detailplan'!N48 -> 0 | O49: 0
B50: Umsatzsteuerzahllast | D50: =C78 -> 0 | E50: =D78 -> 0 | F50: =E78 -> 0 | G50: 0 | H50: 0 | I50: 0 | J50: 0 | K50: 0 | L50: 0 | M50: 0 | N50: 0 | O50: 0
B51: Steuern auf Erträge | C51: ='GuV-Detailplan'!$C$104 -> 0 | D51: ='GuV-Detailplan'!$D$104 -> 0 | E51: ='GuV-Detailplan'!$E$104 -> 0 | F51: ='GuV-Detailplan'!$F$104 -> 0 | G51: ='GuV-Detailplan'!$G$104 -> 0 | H51: ='GuV-Detailplan'!$H$104 -> 0 | I51: ='GuV-Detailplan'!$I$104 -> 0 | J51: ='GuV-Detailplan'!$J$104 -> 0 | K51: ='GuV-Detailplan'!$K$104 -> 0 | L51: ='GuV-Detailplan'!$L$104 -> 0 | M51: ='GuV-Detailplan'!$M$104 -> 0 | N51: ='GuV-Detailplan'!$N$104 -> 0 | O51: 0
B52: Investitionen | C52: ='Invest- u. AfA-Plan'!D45 -> 0 | D52: ='Invest- u. AfA-Plan'!E45 -> 0 | E52: ='Invest- u. AfA-Plan'!F45 -> 0 | F52: ='Invest- u. AfA-Plan'!G45 -> 0 | G52: ='Invest- u. AfA-Plan'!H45 -> 0 | H52: ='Invest- u. AfA-Plan'!I45 -> 0 | I52: ='Invest- u. AfA-Plan'!J45 -> 0 | J52: ='Invest- u. AfA-Plan'!K45 -> 0 | K52: ='Invest- u. AfA-Plan'!L45 -> 0 | L52: ='Invest- u. AfA-Plan'!M45 -> 0 | M52: ='Invest- u. AfA-Plan'!N45 -> 0 | N52: ='Invest- u. AfA-Plan'!O45 -> 0 | O52: 0
B53: Tilgungen | C53: ='Zins-und Tilg.-Plan'!C40 -> 0 | D53: ='Zins-und Tilg.-Plan'!D40 -> 0 | E53: ='Zins-und Tilg.-Plan'!E40 -> 0 | F53: ='Zins-und Tilg.-Plan'!F40 -> 0 | G53: ='Zins-und Tilg.-Plan'!G40 -> 0 | H53: ='Zins-und Tilg.-Plan'!H40 -> 0 | I53: ='Zins-und Tilg.-Plan'!I40 -> 0 | J53: ='Zins-und Tilg.-Plan'!J40 -> 0 | K53: ='Zins-und Tilg.-Plan'!K40 -> 0 | L53: ='Zins-und Tilg.-Plan'!L40 -> 0 | M53: ='Zins-und Tilg.-Plan'!M40 -> 0 | N53: ='Zins-und Tilg.-Plan'!N40 -> 0 | O53: 0
B54: Betriebsmittel | C54: =Kapitalbedarf!C36 -> 0 | O54: 0
B55: EINZAHLUNGEN INSGESAMT | C55: =C5+C12+C16 -> 0 | D55: 0 | E55: 0 | F55: 0 | G55: 0 | H55: 0 | I55: 0 | J55: 0 | K55: 0 | L55: 0 | M55: 0 | N55: 0
B56: AUSZAHLUNGEN INSGESAMT | C56: =SUM(C20+C24+C29+C30+C51+C52+C53+C54) -> 0 | D56: =SUM(D20+D24+D29+D30+D50+D51+D52+D53) -> 0 | E56: =SUM(E20+E24+E29+D30+E50+E51+E52+E53) -> 0 | F56: =SUM(F20+F24+F29+D30+F50+F51+F52+F53) -> 0 | G56: =SUM(G20+G24+G29+D30+G50+G51+G52+G53) -> 0 | H56: =SUM(H20+H24+H29+D30+H50+H51+H52+H53) -> 0 | I56: =SUM(I20+I24+I29+D30+I50+I51+I52+I53) -> 0 | J56: =SUM(J20+J24+J29+D30+J50+J51+J52+J53) -> 0 | K56: =SUM(K20+K24+K29+D30+K50+K51+K52+K53) -> 0 | L56: =SUM(L20+L24+L29+D30+L50+L51+L52+L53) -> 0 | M56: =SUM(M20+M24+M29+D30+M50+M51+M52+M53) -> 0 | N56: =SUM(N20+N24+N29+D30+N50+N51+N52+N53) -> 0
B58: ÜBER / UNTERDECKUNG JE MONAT | C58: =C55-C56 -> 0 | D58: 0 | E58: 0 | F58: 0 | G58: 0 | H58: 0 | I58: 0 | J58: 0 | K58: 0 | L58: 0 | M58: 0 | N58: 0
B59: ÜBER / UNTERDECKUNG KUMULATIV | C59: =C58 -> 0 | D59: =C59+D58 -> 0 | E59: 0 | F59: 0 | G59: 0 | H59: 0 | I59: 0 | J59: 0 | K59: 0 | L59: 0 | M59: 0 | N59: 0
B61: Finanzierung (Σ) | C61: =SUM(C62:C66) -> 0 | D61: =SUM(D62:D66) -> 0 | E61: =SUM(E62:E66) -> 0 | F61: 0 | G61: 0 | H61: 0 | I61: 0 | J61: 0 | K61: 0 | L61: 0 | M61: 0 | N61: 0
B62: Eigenkapital / Stammkapital | C62: =Finanzierung!$C$17 -> 0
B63: Fremdmittel | C63: =Finanzierung!$C$25 -> 0
B64: Gesellschafterdarlehen | C64: ='Zins-und Tilg.-Plan'!C17 -> 0 | D64: ='Zins-und Tilg.-Plan'!D17 -> 0 | E64: ='Zins-und Tilg.-Plan'!E17 -> 0 | F64: ='Zins-und Tilg.-Plan'!F17 -> 0 | G64: ='Zins-und Tilg.-Plan'!G17 -> 0 | H64: ='Zins-und Tilg.-Plan'!H17 -> 0 | I64: ='Zins-und Tilg.-Plan'!I17 -> 0 | J64: ='Zins-und Tilg.-Plan'!J17 -> 0 | K64: ='Zins-und Tilg.-Plan'!K17 -> 0 | L64: ='Zins-und Tilg.-Plan'!L17 -> 0 | M64: ='Zins-und Tilg.-Plan'!M17 -> 0 | N64: ='Zins-und Tilg.-Plan'!N17 -> 0
B65: Kontokorrent | C65: ='Zins-und Tilg.-Plan'!C9 -> 0 | D65: ='Zins-und Tilg.-Plan'!D9 -> 0 | E65: ='Zins-und Tilg.-Plan'!E9 -> 0 | F65: ='Zins-und Tilg.-Plan'!F9 -> 0 | G65: ='Zins-und Tilg.-Plan'!G9 -> 0 | H65: ='Zins-und Tilg.-Plan'!H9 -> 0 | I65: ='Zins-und Tilg.-Plan'!I9 -> 0 | J65: ='Zins-und Tilg.-Plan'!J9 -> 0 | K65: ='Zins-und Tilg.-Plan'!K9 -> 0 | L65: ='Zins-und Tilg.-Plan'!L9 -> 0 | M65: ='Zins-und Tilg.-Plan'!M9 -> 0 | N65: ='Zins-und Tilg.-Plan'!N9 -> 0
B66: Späterer Finanzbedarf
B67: LIQUIDITÄT JE Monat | C67: =C58+C61 -> 0 | D67: 0 | E67: 0 | F67: 0 | G67: 0 | H67: 0 | I67: 0 | J67: 0 | K67: 0 | L67: 0 | M67: 0 | N67: 0
B68: LIQUIDITÄT KUMULATIV | C68: =C67 -> 0 | D68: =C68+D67 -> 0 | E68: =D68+E67 -> 0 | F68: =E68+F67 -> 0 | G68: 0 | H68: 0 | I68: 0 | J68: 0 | K68: 0 | L68: 0 | M68: 0 | N68: 0
B71: Hilfsrechnung
B72: (19 %) Umsatzsteuer - Einzahlungen | C72: =IF(C86>"",(C6+C7+C8+C9+C10)*1.19-(C6+C7+C8+C9+C10),0) -> 0 | D72: =IF(C86>"",(D6+D7+D8+D9+D10)*1.19-(D6+D7+D8+D9+D10),0) -> 0 | E72: =IF(D86>"",(E6+E7+E8+E9+E10)*1.19-(E6+E7+E8+E9+E10),0) -> 0 | F72: =IF(E86>"",(F6+F7+F8+F9+F10)*1.19-(F6+F7+F8+F9+F10),0) -> 0 | G72: =IF(C86>"",(G6+G7+G8+G9+G10)*1.19-(G6+G7+G8+G9+G10),0) -> 0 | H72: =IF(H86>"",(H6+H7+H8+H9+H10)*1.19-(H6+H7+H8+H9+H10),0) -> 0 | I72: 0 | J72: 0 | K72: 0 | L72: 0 | M72: 0 | N72: 0 | O72: =SUM(C72:N72) -> 0
B73: ( 7 %) Umsatzsteuer - Einzahlungen | C73: =IF(C87>"",C11*1.07-C11,0) -> 0 | D73: =IF(C87>"",D11*1.07-D11,0) -> 0 | E73: =IF(C87>"",E11*1.07-E11,0) -> 0 | F73: =IF(C87>"",F11*1.07-F11,0) -> 0 | G73: =IF(C87>"",G11*1.07-G11,0) -> 0 | H73: =IF(C87>"",H11*1.07-H11,0) -> 0 | I73: =IF(C87>"",I11*1.07-I11,0) -> 0 | J73: =IF(C87>"",J11*1.07-J11,0) -> 0 | K73: =IF(C87>"",K11*1.07-K11,0) -> 0 | L73: =IF(C87>"",L11*1.07-L11,0) -> 0 | M73: =IF(C87>"",M11*1.07-M11,0) -> 0 | N73: =IF(C87>"",N11*1.07-N11,0) -> 0 | O73: =SUM(C73:N73) -> 0
B74: Summe Umsatzsteuer Einzahlungen | C74: =SUM(C72:C73) -> 0 | D74: =SUM(D72:D73) -> 0 | E74: 0 | F74: 0 | G74: 0 | H74: =SUM(H72:H73) -> 0 | I74: 0 | J74: 0 | K74: 0 | L74: 0 | M74: 0 | N74: 0 | O74: =SUM(C74:N74) -> 0
B75: (19 %) Umsatzsteuer - Auszahlungen | C75: =IF(C88>"",C85*1.19-C85,0) -> 0 | D75: =IF(C88>"",D85*1.19-D85,0) -> 0 | E75: =IF(C88>"",E85*1.19-E85,0) -> 0 | F75: =IF(C88>"",F85*1.19-F85,0) -> 0 | G75: =IF(C88>"",G85*1.19-G85,0) -> 0 | H75: =IF(C88>"",H85*1.19-H85,0) -> 0 | I75: =IF(C88>"",I85*1.19-I85,0) -> 0 | J75: =IF(C88>"",J85*1.19-J85,0) -> 0 | K75: =IF(C88>"",K85*1.19-K85,0) -> 0 | L75: =IF(C88>"",L85*1.19-L85,0) -> 0 | M75: =IF(C88>"",M85*1.19-M85,0) -> 0 | N75: =IF(C88>"",N85*1.19-N85,0) -> 0 | O75: 0
B76: ( 7 %) Umsatzsteuer - Auszahlungen | C76: =IF(C89>"",C22*1.07-C22,0) -> 0 | D76: =IF(C89>"",D22*1.07-D22,0) -> 0 | E76: =IF(C89>"",E22*1.07-E22,0) -> 0 | F76: =IF(C89>"",F22*1.07-F22,0) -> 0 | G76: =IF(C89>"",G22*1.07-G22,0) -> 0 | H76: =IF(C89>"",H22*1.07-H22,0) -> 0 | I76: =IF(C89>"",I22*1.07-I22,0) -> 0 | J76: =IF(C89>"",J22*1.07-J22,0) -> 0 | K76: =IF(C89>"",K22*1.07-K22,0) -> 0 | L76: =IF(C89>"",L22*1.07-L22,0) -> 0 | M76: =IF(C89>"",M22*1.07-M22,0) -> 0 | N76: =IF(C89>"",N22*1.07-N22,0) -> 0 | O76: 0
B77: Summe Umsatzsteuer Auszahlungen | C77: =SUM(C75:C76) -> 0 | D77: 0 | E77: 0 | F77: 0 | G77: 0 | H77: 0 | I77: 0 | J77: 0 | K77: 0 | L77: 0 | M77: 0 | N77: 0 | O77: 0
B78: Umsatzsteuerzahllast | C78: =C74-C77 -> 0 | D78: 0 | E78: 0 | F78: 0 | G78: 0 | H78: 0 | I78: 0 | J78: 0 | K78: 0 | L78: 0 | M78: 0 | N78: 0 | O78: 0
B85: Auszahlungen für MwSt 19% | C85: =C21+C23+C30+C52+C54-C34-C43-C44-C91 -> 0 | D85: =D21+D23+D30+D52+D54-D34-D43-D44-D91 -> 0 | E85: 0 | F85: 0 | G85: 0 | H85: 0 | I85: 0 | J85: 0 | K85: 0 | L85: 0 | M85: 0 | N85: 0
B86: Mehrwertsteuersätze (Einzahlung) | C86: =Deckblatt!I19 ->  | D86: =$C$86 ->  | E86: =D86 -> 
B87: Mehrwertsteuersätze (Einzahlung) | C87: =Deckblatt!J19 ->  | D87: =$C$87 -> 
B88: Mehrwertsteuersätze (Auszahlung) | C88: =Deckblatt!I19 ->  | D88: =$C$88 -> 
B89: Mehrwertsteuersätze (Auszahlung) | C89: =Deckblatt!J19 ->  | D89: =$C$89 -> 
C91: ='Invest- u. AfA-Plan'!$C$5 -> 0 | D91: ='Invest- u. AfA-Plan'!$E$5 -> 0 | E91: ='Invest- u. AfA-Plan'!$F$5 -> 0 | F91: ='Invest- u. AfA-Plan'!$G$5 -> 0 | G91: ='Invest- u. AfA-Plan'!$H$5 -> 0 | H91: ='Invest- u. AfA-Plan'!$I$5 -> 0 | I91: ='Invest- u. AfA-Plan'!$J$5 -> 0 | J91: ='Invest- u. AfA-Plan'!$K$5 -> 0 | K91: ='Invest- u. AfA-Plan'!$L$5 -> 0 | L91: ='Invest- u. AfA-Plan'!$M$5 -> 0 | M91: ='Invest- u. AfA-Plan'!$N$5 -> 0 | N91: ='Invest- u. AfA-Plan'!$O$5 -> 0

Sheet GuV-Übersicht
B2: =Deckblatt!E15 -> .
B3: GuV - Übersicht | G3: Alle Beträge ohne MwSt.
C5: 1. Jahr | E5: 2. Jahr | G5: 3. Jahr
C6: EUR | D6: % | E6: EUR | F6: % | G6: EUR | H6: %
B7: Umsatzerlöse | C7: ='GuV-Detailplan'!O5 -> 0 | D7: =C7/C9*100 ->  | E7: ='GuV-Detailplan'!U5 -> 0 | F7: =E7/E9*100 ->  | G7: ='GuV-Detailplan'!Z5 -> 0 | H7: =G7/G9*100 -> 
B8: Sonstige betriebl. Erträge | C8: ='GuV-Detailplan'!O12 -> 0 | D8: =C8/C9*100 ->  | E8: ='GuV-Detailplan'!U12 -> 0 | F8: =E8/E9*100 ->  | G8: ='GuV-Detailplan'!Z12 -> 0 | H8: =G8/G9*100 -> 
B9: Betriebsertrag | C9: =SUM(C7:C8) -> 0 | D9: 100 | E9: =SUM(E7:E8) -> 0 | F9: 100 | G9: =SUM(G7:G8) -> 0 | H9: 100
B11: - Materialaufwand | C11: ='GuV-Detailplan'!O18 -> 0 | D11: =ROUND(C11/C7*100,1) ->  | E11: ='GuV-Detailplan'!U18 -> 0 | F11: =ROUND(E11/E7*100,1) ->  | G11: ='GuV-Detailplan'!Z18 -> 0 | H11: =ROUND(G11/G7*100,1) -> 
B12: - Personalaufwand | C12: ='GuV-Detailplan'!O22 -> 0 | D12: =ROUND(C12/C7*100,1) ->  | E12: ='GuV-Detailplan'!U22 -> 0 | F12: =ROUND(E12/E7*100,1) ->  | G12: ='GuV-Detailplan'!Z22 -> 0 | H12: =ROUND(G12/G7*100,1) -> 
B13: - Abschreibungen | C13: =SUM('Invest- u. AfA-Plan'!D47:O47) -> 0 | D13: =ROUND(C13/C9*100,1) ->  | E13: =SUM('Invest- u. AfA-Plan'!Q47:T47) -> 0 | F13: =ROUND(E13/E9*100,1) ->  | G13: =SUM('Invest- u. AfA-Plan'!V47:Y47) -> 0 | H13: =ROUND(G13/G9*100,1) -> 
B14: - Zinsaufwand | C14: =SUM('Zins-und Tilg.-Plan'!C38:N38) -> 0 | D14: =ROUND(C14/C9*100,1) ->  | E14: =SUM('Zins-und Tilg.-Plan'!O38:R38) -> 0 | F14: =ROUND(E14/E9*100,1) ->  | G14: =SUM('Zins-und Tilg.-Plan'!S38:V38) -> 0 | H14: =ROUND(G14/G9*100,1) -> 
B15: - Sonst. betriebl. Aufwand | C15: ='GuV-Detailplan'!O29 -> 0 | D15: =ROUND(C15/C9*100,1) ->  | E15: ='GuV-Detailplan'!U29 -> 0 | F15: =ROUND(E15/E9*100,1) ->  | G15: ='GuV-Detailplan'!Z29 -> 0 | H15: =ROUND(G15/G9*100,1) -> 
B16: Betriebsaufwand | C16: =SUM(C11:C15) -> 0 | E16: 0 | F16: =SUM(F11:F15) ->  | G16: 0 | H16: =SUM(H11:H15) -> 
B18: Betriebsergebnis | C18: =C9-C16 -> 0 | E18: 0 | F18: =F9-F16 ->  | G18: 0 | H18: =H9-H16 -> 
B20: Öffentl. Zuschüsse | C20: ='GuV-Detailplan'!O53 -> 0 | D20: =C20/C9*100 ->  | E20: ='GuV-Detailplan'!U53 -> 0 | F20: =E20/E9*100 ->  | G20: ='GuV-Detailplan'!Z53 -> 0 | H20: =G20/G9*100 -> 
B21: Steuern auf Erträge | C21: ='GuV-Detailplan'!O57+'GuV-Detailplan'!O58 -> 0 | D21: =C21/C9*100 ->  | E21: ='GuV-Detailplan'!U57+'GuV-Detailplan'!U58 -> 0 | F21: =E21/E9*100 ->  | G21: ='GuV-Detailplan'!Z57+'GuV-Detailplan'!Z58 -> 0 | H21: =G21/G9*100 -> 
B22: Ausgewiesenes Ergebnis | C22: =C18+C20-C21 -> 0 | D22: =C22/C9*100 ->  | E22: =E18+E20-E21 -> 0 | F22: =E22/E9*100 ->  | G22: =G18+G20-G21 -> 0 | H22: =G22/G9*100 -> 
B24: Beschäftigte (Durchschnitt) | C24: 0 | E24: 0 | G24: 0
B26: Kennzahlen
B27: Umsatzerlöse / Monat | C27: =ROUND(C7/12,0) -> 0 | E27: =ROUND(E7/12,0) -> 0 | G27: =ROUND(G7/12,0) -> 0
B28: Personalaufw. / Beschäftigte | C28: =ROUND(C12/C24,0) ->  | E28: =ROUND(E12/E24,0) ->  | G28: =ROUND(G12/G24,0) -> 
B29: Betrieblicher cash-flow | C29: =C18+C13 -> 0 | E29: =E18+E13 -> 0 | G29: =G18+G13 -> 0
B30: Ausgewiesener cash-flow | C30: =C22+C13 -> 0 | E30: =E22+E13 -> 0 | G30: =G22+G13 -> 0
B31: Umsatzrentabilität (%) | C31: =IF(C18>0,ROUND(C18/C7*100,0),"0") -> 0 | E31: =IF(E18>0,ROUND(E18/E7*100,0),"0") -> 0 | G31: =IF(G18>0,ROUND(G18/G7*100,0),"0") -> 0

Sheet E K S
D2: Die Angaben in den hellgrauen Zellen werden aus dem Programm übernommen
D3: Alle anderen Angaben sind selbst einzufügen
B5: EKS
B6: Angaben zum Einkommen aus selbständiger Tätigkeit
B8: Vorname | D8: Familiennname
B11: evtl. Nummer der Bedarfsgemeinschaft
C13: vorläufige Angaben | H13: abschließende Angaben
C14: Die folgenden Angaben sind geschätzt und beziehen sich | H14: die folgenden Angaben sind abschließen und beziehen sich
C15: auf den Bewilligungszeitraum in Abschnitt 4 | H15: auf den Bewilligungszeitraum in Abschnitt 4
C17: Die selbständige Tätigkeit unterliegt nicht der Umsatzsteuerpflicht (§19 Umsatzsteuergesetz als Kleinunternehmer) | K17: wenn dies angekreuzt wird, müssen die Punkte B17 + B18 gelöscht werden
B19: A Angaben zu den Betriebseinnahmen
B21: Kalendermonat (evtl. Teilmonat) | F21: 1 | G21: 2 | H21: 3 | I21: 4 | J21: 5 | K21: 6 | L21: Summe | M21: Bemerkungen
B24: A1 | C24: Betriebseinnahmen | F24: ='GuV-Detailplan'!C5 -> 0 | G24: ='GuV-Detailplan'!D5 -> 0 | H24: ='GuV-Detailplan'!E5 -> 0 | I24: ='GuV-Detailplan'!F5 -> 0 | J24: ='GuV-Detailplan'!G5 -> 0 | K24: ='GuV-Detailplan'!H5 -> 0 | L24: =SUM(F24:K24) -> 0
B26: A2 | C26: Privatentnahmen von Waren | L26: =SUM(F26:K26) -> 0
B28: A3 | C28: sonstige betriebliche Einnahmen | F28: ='GuV-Detailplan'!C12 -> 0 | G28: ='GuV-Detailplan'!D12 -> 0 | H28: ='GuV-Detailplan'!E12 -> 0 | I28: ='GuV-Detailplan'!F12 -> 0 | J28: ='GuV-Detailplan'!G12 -> 0 | K28: ='GuV-Detailplan'!H12 -> 0 | L28: =SUM(F28:K28) -> 0
B30: A4 | C30: Zuwendung von Dritten | L30: =SUM(F30:K30) -> 0
B32: A5 | C32: vereinnahmte Umsatzsteuer | F32: =Liquiditätsplan!C74 -> 0 | G32: =Liquiditätsplan!D74 -> 0 | H32: =Liquiditätsplan!E74 -> 0 | I32: =Liquiditätsplan!F74 -> 0 | J32: =Liquiditätsplan!G74 -> 0 | K32: =Liquiditätsplan!H74 -> 0 | L32: =SUM(F32:K32) -> 0
B34: A6 | C34: Umsatzsteuer auf Privatentnahme | F34: =IF(B17="x",0,F26*0.19) -> 0 | G34: =IF(B17="x",0,G26*0.19) -> 0 | H34: =IF(B17="x",0,H26*0.19) -> 0 | I34: =IF(B17="x",0,I26*0.19) -> 0 | J34: =IF(B17="x",0,J26*0.19) -> 0 | K34: =IF(B17="x",0,K26*0.19) -> 0 | L34: =SUM(F34:K34) -> 0
B36: A7 | C36: vom Finanzamt erstattete Umsatzsteuer | F36: =Liquiditätsplan!C77 -> 0 | G36: =Liquiditätsplan!D77 -> 0 | H36: =Liquiditätsplan!E77 -> 0 | I36: =Liquiditätsplan!F77 -> 0 | J36: =Liquiditätsplan!G77 -> 0 | K36: =Liquiditätsplan!H77 -> 0 | L36: =SUM(F36:K36) -> 0
B37: Summer der Betriebseinnahmen (A1 - A7) | F37: =SUM(F24:F36) -> 0 | G37: 0 | H37: 0 | I37: 0 | J37: 0 | K37: 0 | L37: 0
B42: B Angaben zu den Betriebsausgaben
B43: B1 | C43: Wareneinkauf | F43: ='GuV-Detailplan'!C18 -> 0 | G43: ='GuV-Detailplan'!D18 -> 0 | H43: ='GuV-Detailplan'!E18 -> 0 | I43: ='GuV-Detailplan'!F18 -> 0 | J43: ='GuV-Detailplan'!G18 -> 0 | K43: ='GuV-Detailplan'!H18 -> 0 | L43: =SUM(F43:K43) -> 0
B45: B2 | C45: Personalkosten (einschl. | F45: ='GuV-Detailplan'!C22 -> 0 | G45: ='GuV-Detailplan'!D22 -> 0 | H45: ='GuV-Detailplan'!E22 -> 0 | I45: ='GuV-Detailplan'!F22 -> 0 | J45: ='GuV-Detailplan'!G22 -> 0 | K45: ='GuV-Detailplan'!H22 -> 0 | L45: =SUM(F45:K45) -> 0
C46: Sozialversicherungsbeiträge)
C48: a) Vollzeitbeschäftigte | L48: =SUM(F48:K48) -> 0 | M48: Anzahl
C49: b) Teilzeitbeschäftigte | L49: =SUM(F49:K49) -> 0 | M49: Anzahl
C50: c) gerigfügig Beschäftigte (520 €-Job) | L50: =SUM(F50:K50) -> 0 | M50: Anzahl
C51: d) mithelfende Familienangehörige | L51: =SUM(F51:K51) -> 0 | M51: Anzahl
B53: B3 | C53: Raumkosten (einschl.Nebenkosten | F53: ='GuV-Detailplan'!C31+F55 -> 0 | G53: ='GuV-Detailplan'!D31+G55 -> 0 | H53: ='GuV-Detailplan'!E31+H55 -> 0 | I53: ='GuV-Detailplan'!F31+I55 -> 0 | J53: ='GuV-Detailplan'!G31+J55 -> 0 | K53: ='GuV-Detailplan'!H31+K55 -> 0 | L53: =SUM(F53:K53) -> 0
C54: und Energiekosten)
F55: ='GuV-Detailplan'!C32 -> 0 | G55: ='GuV-Detailplan'!D32 -> 0 | H55: ='GuV-Detailplan'!E32 -> 0 | I55: ='GuV-Detailplan'!F32 -> 0 | J55: ='GuV-Detailplan'!G32 -> 0 | K55: ='GuV-Detailplan'!H32 -> 0
B57: B4 | C57: betriebliche Versicherungen | F57: ='GuV-Detailplan'!C33 -> 0 | G57: ='GuV-Detailplan'!D33 -> 0 | H57: ='GuV-Detailplan'!E33 -> 0 | I57: ='GuV-Detailplan'!F33 -> 0 | J57: ='GuV-Detailplan'!G33 -> 0 | K57: ='GuV-Detailplan'!H33 -> 0 | L57: =SUM(F57:K57) -> 0
C58: Beiträge | F58: ='GuV-Detailplan'!C40 -> 0 | G58: ='GuV-Detailplan'!D40 -> 0 | H58: ='GuV-Detailplan'!E40 -> 0 | I58: ='GuV-Detailplan'!F40 -> 0 | J58: ='GuV-Detailplan'!G40 -> 0 | K58: ='GuV-Detailplan'!H40 -> 0 | L58: =SUM(F58:K58) -> 0
B60: B5 | C60: Kraftfahrzeugkosten | F60: Bei einem betrieblichen Kraftfahrzeug füllen Sie bitte B5.1 aus, bei einem privaten Kraftfahrzeug füllen Sie bitte B5.2 aus.
B61: B5.1 | C61: betriebliches Kraftfahrzeug | F61: Ihr Fahrzeug ist ein betriebliches Fahrzeug, wenn Sie es mind. zu 50% betrieblich nutzen (Nachweis durch Fahrtenbuch)
F62: Wie viele Kilometer werden Sie voraussichtlich betrieblich oder privat zurücklegen ?
E63: Betrieblich | L63: =SUM(F63:K63) -> 0 | M63: km
E64: Privat | L64: =SUM(F64:K64) -> 0 | M64: km
C66: a) Steuern | F66: ='GuV-Detailplan'!C43 -> 0 | G66: ='GuV-Detailplan'!D43 -> 0 | H66: ='GuV-Detailplan'!E43 -> 0 | I66: ='GuV-Detailplan'!F43 -> 0 | J66: ='GuV-Detailplan'!G43 -> 0 | K66: ='GuV-Detailplan'!H43 -> 0 | L66: =SUM(F66:K66) -> 0
C67: b) Versicherung | F67: ='GuV-Detailplan'!C42 -> 0 | G67: ='GuV-Detailplan'!D42 -> 0 | H67: ='GuV-Detailplan'!E42 -> 0 | I67: ='GuV-Detailplan'!F42 -> 0 | J67: ='GuV-Detailplan'!G42 -> 0 | K67: ='GuV-Detailplan'!H42 -> 0 | L67: =SUM(F67:K67) -> 0
C68: c) laufende Betriebskosten | L68: =SUM(F68:K68) -> 0
C69: d) Reparaturen | L69: =SUM(F69:K69) -> 0
C70: abzgl. Privat gefahrene km (€ 0,10 / km) | F70: =-F64*0.1 -> 0 | G70: 0 | H70: 0 | I70: 0 | J70: 0 | K70: 0 | L70: =SUM(F70:K70) -> 0
B72: B5.2 | C72: privates Kraftfahrzeug - betriebliche | F72: Ausgaben für Fahrten zur Betriebsstätte, die mit einem privaten Kraftfahrzeug durchgeführt werden - siehe Punkt C10
C73: Fahrten € 0,10 / km) | L73: =SUM(F73:K73) -> 0
B75: B6 | C75: Werbung | F75: Für die Beschreibung der Maßnahmen verenden Sie bitte ein gesondertes Blatt
F76: ='GuV-Detailplan'!C45 -> 0 | G76: ='GuV-Detailplan'!D45 -> 0 | H76: ='GuV-Detailplan'!E45 -> 0 | I76: ='GuV-Detailplan'!F45 -> 0 | J76: ='GuV-Detailplan'!G45 -> 0 | K76: ='GuV-Detailplan'!H45 -> 0 | L76: =SUM(F76:K76) -> 0
B77: B7 | C77: Reisekosten | F77: Reisen, die mit einem Karftfahrzeug duerchgeführt werden, berücksichtigen Sie bitte Punkt B5
C78: a) Übernachtungskosten | L78: =SUM(F78:K78) -> 0
C79: b) Reisenebenkosten | L79: =SUM(F79:K79) -> 0
C80: c) öffentliche Verkehrsmittel | L80: =SUM(F80:K80) -> 0
B81: Zwischensummen (B1 - B7) | F81: =F43+F45+F53+F57+F58+F66+F67+F68+F69+F70+F73+F76+F78+F79+F80 -> 0 | G81: =G43+G45+G53+G57+G58+G66+G67+G68+G69+G70+G73+G76+G78+G79+G80 -> 0 | H81: 0 | I81: 0 | J81: 0 | K81: 0 | L81: 0
B83: B8 | C83: Investitionen | F83: Für die Beschreibung der Maßnahmen verenden Sie bitte ein gesondertes Blatt
L84: =SUM(F84:K84) -> 0
B86: B9 | C86: Investitionen aus Zuwendung Dritter | L86: =SUM(F86:K86) -> 0
B88: B10 | C88: Büromaterial | F88: ='GuV-Detailplan'!C34 -> 0 | G88: ='GuV-Detailplan'!D34 -> 0 | H88: ='GuV-Detailplan'!E34 -> 0 | I88: ='GuV-Detailplan'!F34 -> 0 | J88: ='GuV-Detailplan'!G34 -> 0 | K88: ='GuV-Detailplan'!H34 -> 0 | L88: =SUM(F88:K88) -> 0
B90: B11 | C90: Telefonkosten | F90: ='GuV-Detailplan'!C35 -> 0 | G90: ='GuV-Detailplan'!D35 -> 0 | H90: ='GuV-Detailplan'!E35 -> 0 | I90: ='GuV-Detailplan'!F35 -> 0 | J90: ='GuV-Detailplan'!G35 -> 0 | K90: ='GuV-Detailplan'!H35 -> 0 | L90: =SUM(F90:K90) -> 0
B92: B12 | C92: Beratungskosten | F92: ='GuV-Detailplan'!C47 -> 0 | G92: ='GuV-Detailplan'!D47 -> 0 | H92: ='GuV-Detailplan'!E47 -> 0 | I92: ='GuV-Detailplan'!F47 -> 0 | J92: ='GuV-Detailplan'!G47 -> 0 | K92: ='GuV-Detailplan'!H47 -> 0 | L92: =SUM(F92:K92) -> 0
B94: B13 | C94: Fortbildungskosten | F94: ='GuV-Detailplan'!C46 -> 0 | G94: ='GuV-Detailplan'!D46 -> 0 | H94: ='GuV-Detailplan'!E46 -> 0 | I94: ='GuV-Detailplan'!F46 -> 0 | J94: ='GuV-Detailplan'!G46 -> 0 | K94: ='GuV-Detailplan'!H46 -> 0 | L94: =SUM(F94:K94) -> 0
B96: B14 | C96: sonstige Betriebsausgaben | F96: Bei Platzmangel verwenden Sie bitte ein gesondertes Blatt
C97: a) Reparatur Anlagevermögen | L97: =SUM(F97:K97) -> 0
C98: b) Miete Einrichtung | L98: 0
C99: c) Nebenkosten des Geldverkehrs | L99: 0
C100: d) betriebliche Abfallbeseitigung | L100: 0
C101: e) | L101: 0
C102: f) | L102: 0
C103: g) | L103: 0
C104: h) | L104: 0
C105: i) | L105: 0
B107: B15 | C107: Schuldzinsen aus Anlagevermögen | L107: =SUM(F107:K107) -> 0
B109: B16 | C109: Tilgung bestehender betrieblicher Darlehen | L109: =SUM(F109:K109) -> 0
B111: B17 | C111: gezahlte Vorsteuer | L111: =SUM(F111:K111) -> 0
B113: B18 | C113: an das Finanzamt gezahlte Umsatzsteuer | L113: =SUM(F113:K113) -> 0
B114: Zwischensummen (B1 - B18) | F114: =SUM(F81:F113) -> 0 | G114: 0 | H114: 0 | I114: 0 | J114: 0 | K114: 0 | L114: 0
B115: Gewinn (A abzgl. B) | F115: =F37-F114 -> 0 | G115: 0 | H115: 0 | I115: 0 | J115: 0 | K115: 0 | L115: 0

Sheet AfA-Zeiten
B2: Abschreibungszeiten (Auswahl)
B4: AfA - Tabelle gem. BMF gültig ab 1.1.2001 korrigiert 01.02.2024
B6: Anlagegüter | C6: Nutzungsdauer | F6: Anlagegüter | G6: Nutzungsdauer | J6: Anlagegüter | K6: Nutzungsdauer
C7: (Jahre) | D7: (Monate) | G7: (Jahre) | H7: (Monate) | K7: (Jahre) | L7: (Monate)
B8: Aktenvernichter | C8: 8 | D8: =C8*12 -> 96 | F8: Kälteanlagen | G8: 14 | H8: =G8*12 -> 168 | J8: Radios | K8: 7 | L8: =K8*12 -> 84
B9: Alarmanlagen | C9: 11 | D9: 132 | F9: Kameras | G9: 7 | H9: 84 | J9: Rasenmöher | K9: 9 | L9: 108
B10: Audiogeräte | C10: 7 | D10: 84 | F10: Kartenleser (EC-, Kredit-) | G10: 8 | H10: 96 | J10: Räumgeräte | K10: 9 | L10: 108
B11: Auto (Pkw) | C11: 6 | D11: 72 | F11: Kassen (Registrier-) | G11: 6 | H11: 72 | J11: Recorder | K11: 7 | L11: 84
B12: Beamer | C12: 1 | D12: 12 | F12: Kehrmaschinen | G12: 9 | H12: =G12*12 -> 108 | J12: Regeleinrichtungen (Allgemein) | K12: 18 | L12: 216
B13: Beleuchtung (Außen-, Straßen-) | C13: 19 | D13: =C13*12 -> 228 | F13: Klimageräte (mobil) | G13: 11 | H13: 132 | J13: Registrierkassen | K13: 6 | L13: 72
B14: Bepflanzungen in Gebäuden | C14: 10 | D14: =C14*12 -> 120 | F14: Kombiwagen | G14: 6 | H14: 72 | J14: Reinigungsanlagen (Wasser-) | K14: 11 | L14: 132
B15: Beschallungsanlagen | C15: 9 | D15: =C15*12 -> 108 | F15: Kommunikationsgeräte (Allgemein) | G15: 8 | H15: 96 | J15: Reißwölfe (Aktenvernichter) | K15: 8 | L15: 96
B16: Bildschirme für PC´s | C16: 1 | D16: =C16*12 -> 12 | F16: Kompressoren | G16: 14 | H16: 168 | J16: Sägen aller Art (mobil) | K16: 8 | L16: 96
B17: Bohrmaschinen, mobil | C17: 8 | D17: =C17*12 -> 96 | F17: Kombigeräte (Drucker+Scanner+Kopierer+FAX) | G17: 1 | H17: 12 | J17: Scanner für PC´s | K17: 1 | L17: 12
B18: Buden (Verkaufs-) | C18: 8 | D18: 96 | F18: Kopiergeräte | G18: 7 | H18: 84 | J18: Schaufensteranlagen | K18: 8 | L18: 96
B19: Büromöbel | C19: 13 | D19: 156 | F19: Kraftwagen (Personen-) | G19: 6 | H19: 72 | J19: Schaukästen | K19: 9 | L19: 108
B20: Casettenrekorder | C20: 7 | D20: 84 | F20: Kühleinrichtungen | G20: 8 | H20: 96 | J20: Scheren (mobil) | K20: 8 | L20: 96
B21: CD / DVD - Player | C21: 7 | D21: 84 | F21: Kühlschränke | G21: 10 | H21: 120 | J21: Schneidemaschinen (mobil) | K21: 8 | L21: 96
B22: Computer (Personal-) | C22: 1 | D22: 12 | F22: Kuvertiermaschinen | G22: 8 | H22: 96 | J22: Schränke (Stahl-) | K22: 14 | L22: 168
B23: Dampfhochdruckreiniger | C23: 8 | D23: 96 | F23: Laboreinrichtungen | G23: 14 | H23: 168 | J23: Schreibmaschinen | K23: 9 | L23: 108
B24: Desinfektionsgeräte | C24: 10 | D24: 120 | F24: Laborgeräte | G24: 13 | H24: 156 | J24: Schuppen | K24: 16 | L24: 192
B25: Drahtzaun | C25: 17 | D25: 204 | F25: Ladeneinbauten | G25: 8 | H25: =G25*12 -> 96 | J25: Schweißgeräte | K25: 13 | L25: 156
B26: Drehbänke | C26: 16 | D26: 192 | F26: Lagereinrichtungen | G26: 14 | H26: =G26*12 -> 168 | J26: Schweißgeräte (Folien-) | K26: 13 | L26: 156
B27: Drucker für PC´s | C27: 1 | D27: 12 | F27: Laptop | G27: 1 | H27: 12 | J27: Shredder | K27: 6 | L27: 72
B28: Druckluftanlagen | C28: 12 | D28: 144 | F28: Lastkraftwagen | G28: 9 | H28: =G28*12 -> 108 | J28: Smartphones | K28: 5 | L28: 60
B29: EC - Kartenleser | C29: 8 | D29: 96 | F29: Lautsprecher | G29: 7 | H29: =G29*12 -> 84 | J29: Solaranlagen | K29: 10 | L29: =K29*12 -> 120
B30: Enthärtungsanlagen(Wasser-) | C30: 12 | D30: 144 | F30: Lautsprecher für PC´s | G30: 1 | H30: 12 | J30: Sprinkleranlagen | K30: 20 | L30: =K30*12 -> 240
B31: Entstaubungsvorrichtungen | C31: 14 | D31: 168 | F31: Leinwände | G31: 8 | H31: 96 | J31: Spülmaschinen (Geschirr-) | K31: 7 | L31: =K31*12 -> 84
B32: Etikettiermaschinen | C32: 13 | D32: 156 | F32: Lichtreklame | G32: 9 | H32: 108 | J32: Stahlschränke | K32: 14 | L32: =K32*12 -> 168
B33: Fahrräder | C33: 7 | D33: 84 | F33: Lötgeräte | G33: 13 | H33: 156 | J33: Stände (Verkaufs-) | K33: 8 | L33: =K33*12 -> 96
B34: Falzmaschinen | C34: 13 | D34: 156 | F34: Magnetabscheider | G34: 6 | H34: 72 | J34: Staubsauger (Industrie-) | K34: 7 | L34: 84
B35: Faxgeräte | C35: 6 | D35: 72 | F35: Materialprüfgeräte | G35: 10 | H35: 120 | J35: Tablets | K35: 1 | L35: 12
B36: Fernseher | C36: 7 | D36: 84 | F36: Messeinrichtungen | G36: 18 | H36: 216 | J36: Teppiche (ab € 500,-- / m²) | K36: 15 | L36: =K36*12 -> 180
B37: Festplatten (extern) | C37: 1 | D37: 12 | F37: Mikroskope | G37: 13 | H37: 156 | J37: Teppiche (normal) | K37: 8 | L37: =K37*12 -> 96
B38: Fettabscheider | C38: 5 | D38: =C38*12 -> 60 | F38: Mikrowellengeräte | G38: 8 | H38: 96 | J38: Theken (Verkaufs-) | K38: 10 | L38: =K38*12 -> 120
B39: Filmgeräte | C39: 7 | D39: =C39*12 -> 84 | F39: Monitore | G39: 1 | H39: 12 | J39: Tresore | K39: 23 | L39: =K39*12 -> 276
B40: Folienschweißgeräte | C40: 13 | D40: =C40*12 -> 156 | F40: Motorräder | G40: 7 | H40: 84 | J40: Überwachungsanlagen | K40: 11 | L40: 132
B41: Fotogeräte | C41: 7 | D41: 84 | F41: Motorroller | G41: 7 | H41: 84 | J41: Unterhaltungsautomaten (Musik) | K41: 8 | L41: 96
B42: Frankiermaschinen | C42: 8 | D42: 96 | F42: Musikautomaten | G42: 8 | H42: 96 | J42: USB - Sticks | K42: 1 | L42: 12
B43: Funktelefon | C43: 5 | D43: 60 | F43: Nassabscheider | G43: 5 | H43: 60 | J43: Ventilatoren | K43: 14 | L43: =K43*12 -> 168
B44: Gaststätteneinbauten | C44: 8 | D44: 96 | F44: Nebenstellenanlagen (Telefon-) | G44: 10 | H44: 120 | J44: Verkaufsbuden | K44: 8 | L44: =K44*12 -> 96
B45: Gebläse | C45: 11 | D45: 132 | F45: Notebooks | G45: 1 | H45: 12 | J45: Verkaufsstände | K45: 8 | L45: =K45*12 -> 96
B46: Geldgeräte (Prüf-, Wechsel-, Zähl-) | C46: 7 | D46: 84 | F46: Notstromaggregate | G46: 19 | H46: 228 | J46: Verkaufstheken | K46: 10 | L46: =K46*12 -> 120
B47: Geschirrspülmaschinen | C47: 7 | D47: 84 | F47: Obstwaagen | G47: 11 | H47: 132 | J47: Verstärker | K47: 7 | L47: 84
B48: Getränkeautomaten | C48: 7 | D48: 84 | F48: Omnibusse | G48: 9 | H48: 108 | J48: Vervielfätigungsgeräte | K48: 7 | L48: 84
B49: Golfplätze | C49: 20 | D49: 240 | F49: Orientierungssysteme | G49: 10 | H49: 120 | J49: Vitrinen | K49: 9 | L49: 108
B50: Großrechner | C50: 7 | D50: 84 | F50: Overheadprojektoren | G50: 8 | H50: 96 | J50: Waagen (Obst-, Gemüse-, Fleisch-) | K50: 11 | L50: 132
B51: Grünanlagen | C51: 15 | D51: 180 | F51: Paginiermaschinen | G51: 8 | H51: 96 | J51: Warenautomaten | K51: 5 | L51: 60
B52: Hallen (Leichtbauweise) | C52: 14 | D52: 168 | F52: Panzerschränke | G52: 23 | H52: 276 | J52: Wärmetauscher | K52: 15 | L52: 180
B53: Hallen (Sonstige) | C53: 20 | D53: 240 | F53: Peripheriegeräte (Drucker, Scanner ect.) | G53: 1 | H53: 12 | J53: Wäschetrockner | K53: 8 | L53: 96
B54: Handy | C54: 5 | D54: 60 | F54: Personalcomputer (PC) | G54: 1 | H54: 12 | J54: Waschmaschinen | K54: 10 | L54: 120
B55: Heftmaschinen | C55: 13 | D55: 156 | F55: Personenkraftwagen | G55: 6 | H55: 72 | J55: Wasseraufbereitungsanlagen | K55: 12 | L55: 144
B56: Heißluftgebläse (mobil) | C56: 11 | D56: 132 | F56: Präsentationsgeräte | G56: 8 | H56: 96 | J56: Wasserhochdruckreiniger | K56: 8 | L56: 96
B57: Hochdruckreiniger | C57: 8 | D57: 96 | F57: Präzisionswaagen | G57: 13 | H57: 156 | J57: Werkstatteinrichtungen | K57: 14 | L57: 168
B58: Hochregallager | C58: 15 | D58: 180 | J58: Workstations | K58: 3 | L58: 36
B59: Holzzaun | C59: 5 | D59: 60 | F59: Software | G59: 1 | H59: 12 | J59: Zeichengeräte (elektronisch) | K59: 8 | L59: 96
B60: Hubwagen | C60: 8 | D60: 96 | J60: Zeichengeräte ( mechanisch) | K60: 14 | L60: 168
B61: Industriestaubsauger | C61: 7 | D61: 84 | J61: Zeiterfassungsgeräte | K61: 8 | L61: 96
J62: Zelte (Arbeits-) | K62: 6 | L62: 72
J63: Zelte (Bier-) | K63: 8 | L63: 96
F65: http://www.bundesfinanzministerium.de/Web/DE/Themen/Steuern/Steuerverwaltungu-Steuerrecht/Betriebspruefung/AfA_Tabellen/afa_tabellen.html
F68: http://www.bundesfinanzministerium.de/Web/DE/Themen/Steuern/Steuerverwaltungu-Steuerrecht/Betriebspruefung/AfA_Tabellen/afa_tabellen.html

Sheet Personalkosten
B2: Personalkosten | AA2: W.Schroth 11.2022
C4: lt. Finanzamt werden 230 Arbeitstage pro Jahr ohne Nachweis anerkannt (5-Tagewoche - 19,17 Tage/Monat) - oder 280 Arbeitstage pro 6-Tage-Woche - 23,33 Tage / Monat
C5: lt. Internet wird gerechnet mit 21,5 Tage / Monat * 12 = 258 Arbeitstage / Jahr
B7: Unternehmer | D7: Unternehmerlohn | E7: pro Jahr | F7: 70000
E8: monatlich | F8: =F7/12 -> 5833.333333
D9: geplante Arbeitsstunden | E9: wöchentlich | F9: 50 | G9: h | H9: zur Berechnung an Kunden
E10: monatlich | F10: =F9/5*21.5 -> 215 | G10: h | H10: Durchschnitt 21,5 Tage / Monat (übliche Berechnung)
D11: geplanter Stundenlohn | E11: Stunde | F11: =F8/F10 -> 27.13178295
D12: Einkommensteuer | F12: =F11*G12 -> 8.139534884 | G12: 0.3 | H12: geschätzt
D13: Stundenlohn | F13: =SUM(F11:F12) -> 35.27131783
D14: Korrektur | E14: Stundenlohn | G14: darunter sollte der Stundenlohn nicht liegen
B17: Personal | C17: Nr.1 | D17: 538 € - Kraft | E17: monatlich | F17: 538 | H17: Arbeitszeit bei Mindestlohn € 12,41 (gesetzliche Vorgabe) = | L17: =F17/12.41 -> 43.35213537 | M17: h / Monat
D18: Soziale Abgaben (Arbeitgeberanteil) | F18: =F17*G18 -> 188.3 | G18: 0.35 | H18: pauschal
D19: Lohnbuchhaltung | E19: monatlich | F19: 15
D20: Monatslohn | F20: =SUM(F17:F19) -> 741.3
D21: Stundenlohn | F21: =F20/43.33 -> 17.1082391
D22: Korrektur | E22: Stundenlohn | F22: 17.5
C24: Nr.2 | D24: Stundenlohn | F24: 25 | G24: €
D25: Wochenstunden | F25: 45 | G25: h
D26: Arbeitsstunden je Tag | F26: =F25/5 -> 9 | G26: 5 Tage / Woche = | I26: =F26*21.5 -> 193.5 | J26: h / Monat | K26: Durchschnitt 21,5 Tage / Monat (übliche Berechnung)
D27: Monatslohn | F27: =F24*F26*21.5 -> 4837.5 | H27: abzgl. | I27: 30 | J27: Tage Urlaub | K27: =(I27+I28)*F26/12 -> 30 | L27: h / Monat = | M27: =I26-K27 -> 163.5 | N27: h / Monat effektiv
D28: freiwillige Leistungen | E28: Jahresleistungen | F28: 2000 | H28: abzgl. | I28: 10 | J28: Tage Krankheit
F29: =((F27*12)+F28)*(G29/12) -> 1251.041667 | G29: 0.25 | H29: Durchschnitt aller Abgaben ( Krankenkasse + Pflegeversicherung + Rentenversicherung)
F30: =((F27*12)+F28)/12+F29 -> 6255.208333
D31: Lohnbuchhaltung | E31: monatlich | F31: 15
D32: monatliche Kosten | F32: =SUM(F30:F31) -> 6270.208333
D33: Stundenlohn | F33: =F32/M27 -> 38.34989806
D34: Korrektur | E34: Stundenlohn | F34: 39
C36: a l t e r n a t i v
C38: Nr.2 | D38: Monatslohn / - Gehalt | F38: 2500
D39: freiwillige Leistungen | E39: Jahresleistungen | F39: 2000
F40: =((F38*12)+F39)*(G40/12) -> 666.6666667 | G40: 0.25 | H40: Durchschnitt aller Abgaben ( Krankenkasse + Pflegeversicherung + Rentenversicherung)
E41: monatlich | F41: =((F38*12)+F39)/12+F40 -> 3333.333333
D42: Lohnbuchhaltung | E42: monatlich | F42: 15
D43: monatliche Kosten | F43: =F41+F42 -> 3348.333333
D44: Wochenstunden | F44: 45 | G44: h
D45: Arbeitsstunden je Tag | F45: =F44/5 -> 9 | G45: 5 Tage / Woche = | I45: =F45*21.5 -> 193.5 | J45: h / Monat | K45: Durchschnitt 21,5 Tage / Monat (übliche Berechnung)
D46: Stundenlohn | F46: 21 | H46: abzgl. | I46: 30 | J46: Tage Urlaub | K46: =(I46+I47)*F45/12 -> 30 | L46: h / Monat = | M46: =I45-K46 -> 163.5 | N46: h / Monat effektiv
D47: Korrektur (aufgerundet) | E47: Stundenlohn | F47: 21 | H47: abzgl. | I47: 10 | J47: Tage Krankheit

Sheet Material
AC1: W.Schroth 11.2022
B2: ohne MWSt | C2: Material
B6: Material - 1 | C6: Stück | D6: 1 | L6: Stück
C7: Beschaffung / Einkauf
C8: Gebühren (z.B.Zoll) | D8: =D7*E8 -> 0 | F8: geschätzt
C9: Lagerkosten | F9: geschätzt
C10: Verpackung + Versand | F10: geschätzt
C11: Lohnaufwand (Handling) | D11: =H11/60*E11 -> 0 | F11: min. (geschätzt) | G11: Stundenlohn | I11: geschätzt
D12: =SUM(D7:D11) -> 0
C13: Risiko | D13: =D12*E13 -> 0 | F13: geschätzt
D14: =SUM(D12:D13) -> 0
C15: Korrektur | L15: Gesamtpreis | M15: =M6*D15 -> 0
B18: Material - 2 | C18: Stück | D18: 1 | L18: Stück
C19: Beschaffung / Einkauf
C20: Gebühren (z.B.Zoll) | D20: =D19*E20 -> 0 | F20: geschätzt
C21: Lagerkosten | F21: geschätzt
C22: Verpackung + Versand | F22: geschätzt
C23: Lohnaufwand (Handling) | D23: =H23/60*E23 -> 0 | F23: min. (geschätzt) | G23: Stundenlohn | I23: geschätzt
D24: =SUM(D19:D23) -> 0
C25: Risiko | D25: =D24*E25 -> 0 | F25: geschätzt
D26: =SUM(D24:D25) -> 0
C27: Korrektur | L27: Gesamtpreis | M27: =M18*D27 -> 0

Sheet Dienstleistung
B2: ohne MWSt | C2: Dienstleistung | AW2: W.Schroth 11.2022
D4: 1. Jahr
D5: Stundensatz Verkauf | E5: 1. Monat | G5: 2. Monat | I5: 3. Monat | K5: 4. Monat | M5: 5. Monat | O5: 6. Monat | Q5: 7. Monat | S5: 8. Monat | U5: 9. Monat | W5: 10. Monat | Y5: 11. Monat | AA5: 12. Monat | AC5: Summe
E6: h | F6: € | G6: h | H6: € | I6: h | J6: € | K6: h | L6: € | M6: h | N6: € | O6: h | P6: € | Q6: h | R6: € | S6: h | T6: € | U6: h | V6: € | W6: h | X6: € | Y6: h | Z6: € | AA6: h | AB6: €
B7: Zeitaufwand | C7: Unternehmer | F7: =D7*E7 -> 0 | H7: =D7*G7 -> 0 | J7: =D7*I7 -> 0 | L7: =D7*K7 -> 0 | N7: =D7*M7 -> 0 | P7: =D7*O7 -> 0 | R7: =D7*Q7 -> 0 | T7: =D7*S7 -> 0 | V7: =D7*U7 -> 0 | X7: =D7*W7 -> 0 | Z7: =D7*Y7 -> 0 | AB7: =D7*AA7 -> 0 | AC7: =F7+H7+J7+L7+N7+P7+R7+T7+V7+X7+Z7+AB7 -> 0
C9: Personal 1 (€ 538 - Kraft) | F9: =D9*E9 -> 0 | H9: =D9*G9 -> 0 | J9: =D9*I9 -> 0 | L9: =D9*K9 -> 0 | N9: =D9*M9 -> 0 | P9: =D9*O9 -> 0 | R9: =D9*Q9 -> 0 | T9: =D9*S9 -> 0 | V9: =D9*U9 -> 0 | X9: =D9*W9 -> 0 | Z9: =D9*Y9 -> 0 | AB9: =D9*AA9 -> 0 | AC9: =F9+H9+J9+L9+N9+P9+R9+T9+V9+X9+Z9+AB9 -> 0
C11: Personal 2 | F11: =D11*E11 -> 0 | H11: =D11*G11 -> 0 | J11: =D11*I11 -> 0 | L11: =D11*K11 -> 0 | N11: =D11*M11 -> 0 | P11: =D11*O11 -> 0 | R11: =D11*Q11 -> 0 | T11: =D11*S11 -> 0 | V11: =D11*U11 -> 0 | X11: =D11*W11 -> 0 | Z11: =D11*Y11 -> 0 | AB11: =D11*AA11 -> 0 | AC11: =F11+H11+J11+L11+N11+P11+R11+T11+V11+X11+Z11+AB11 -> 0
C13: Buchhaltung / Steuerberater | F13: =D13*E13 -> 0 | H13: =D13*G13 -> 0 | J13: =D13*I13 -> 0 | L13: =D13*K13 -> 0 | N13: =D13*M13 -> 0 | P13: =D13*O13 -> 0 | R13: =D13*Q13 -> 0 | T13: =D13*S13 -> 0 | V13: =D13*U13 -> 0 | X13: =D13*W13 -> 0 | Z13: =D13*Y13 -> 0 | AB13: =D13*AA13 -> 0 | AC13: =F13+H13+J13+L13+N13+P13+R13+T13+V13+X13+Z13+AB13 -> 0
C15: Werbung | F15: =D15*E15 -> 0 | H15: =D15*G15 -> 0 | J15: =D15*I15 -> 0 | L15: =D15*K15 -> 0 | N15: =D15*M15 -> 0 | P15: =D15*O15 -> 0 | R15: =D15*Q15 -> 0 | T15: =D15*S15 -> 0 | V15: =D15*U15 -> 0 | X15: =D15*W15 -> 0 | Z15: =D15*Y15 -> 0 | AB15: =D15*AA15 -> 0 | AC15: =F15+H15+J15+L15+N15+P15+R15+T15+V15+X15+Z15+AB15 -> 0
C17: Angebote ohne Auftrag | F17: =D17*E17 -> 0 | H17: =D17*G17 -> 0 | J17: =D17*I17 -> 0 | L17: =D17*K17 -> 0 | N17: =D17*M17 -> 0 | P17: =D17*O17 -> 0 | R17: =D17*Q17 -> 0 | T17: =D17*S17 -> 0 | V17: =D17*U17 -> 0 | X17: =D17*W17 -> 0 | Z17: =D17*Y17 -> 0 | AB17: =D17*AA17 -> 0 | AC17: =F17+H17+J17+L17+N17+P17+R17+T17+V17+X17+Z17+AB17 -> 0
C19: Allgemeine Büroarbeiten | F19: =D19*E19 -> 0 | H19: =D19*G19 -> 0 | J19: =D19*I19 -> 0 | L19: =D19*K19 -> 0 | N19: =D19*M19 -> 0 | P19: =D19*O19 -> 0 | R19: =D19*Q19 -> 0 | T19: =D19*S19 -> 0 | V19: =D19*U19 -> 0 | X19: =D19*W19 -> 0 | Z19: =D19*Y19 -> 0 | AB19: =D19*AA19 -> 0 | AC19: =F19+H19+J19+L19+N19+P19+R19+T19+V19+X19+Z19+AB19 -> 0
C21: Material | AC21: =F21+H21+J21+L21+N21+P21+R21+T21+V21+X21+Z21+AB21 -> 0
C23: Geräte - Leasing | AC23: =F23+H23+J23+L23+N23+P23+R23+T23+V23+X23+Z23+AB23 -> 0
C25: Sonstiges | AC25: =F25+H25+J25+L25+N25+P25+R25+T25+V25+X25+Z25+AB25 -> 0
D27: Gesamt | F27: =SUM(F7:F25) -> 0 | H27: =SUM(H7:H25) -> 0 | J27: =SUM(J7:J25) -> 0 | L27: =SUM(L7:L25) -> 0 | N27: =SUM(N7:N25) -> 0 | P27: =SUM(P7:P25) -> 0 | R27: =SUM(R7:R25) -> 0 | T27: =SUM(T7:T25) -> 0 | V27: =SUM(V7:V25) -> 0 | X27: =SUM(X7:X25) -> 0 | Z27: =SUM(Z7:Z25) -> 0 | AB27: =SUM(AB7:AB25) -> 0 | AC27: =SUM(F27:AB27) -> 0
D29: 2. Jahr | P29: 3. Jahr
D30: Stundensatz Verkauf | E30: 1. Quartal | G30: 2. Quartal | I30: 3. Quartal | K30: 4. Quartal | M30: Summe | P30: Stundensatz Verkauf | Q30: 1. Quartal | S30: 2. Quartal | U30: 3. Quartal | W30: 4. Quartal | Y30: Summe
E31: h | F31: € | G31: h | H31: € | I31: h | J31: € | K31: h | L31: € | Q31: h | R31: € | S31: h | T31: € | U31: h | V31: € | W31: h | X31: €
B32: Zeitaufwand | C32: Unternehmer | F32: =E32*D32 -> 0 | H32: =G32*D32 -> 0 | J32: =I32*D32 -> 0 | L32: =K32*D32 -> 0 | M32: =F32+H32+J32+L32 -> 0 | R32: =Q32*P32 -> 0 | T32: =S32*P32 -> 0 | V32: =U32*P32 -> 0 | X32: =W32*P32 -> 0 | Y32: =R32+T32+V32+X32 -> 0
C34: Personal 1 (€ 538 - Kraft) | F34: =E34*D34 -> 0 | H34: =G34*D34 -> 0 | J34: =I34*D34 -> 0 | L34: =K34*D34 -> 0 | M34: =F34+H34+J34+L34 -> 0 | R34: =Q34*P34 -> 0 | T34: =S34*P34 -> 0 | V34: =U34*P34 -> 0 | X34: =W34*P34 -> 0 | Y34: =R34+T34+V34+X34 -> 0
C36: Personal 2 | F36: =E36*D36 -> 0 | H36: =G36*D36 -> 0 | J36: =I36*D36 -> 0 | L36: =K36*D36 -> 0 | M36: =F36+H36+J36+L36 -> 0 | R36: =Q36*P36 -> 0 | T36: =S36*P36 -> 0 | V36: =U36*P36 -> 0 | X36: =W36*P36 -> 0 | Y36: =R36+T36+V36+X36 -> 0
C38: Buchhaltung / Steuerberater | F38: =E38*D38 -> 0 | H38: =G38*D38 -> 0 | J38: =I38*D38 -> 0 | L38: =K38*D38 -> 0 | M38: =F38+H38+J38+L38 -> 0 | R38: =Q38*P38 -> 0 | T38: =S38*P38 -> 0 | V38: =U38*P38 -> 0 | X38: =W38*P38 -> 0 | Y38: =R38+T38+V38+X38 -> 0
C40: Werbung | F40: =E40*D40 -> 0 | H40: =G40*D40 -> 0 | J40: =I40*D40 -> 0 | L40: =K40*D40 -> 0 | M40: =F40+H40+J40+L40 -> 0 | R40: =Q40*P40 -> 0 | T40: =S40*P40 -> 0 | V40: =U40*P40 -> 0 | X40: =W40*P40 -> 0 | Y40: =R40+T40+V40+X40 -> 0
C42: Angebote ohne Auftrag | F42: =E42*D42 -> 0 | H42: =G42*D42 -> 0 | J42: =I42*D42 -> 0 | L42: =K42*D42 -> 0 | M42: =F42+H42+J42+L42 -> 0 | R42: =Q42*P42 -> 0 | T42: =S42*P42 -> 0 | V42: =U42*P42 -> 0 | X42: =W42*P42 -> 0 | Y42: =R42+T42+V42+X42 -> 0
C44: Allgemeine Büroarbeiten | F44: =E44*D44 -> 0 | H44: =G44*D44 -> 0 | J44: =I44*D44 -> 0 | L44: =K44*D44 -> 0 | M44: =F44+H44+J44+L44 -> 0 | R44: =Q44*P44 -> 0 | T44: =S44*P44 -> 0 | V44: =U44*P44 -> 0 | X44: =W44*P44 -> 0 | Y44: =R44+T44+V44+X44 -> 0
C46: Material | M46: =F46+H46+J46+L46 -> 0 | Y46: =R46+T46+V46+X46 -> 0
C48: Geräte - Leasing | M48: =F48+H48+J48+L48 -> 0 | Y48: =R48+T48+V48+X48 -> 0
C50: Sonstiges | M50: =F50+H50+J50+L50 -> 0 | Y50: =R50+T50+V50+X50 -> 0
F52: =SUM(F32:F50) -> 0 | H52: =SUM(H32:H50) -> 0 | J52: =SUM(J32:J50) -> 0 | L52: =SUM(L32:L50) -> 0 | M52: =SUM(M32:N50) -> 0 | R52: =SUM(R32:R50) -> 0 | T52: =SUM(T32:T50) -> 0 | V52: =SUM(V32:V50) -> 0 | X52: =SUM(X32:X50) -> 0 | Y52: =SUM(Y32:Z50) -> 0

Sheet Handel
AQ1: W.Schroth 11.2022
B2: ohne MWSt | C2: Handel
C4: Werte je Stück | O4: Umsatz 1. Jahr
B6: Produkt | C6: Einkaufs preis (ohne MWSt) | D6: Gebühren (z.B.Zoll) | E6: Lager kosten | F6: Verpackung + Versand | G6: Summe 1 | H6: Risiko (Verlust / Diebstahl / Reklamationen) (%) | I6: Summe 2 | J6: Gewinn (%) | K6: Summe 3 | L6: Skonto (%) | M6: Gesamt summe | N6: Korrektur | O6: 1. Monat | Q6: 2. Monat | S6: 3. Monat | U6: 4. Monat | W6: 5. Monat | Y6: 6. Monat | AA6: 7. Monat | AC6: 8. Monat | AE6: 9. Monat | AG6: 10. Monat | AI6: 11. Monat | AK6: 12. Monat | AM6: Gesamt
O8: Stück | P8: Wert | Q8: Stück | R8: Wert | S8: Stück | T8: Wert | U8: Stück | V8: Wert | W8: Stück | X8: Wert | Y8: Stück | Z8: Wert | AA8: Stück | AB8: Wert | AC8: Stück | AD8: Wert | AE8: Stück | AF8: Wert | AG8: Stück | AH8: Wert | AI8: Stück | AJ8: Wert | AK8: Stück | AL8: Wert
G10: =SUM(C10:F10) -> 0 | I10: =G10*H10/100+G10 -> 0 | K10: =I10*J10/100+I10 -> 0 | M10: =K10*L10/100+K10 -> 0 | P10: =N10*O10 -> 0 | R10: =Q10*N10 -> 0 | T10: =S10*N10 -> 0 | V10: =U10*N10 -> 0 | X10: =W10*N10 -> 0 | Z10: =Y10*N10 -> 0 | AB10: =AA10*N10 -> 0 | AD10: =AC10*N10 -> 0 | AF10: =AE10*N10 -> 0 | AH10: =AG10*N10 -> 0 | AJ10: =AI10*N10 -> 0 | AL10: =AK10*N10 -> 0 | AM10: =P10+R10+T10+V10+X10+Z10+AB10+AD10+AF10+AH10+AJ10+AL10 -> 0
G12: =SUM(C12:F12) -> 0 | I12: =G12*H12/100+G12 -> 0 | K12: =I12*J12/100+I12 -> 0 | M12: =K12*L12/100+K12 -> 0 | P12: =N12*O12 -> 0 | R12: =Q12*N12 -> 0 | T12: =S12*N12 -> 0 | V12: =U12*N12 -> 0 | X12: =W12*N12 -> 0 | Z12: =Y12*N12 -> 0 | AB12: =AA12*N12 -> 0 | AD12: =AC12*N12 -> 0 | AF12: =AE12*N12 -> 0 | AH12: =AG12*N12 -> 0 | AJ12: =AI12*N12 -> 0 | AL12: =AK12*N12 -> 0 | AM12: =P12+R12+T12+V12+X12+Z12+AB12+AD12+AF12+AH12+AJ12+AL12 -> 0
G14: =SUM(C14:F14) -> 0 | I14: =G14*H14/100+G14 -> 0 | K14: =I14*J14/100+I14 -> 0 | M14: =K14*L14/100+K14 -> 0 | P14: =N14*O14 -> 0 | R14: =Q14*N14 -> 0 | T14: =S14*N14 -> 0 | V14: =U14*N14 -> 0 | X14: =W14*N14 -> 0 | Z14: =Y14*N14 -> 0 | AB14: =AA14*N14 -> 0 | AD14: =AC14*N14 -> 0 | AF14: =AE14*N14 -> 0 | AH14: =AG14*N14 -> 0 | AJ14: =AI14*N14 -> 0 | AL14: =AK14*N14 -> 0 | AM14: =P14+R14+T14+V14+X14+Z14+AB14+AD14+AF14+AH14+AJ14+AL14 -> 0
G17: Handling-Kosten (bitte Tabelle Dienstleistung ausfüllen) | N17: Umsatz | P17: =P10+P12+P14 -> 0 | R17: =SUM(R10:R15) -> 0 | T17: =SUM(T10:T15) -> 0 | V17: =SUM(V10:V15) -> 0 | X17: =SUM(X10:X15) -> 0 | Z17: =SUM(Z10:Z15) -> 0 | AB17: =SUM(AB10:AB15) -> 0 | AD17: =SUM(AD10:AD15) -> 0 | AF17: =SUM(AF10:AF15) -> 0 | AH17: =SUM(AH10:AH15) -> 0 | AJ17: =SUM(AJ10:AJ15) -> 0 | AL17: =SUM(AL10:AL15) -> 0 | AM17: =SUM(AM10:AM15) -> 0
B21: 2. Jahr
C23: Werte je Stück | O23: Umsatz 2. Jahr
B25: Produkt | C25: Einkaufs preis (ohne MWSt) | D25: Gebühren (z.B.Zoll) | E25: Lager kosten | F25: Verpackung + Versand | G25: Summe 1 | H25: Risiko (Verlust / Diebstahl / Reklamationen) (%) | I25: Summe 2 | J25: Gewinn (%) | K25: Summe 3 | L25: Skonto (%) | M25: Gesamt summe | N25: Korrektur | O25: 1.Quartal | Q25: 2.Quartal | S25: 3.Quartal | U25: 4.Quartal | W25: Gesamt
O27: Stück | P27: Wert | Q27: Stück | R27: Wert | S27: Stück | T27: Wert | U27: Stück | V27: Wert
B29: =$B$10 -> 0 | G29: =SUM(C29:F29) -> 0 | I29: =G29*H29/100+G29 -> 0 | K29: =I29*J29/100+I29 -> 0 | M29: =K29*L29/100+K29 -> 0 | P29: =N29*O29 -> 0 | R29: =Q29*N29 -> 0 | T29: =S29*N29 -> 0 | V29: =U29*N29 -> 0 | W29: =P29+R29+T29+V29 -> 0
B31: =$B$12 -> 0 | G31: =SUM(C31:F31) -> 0 | I31: =G31*H31/100+G31 -> 0 | K31: =I31*J31/100+I31 -> 0 | M31: =K31*L31/100+K31 -> 0 | P31: =N31*O31 -> 0 | R31: =Q31*N31 -> 0 | T31: =S31*N31 -> 0 | V31: =U31*N31 -> 0 | W31: =P31+R31+T31+V31 -> 0
B33: =$B$14 -> 0 | G33: =SUM(C33:F33) -> 0 | I33: =G33*H33/100+G33 -> 0 | K33: =I33*J33/100+I33 -> 0 | M33: =K33*L33/100+K33 -> 0 | P33: =N33*O33 -> 0 | R33: =Q33*N33 -> 0 | T33: =S33*N33 -> 0 | V33: =U33*N33 -> 0 | W33: =P33+R33+T33+V33 -> 0
G36: Handling-Kosten (bitte Tabelle Dienstleistung ausfüllen) | N36: Umsatz | P36: =SUM(P29:P33) -> 0 | R36: =SUM(R29:R33) -> 0 | T36: =SUM(T29:T33) -> 0 | V36: =SUM(V29:V33) -> 0 | W36: =SUM(W29:X34) -> 0
B40: 3. Jahr
C42: Werte je Stück | O42: Umsatz 3. Jahr
B44: Produkt | C44: Einkaufs preis (ohne MWSt) | D44: Gebühren (z.B.Zoll) | E44: Lager kosten | F44: Verpackung + Versand | G44: Summe 1 | H44: Risiko (Verlust / Diebstahl / Reklamationen) (%) | I44: Summe 2 | J44: Gewinn (%) | K44: Summe 3 | L44: Skonto (%) | M44: Gesamt summe | N44: Korrektur | O44: 1.Quartal | Q44: 2.Quartal | S44: 3.Quartal | U44: 4.Quartal | W44: Gesamt
O46: Stück | P46: Wert | Q46: Stück | R46: Wert | S46: Stück | T46: Wert | U46: Stück | V46: Wert
B48: =$B$10 -> 0 | G48: =SUM(C48:F48) -> 0 | I48: =G48*H48/100+G48 -> 0 | K48: =I48*J48/100+I48 -> 0 | M48: =K48*L48/100+K48 -> 0 | P48: =N48*O48 -> 0 | R48: =Q48*N48 -> 0 | T48: =S48*N48 -> 0 | V48: =U48*N48 -> 0 | W48: =P48+R48+T48+V48 -> 0
B50: =$B$12 -> 0 | G50: =SUM(C50:F50) -> 0 | I50: =G50*H50/100+G50 -> 0 | K50: =I50*J50/100+I50 -> 0 | M50: =K50*L50/100+K50 -> 0 | P50: =N50*O50 -> 0 | R50: =Q50*N50 -> 0 | T50: =S50*N50 -> 0 | V50: =U50*N50 -> 0 | W50: =P50+R50+T50+V50 -> 0
B52: =$B$14 -> 0 | G52: =SUM(C52:F52) -> 0 | I52: =G52*H52/100+G52 -> 0 | K52: =I52*J52/100+I52 -> 0 | M52: =K52*L52/100+K52 -> 0 | P52: =N52*O52 -> 0 | R52: =Q52*N52 -> 0 | T52: =S52*N52 -> 0 | V52: =U52*N52 -> 0 | W52: =P52+R52+T52+V52 -> 0
G55: Handling-Kosten (bitte Tabelle Dienstleistung ausfüllen) | N55: Umsatz | P55: =SUM(P48:P52) -> 0 | R55: =SUM(R48:R52) -> 0 | T55: =SUM(T48:T52) -> 0 | V55: =SUM(V48:V52) -> 0 | W55: =SUM(W48:X53) -> 0

Sheet Produktion
B2: ohne MWSt | C2: Produktion | W2: ohne MWSt | X2: Produktion
M4: Umsatzplanung siehe rechts
W5: Umsatz 1.Jahr
B6: Teil 1 | H6: Teil 2 | M6: Teil 3 | R6: Teil 4 | X6: Kosten / Stück | Y6: Skonto (%) | Z6: Summe | AA6: Korrektur | AB6: 1. Monat | AD6: 2. Monat | AF6: 3. Monat | AH6: 4. Monat | AJ6: 5. Monat | AL6: 6. Monat | AN6: 7. Monat | AP6: 8. Monat | AR6: 9. Monat | AT6: 10. Monat | AV6: 11. Monat | AX6: 12. Monat | AZ6: Stück Gesamt | BA6: Summe
B7: Zeitaufwand - Unternehmer | C7: h | E7: =Personalkosten!$F$14*D7 -> 0 | H7: Zeitaufwand - Unternehmer | I7: h | K7: =Personalkosten!$F$14*J7 -> 0 | M7: Zeitaufwand - Unternehmer | N7: h | P7: =Personalkosten!$F$14*O7 -> 0 | R7: Teile 1 + 2 + 3 | AB7: Stück | AC7: € | AD7: Stück | AE7: € | AF7: Stück | AG7: € | AH7: Stück | AI7: € | AJ7: Stück | AK7: € | AL7: Stück | AM7: € | AN7: Stück | AO7: € | AP7: Stück | AQ7: € | AR7: Stück | AS7: € | AT7: Stück | AU7: € | AV7: Stück | AW7: € | AX7: Stück | AY7: €
B8: Zeitaufwand - Personal | C8: h | E8: =Personalkosten!$F$47*D8 -> 0 | H8: Zeitaufwand - Personal | I8: h | K8: =Personalkosten!$F$47*J8 -> 0 | M8: Zeitaufwand - Personal | N8: h | P8: =Personalkosten!$F$47*O8 -> 0 | R8: Teil 1 (ohne Verp.+Vers.) | U8: =$E$24-E22 -> 0 | W8: Teil 1 | X8: =$E$24 -> 0 | Z8: =X8*Y8/100+X8 -> 0 | AC8: =AA8*AB8 -> 0 | AE8: =AA8*AD8 -> 0 | AG8: =AA8*AF8 -> 0 | AI8: =AA8*AH8 -> 0 | AK8: =AA8*AJ8 -> 0 | AM8: =AA8*AL8 -> 0 | AO8: =AA8*AN8 -> 0 | AQ8: =AA8*AP8 -> 0 | AS8: =AA8*AR8 -> 0 | AU8: =AA8*AT8 -> 0 | AW8: =AA8*AV8 -> 0 | AY8: =AA8*AX8 -> 0 | AZ8: =AB8+AD8+AF8+AH8+AJ8+AL8+AN8+AP8+AR8+AT8+AV8+AX8 -> 0 | BA8: =AC8+AE8+AG8+AI8+AK8+AM8+AO8+AQ8+AS8+AU8+AW8+AY8 -> 0
B9: Zuschlag Nebenzeiten | C9: h | E9: =Personalkosten!$F$47*D9 -> 0 | H9: Zuschlag Nebenzeiten | I9: h | K9: =Personalkosten!$F$47*J9 -> 0 | M9: Zuschlag Nebenzeiten | N9: h | P9: =Personalkosten!$F$47*O9 -> 0
B10: Lohnkosten - gesamt | E10: =SUM(E7:E9) -> 0 | H10: Lohnkosten - gesamt | K10: =SUM(K7:K9) -> 0 | M10: Lohnkosten - gesamt | P10: =SUM(P7:P9) -> 0 | R10: Teil 2 (ohne Verp.+Vers.) | U10: =$K$24-K22 -> 0 | W10: Teil 2 | X10: =$K$24 -> 0 | Z10: =X10*Y10/100+X10 -> 0 | AC10: =AA10*AB10 -> 0 | AE10: =AA10*AD10 -> 0 | AG10: =AA10*AF10 -> 0 | AI10: =AA10*AH10 -> 0 | AK10: =AA10*AJ10 -> 0 | AM10: =AA10*AL10 -> 0 | AO10: =AA10*AN10 -> 0 | AQ10: =AA10*AP10 -> 0 | AS10: =AA10*AR10 -> 0 | AU10: =AA10*AT10 -> 0 | AW10: =AA10*AV10 -> 0 | AY10: =AA10*AX10 -> 0 | AZ10: =AB10+AD10+AF10+AH10+AJ10+AL10+AN10+AP10+AR10+AT10+AV10+AX10 -> 0 | BA10: =AC10+AE10+AG10+AI10+AK10+AM10+AO10+AQ10+AS10+AU10+AW10+AY10 -> 0
B12: Übertrag von Material - 1 | E12: =$C$37 -> 0 | H12: Übertrag von Material - 2 | K12: =$C$48 -> 0 | M12: Übertrag von Material - 3 | P12: =$C$59 -> 0 | R12: Teil 3 (ohne Verp.+Vers.) | U12: =$P$24-P22 -> 0 | W12: Teil 3 | X12: =$P$24 -> 0 | Z12: =X12*Y12/100+X12 -> 0 | AC12: =AA12*AB12 -> 0 | AE12: =AA12*AD12 -> 0 | AG12: =AA12*AF12 -> 0 | AI12: =AA12*AH12 -> 0 | AK12: =AA12*AJ12 -> 0 | AM12: =AA12*AL12 -> 0 | AO12: =AA12*AN12 -> 0 | AQ12: =AA12*AP12 -> 0 | AS12: =AA12*AR12 -> 0 | AU12: =AA12*AT12 -> 0 | AW12: =AA12*AV12 -> 0 | AY12: =AA12*AX12 -> 0 | AZ12: =AB12+AD12+AF12+AH12+AJ12+AL12+AN12+AP12+AR12+AT12+AV12+AX12 -> 0 | BA12: =AC12+AE12+AG12+AI12+AK12+AM12+AO12+AQ12+AS12+AU12+AW12+AY12 -> 0
B13: Verschnitt - Verlust | C13: (geschätzt) | E13: =E12*D13 -> 0 | H13: Verschnitt - Verlust | I13: (geschätzt) | K13: =K12*J13 -> 0 | M13: Verschnitt - Verlust | N13: (geschätzt) | O13: 0.05 | P13: =P12*O13 -> 0 | U13: =SUM(U8:U12) -> 0
E14: =SUM(E12:E13) -> 0 | K14: =SUM(K12:K13) -> 0 | P14: =SUM(P12:P13) -> 0 | W14: Teil 4 | X14: =$U$29 -> 0 | Z14: =X14*Y14/100+X14 -> 0 | AC14: =AA14*AB14 -> 0 | AE14: =AA14*AD14 -> 0 | AG14: =AA14*AF14 -> 0 | AI14: =AA14*AH14 -> 0 | AK14: =AA14*AJ14 -> 0 | AM14: =AA14*AL14 -> 0 | AO14: =AA14*AN14 -> 0 | AQ14: =AA14*AP14 -> 0 | AS14: =AA14*AR14 -> 0 | AU14: =AA14*AT14 -> 0 | AW14: =AA14*AV14 -> 0 | AY14: =AA14*AX14 -> 0 | AZ14: =AB14+AD14+AF14+AH14+AJ14+AL14+AN14+AP14+AR14+AT14+AV14+AX14 -> 0 | BA14: =AC14+AE14+AG14+AI14+AK14+AM14+AO14+AQ14+AS14+AU14+AW14+AY14 -> 0
B15: Sicherheitszuschlag | C15: (geschätzt) | E15: =E14*D15 -> 0 | H15: Sicherheitszuschlag | I15: (geschätzt) | K15: =K14*J15 -> 0 | M15: Sicherheitszuschlag | N15: (geschätzt) | O15: 0.05 | P15: =P14*O15 -> 0 | R15: Montage Teil 1 + Teil 2 + Teil 3
B16: Material - gesamt | E16: =SUM(E14:E15) -> 0 | H16: Material - gesamt | K16: =SUM(K14:K15) -> 0 | M16: Material - gesamt | P16: =SUM(P14:P15) -> 0
B17: Korrektur | H17: Korrektur | M17: Korrektur | R17: Zeitaufwand - Unternehmer | S17: h | U17: =Personalkosten!$F$14*T17 -> 0 | AA17: Gesamt | AC17: =SUM(AC8:AC14) -> 0 | AE17: =SUM(AE8:AE14) -> 0 | AG17: =SUM(AG8:AG14) -> 0 | AI17: =SUM(AI8:AI14) -> 0 | AK17: =SUM(AK8:AK14) -> 0 | AM17: =SUM(AM8:AM14) -> 0 | AO17: =SUM(AO8:AO14) -> 0 | AQ17: =SUM(AQ8:AQ14) -> 0 | AS17: =SUM(AS8:AS14) -> 0 | AU17: =SUM(AU8:AU14) -> 0 | AW17: =SUM(AW8:AW14) -> 0 | AY17: =SUM(AY8:AY14) -> 0 | BA17: =SUM(AC17:AY17) -> 0
R18: Zeitaufwand - Personal | S18: h | U18: =Personalkosten!$F$47*T18 -> 0
B19: Anteil Maschinen / Werkzeuge | C19: (geschätzt) | H19: Anteil Maschinen / Werkzeuge | I19: (geschätzt) | M19: Anteil Maschinen / Werkzeuge | N19: (geschätzt) | R19: Zuschlag Nebenzeiten | S19: h | U19: =Personalkosten!$F$47*T19 -> 0
B20: Anteil Hilfsmittel | C20: (geschätzt) | H20: Anteil Hilfsmittel | I20: (geschätzt) | M20: Anteil Hilfsmittel | N20: (geschätzt) | R20: Lohnkosten - gesamt | U20: =SUM(U17:U19) -> 0 | W20: Umsatz 2. Jahr
B21: Müll / Entsorgung | C21: (geschätzt) | H21: Müll / Entsorgung | I21: (geschätzt) | M21: Müll / Entsorgung | N21: (geschätzt) | X21: Kosten / Stück | Y21: Skonto (%) | Z21: Summe 1 | AA21: T Z (%) | AB21: Summe 2 | AD21: Korrektur | AF21: 1. Quartal | AH21: 2. Quartal | AJ21: 3. Quartal | AL21: 4. Quartal | AN21: Stück Gesamt | AP21: Summe
B22: Verpackung + Versand | C22: (geschätzt) | H22: Verpackung + Versand | I22: (geschätzt) | M22: Verpackung + Versand | N22: (geschätzt) | R22: Anteil Maschinen / Werkzeuge | S22: (geschätzt) | AF22: Stück | AG22: € | AH22: Stück | AI22: € | AJ22: Stück | AK22: € | AL22: Stück | AM22: €
B23: Gesamt - Preis (netto) | E23: =E10+E17+E19+E20+E21+E22 -> 0 | H23: Gesamt - Preis (netto) | K23: =K10+K17+K19+K20+K21+K22 -> 0 | M23: Gesamt - Preis (netto) | P23: =P10+P17+P19+P20+P21+P22 -> 0 | R23: Anteil Hilfsmittel | S23: (geschätzt) | W23: Teil 1 | X23: =$E$24 -> 0 | Z23: =X23*Y23/100+X23 -> 0 | AB23: =Z23*(AA23/100)+Z23 -> 0 | AG23: =AF23*AD23 -> 0 | AI23: =AH23*AD23 -> 0 | AK23: =AJ23*AD23 -> 0 | AM23: =AL23*AD23 -> 0 | AN23: =AF23+AH23+AJ23+AL23 -> 0 | AP23: =AG23+AI23+AK23+AM23 -> 0
B24: Korrektur | H24: Korrektur | M24: Korrektur | R24: Hilfsmaterial | S24: (geschätzt)
R25: Verpackung + Versand | S25: (geschätzt) | W25: Teil 2 | X25: =$K$24 -> 0 | Z25: =X25*Y25/100+X25 -> 0 | AB25: =Z25*(AA25/100)+Z25 -> 0 | AG25: =AF25*AD25 -> 0 | AI25: =AH25*AD25 -> 0 | AK25: =AJ25*AD25 -> 0 | AM25: =AL25*AD25 -> 0 | AN25: =AF25+AH25+AJ25+AL25 -> 0 | AP25: =AG25+AI25+AK25+AM25 -> 0
R26: gesamt | U26: =U25+U24+U23+U22+U20+U13 -> 0
R27: Sicherheitszuschlag | S27: (geschätzt) | U27: =U26*T27 -> 0 | W27: Teil 3 | X27: =$P$24 -> 0 | Z27: =X27*Y27/100+X27 -> 0 | AB27: =Z27*(AA27/100)+Z27 -> 0 | AG27: =AF27*AD27 -> 0 | AI27: =AH27*AD27 -> 0 | AK27: =AJ27*AD27 -> 0 | AM27: =AL27*AD27 -> 0 | AN27: =AF27+AH27+AJ27+AL27 -> 0 | AP27: =AG27+AI27+AK27+AM27 -> 0
B28: Material - 1 | R28: Gesamt - Preis (netto) | U28: =U27+U26 -> 0
B29: Stück | C29: 1 | R29: Korrektur | W29: Teil 4 | X29: =$U$29 -> 0 | Z29: =X29*Y29/100+X29 -> 0 | AB29: =Z29*(AA29/100)+Z29 -> 0 | AG29: =AF29*AD29 -> 0 | AI29: =AH29*AD29 -> 0 | AK29: =AJ29*AD29 -> 0 | AM29: =AL29*AD29 -> 0 | AN29: =AF29+AH29+AJ29+AL29 -> 0 | AP29: =AG29+AI29+AK29+AM29 -> 0
B30: Einkaufspreis
B31: Gebühren (z.B.Zoll) | C31: =C30*D31 -> 0 | E31: geschätzt
B32: Lagerkosten | E32: geschätzt | M32: Umsatzplanung siehe rechts | AD32: Gesamt | AG32: =SUM(AG23:AG30) -> 0 | AI32: =SUM(AI23:AI30) -> 0 | AK32: =SUM(AK23:AK30) -> 0 | AM32: =SUM(AM23:AM30) -> 0 | AP32: =SUM(AP23:AQ30) -> 0
B33: Lohnaufwand (Handling) | C33: =G33/60*D33 -> 0 | E33: min. (geschätzt) | F33: Stundenlohn | G33: =Personalkosten!$F$47 -> 21
C34: =SUM(C30:C33) -> 0 | W34: Umsatz 3. Jahr
B35: Risiko | C35: =C34*D35 -> 0 | E35: geschätzt | X35: Kosten / Stück | Y35: Skonto (%) | Z35: Summe | AA35: T Z (%) | AB35: Summe 2 | AD35: Korrektur | AF35: 1. Quartal | AH35: 2. Quartal | AJ35: 3. Quartal | AL35: 4. Quartal | AN35: Stück Gesamt | AP35: Summe
C36: =SUM(C34:C35) -> 0 | AF36: Stück | AG36: € | AH36: Stück | AI36: € | AJ36: Stück | AK36: € | AL36: Stück | AM36: €
B37: Korrektur | W37: Teil 1 | X37: =AB23 -> 0 | Z37: =X37*Y37/100+X37 -> 0 | AB37: =Z37*(AA37/100)+Z37 -> 0 | AG37: =AF37*AD37 -> 0 | AI37: =AH37*AD37 -> 0 | AK37: =AJ37*AD37 -> 0 | AM37: =AL37*AD37 -> 0 | AN37: =AF37+AH37+AJ37+AL37 -> 0 | AP37: =AG37+AI37+AK37+AM37 -> 0
B39: Material - 2 | W39: Teil 2 | X39: =AB25 -> 0 | Z39: =X39*Y39/100+X39 -> 0 | AB39: =Z39*(AA39/100)+Z39 -> 0 | AG39: =AF39*AD39 -> 0 | AI39: =AH39*AD39 -> 0 | AK39: =AJ39*AD39 -> 0 | AM39: =AL39*AD39 -> 0 | AN39: =AF39+AH39+AJ39+AL39 -> 0 | AP39: =AG39+AI39+AK39+AM39 -> 0
B40: Stück | C40: 1
B41: Einkaufspreis | W41: Teil 3 | X41: =AB27 -> 0 | Z41: =X41*Y41/100+X41 -> 0 | AB41: =Z41*(AA41/100)+Z41 -> 0 | AG41: =AF41*AD41 -> 0 | AI41: =AH41*AD41 -> 0 | AK41: =AJ41*AD41 -> 0 | AM41: =AL41*AD41 -> 0 | AN41: =AF41+AH41+AJ41+AL41 -> 0 | AP41: =AG41+AI41+AK41+AM41 -> 0
B42: Gebühren (z.B.Zoll) | C42: =C41*D42 -> 0 | E42: geschätzt
B43: Lagerkosten | E43: geschätzt | W43: Teil 4 | X43: =AB29 -> 0 | Z43: =X43*Y43/100+X43 -> 0 | AB43: =Z43*(AA43/100)+Z43 -> 0 | AG43: =AF43*AD43 -> 0 | AI43: =AH43*AD43 -> 0 | AK43: =AJ43*AD43 -> 0 | AM43: =AL43*AD43 -> 0 | AN43: =AF43+AH43+AJ43+AL43 -> 0 | AP43: =AG43+AI43+AK43+AM43 -> 0
B44: Lohnaufwand (Handling) | C44: =G44/60*D44 -> 0 | E44: min. (geschätzt) | F44: Stundenlohn | G44: =Personalkosten!$F$47 -> 21
C45: =SUM(C41:C44) -> 0
B46: Risiko | C46: =C45*D46 -> 0 | E46: geschätzt | AD46: Gesamt | AG46: =SUM(AG37:AG44) -> 0 | AI46: =SUM(AI37:AI44) -> 0 | AK46: =SUM(AK37:AK44) -> 0 | AM46: =SUM(AM37:AM44) -> 0 | AP46: =SUM(AP37:AQ44) -> 0
C47: =SUM(C45:C46) -> 0
B48: Korrektur
B50: Material - 3
B51: Stück | C51: 1
B52: Einkaufspreis
B53: Gebühren (z.B.Zoll) | C53: =C52*D53 -> 0 | E53: geschätzt
B54: Lagerkosten | E54: geschätzt
B55: Lohnaufwand (Handling) | C55: =G55/60*D55 -> 0 | E55: min. (geschätzt) | F55: Stundenlohn | G55: =Personalkosten!$F$47 -> 21
C56: =SUM(C52:C55) -> 0
B57: Risiko | C57: =C56*D57 -> 0 | E57: geschätzt
C58: =SUM(C56:C57) -> 0
B59: Korrektur | C59: 0
